Workbook

Sheet Instructions
A1: 2022 Michigan Equalization Department Salary Survey
A2: THE SALARY SURVEY INCLUDES 5 SUMMARY PAGES TO GIVE YOU THE SALARY RANGES FOR DIRECTORS, DEPUTIES, AND APPRAISAL STAFF. FROM THE DIRECTORS SUMMARY PAGE, CLICK ON THE NAME OF THE COUNTY THAT YOU WISH TO VIEW, TO DIRECTLY ACCESS THAT PAGE. WHEN YOU ARE FINISHED VEIWING THE COUNTY'S PAGE, SELECT THE RED CELL AT THE TOP OF THE PAGE TO RETURN TO THE DIRECTOR SUMMARY PAGE. PLEASE FEEL FREE TO SEND UPDATES THROUGOUT THE YEAR IF YOU HAVE SIGNIFICANT CHANGES TO YOUR COUNTY INFORMATION AND I WILL RELEASE PERIODIC UPDATES IF THEY ARE WARRANTED.
A19: ********Tab Color Key ********
A20: Light Blue = | B20: Summary Pages
A21: Green = | B21: Updated Prior to 2019
A22: Red = | B22: Updated in 2019
A23: Yellow = | B23: Updated 2020
A24: Dark Blue = | B24: Updated 2021
A25: Purple = | B25: Updated in 2022
A27: NOTE! YOU MUST OPEN THIS AND ENABLE THE MACROS IN ORDER FOR THE LINKS TO FUNCTION PROPERLY
A30: THANK YOU FOR YOUR PARTICIPATION THIS YEAR.
A31: Justin Sears, St. Clair County
A32: CLICK HERE TO GO TO THE DIRECTOR SUMMARY PAGE
A37: Last Revision Date: | B37: 2021-10-01

Sheet Director Summary
A1: 2022 Michigan Equalization Department Salary Survey
A2: Equalization Director Information
A3: County | B3: Required Certification | C3: Beginning Salary | D3: Ending Salary | F3: County | G3: Required Certification | H3: Beginning Salary | I3: Ending Salary
A4: Alcona | B4: ='01 Alcona'!G32 -> MAAO | C4: ='01 Alcona'!O32 ->  | D4: ='01 Alcona'!Q32 -> 44800 | F4: Lake | G4: ='43 Lake'!G32 -> MAAO | H4: ='43 Lake'!O32 -> 66000 | I4: ='43 Lake'!Q32 -> 0
A5: Alger | B5: ='02 Alger'!G32 -> MAAO | C5: ='02 Alger'!O32 -> CONTRACT | D5: ='02 Alger'!Q32 -> 30750 | F5: Lapeer | G5: ='44 Lapeer'!G32 -> MAAO | H5: ='44 Lapeer'!O32 -> Eq Services Contract | I5: ='44 Lapeer'!Q32 -> 0
A6: Allegan | B6: ='03 Allegan'!G32 -> MMAO 4 | C6: ='03 Allegan'!O32 -> see Kent County | D6: ='03 Allegan'!Q32 -> see Kent County | F6: Leelanau | G6: ='45 Leelanau'!G32 -> MMAO | H6: ='45 Leelanau'!O32 -> 78487 | I6: ='45 Leelanau'!Q32 -> 87479
A7: Alpena | B7: ='04 Alpena'!G32 -> MAAO | C7: ='04 Alpena'!O32 -> 0 | D7: ='04 Alpena'!Q32 -> 48000 | F7: Lenawee | G7: ='46 Lenawee'!G32 -> MAAO | H7: ='46 Lenawee'!O32 -> 70401 | I7: ='46 Lenawee'!Q32 -> 80919
A8: Antrim | B8: ='05 Antrim'!G32 -> 3 | C8: ='05 Antrim'!O32 -> contact | D8: ='05 Antrim'!Q32 -> 100000 | F8: Livingston | G8: ='47 Livingston'!G32 -> 3 | H8: ='47 Livingston'!O32 -> 89411 | I8: ='47 Livingston'!Q32 -> 116234
A9: Arenac | B9: ='06 Arenac'!G32 -> MAAO | C9: ='06 Arenac'!O32 -> Contract | D9: ='06 Arenac'!Q32 -> 50000 | F9: Luce | G9: ='48 Luce'!G32 -> MAAO | H9: ='48 Luce'!O32 -> 35000 | I9: ='48 Luce'!Q32 -> ***
A10: Baraga | B10: ='07 Baraga'!G32 -> 3 | C10: ='07 Baraga'!O32 -> 0 | D10: ='07 Baraga'!Q32 -> 58606 | F10: Mackinac | G10: ='49 Mackinac'!G32 -> MAAO | H10: ='49 Mackinac'!O32 -> 61703 | I10: ='49 Mackinac'!Q32 -> 0
A11: Barry | B11: ='08 Barry'!G32 -> 3 | C11: ='08 Barry'!O32 -> 74213.57 | D11: ='08 Barry'!Q32 -> 89043.55 | F11: Macomb | G11: ='50 Macomb'!G32 -> MMAO | H11: ='50 Macomb'!O32 -> 77592 | I11: ='50 Macomb'!Q32 -> 110438
A12: Bay | B12: ='09 Bay'!G32 -> Waiver | C12: ='09 Bay'!O32 -> 72404 | D12: ='09 Bay'!Q32 -> 75088 | F12: Manistee | G12: ='51 Manistee'!G32 -> 3 | H12: ='51 Manistee'!O32 -> 52833 | I12: ='51 Manistee'!Q32 -> 68686
A13: Benzie | B13: ='10 Benzie'!G32 -> MAAO | C13: ='10 Benzie'!O32 -> 0 | D13: ='10 Benzie'!Q32 -> 59088 | F13: Marquette | G13: ='52 Marquette'!G32 -> 4 | H13: ='52 Marquette'!O32 -> contract | I13: ='52 Marquette'!Q32 -> 39922
A14: Berrien | B14: ='11 Berrien'!G32 -> MMAO | C14: ='11 Berrien'!O32 -> 94894 | D14: ='11 Berrien'!Q32 -> 127167 | F14: Mason | G14: ='53 Mason'!G32 -> 4 | H14: ='53 Mason'!Q32 -> 62300 | I14: ='53 Mason'!P32 -> 0
A15: Branch | B15: ='12 Branch'!G32 -> 3 | C15: ='12 Branch'!O32 -> 0 | D15: ='12 Branch'!Q32 -> 55100 | F15: Mecosta | G15: ='54 Mecosta'!G32 -> MAAO | H15: ='54 Mecosta'!O32 -> 60435 | I15: ='54 Mecosta'!Q32 -> 71468
A16: Calhoun | B16: ='13 Calhoun'!G32 -> 4 | C16: ='13 Calhoun'!O32 -> Contractual | D16: ='13 Calhoun'!Q32 -> Contractual | F16: Menominee | G16: ='55 Menominee'!G32 -> III | H16: ='55 Menominee'!O32 -> 60766 | I16: ='55 Menominee'!Q32 -> 65267
A17: Cass | B17: ='14 Cass'!G32 -> MAAO | C17: ='14 Cass'!O32 -> 67421 | D17: ='14 Cass'!Q32 -> 87647 | F17: Midland | G17: ='56 Midland'!G32 -> 4 | H17: ='56 Midland'!O32 -> 87600 | I17: ='56 Midland'!Q32 -> 113800
A18: Charlevoix | B18: ='15 Charlevoix'!G32 -> MAAO | C18: ='15 Charlevoix'!O32 -> 55000 | D18: ='15 Charlevoix'!Q32 -> 70000 | F18: Missaukee | G18: ='57 Missaukee'!G32 -> 3 | H18: ='57 Missaukee'!O32 ->  | I18: ='57 Missaukee'!Q32 -> 55099
A19: Cheboygan | B19: ='16 Cheboygan'!G32 -> 3 | C19: ='16 Cheboygan'!Q32 -> 72156 | D19: ='16 Cheboygan'!IQ2 -> 0 | F19: Monroe | G19: ='58 Monroe'!G32 -> MMAO | H19: ='58 Monroe'!O32 -> 78000 | I19: ='58 Monroe'!Q32 -> 97000
A20: Chippewa | B20: ='17 Chippewa'!G32 -> 3 | C20: ='17 Chippewa'!O32 -> 71000 | D20: ='17 Chippewa'!Q32 ->  | F20: Montcalm | G20: ='59 Montcalm'!G32 -> MAAO | H20: ='59 Montcalm'!O32 -> 66192 | I20: ='59 Montcalm'!Q32 -> 72525
A21: Clare | B21: ='18 Clare'!G32 -> MAAO | C21: ='18 Clare'!O32 ->  | D21: ='18 Clare'!Q32 -> 50360 | F21: Montmorency | G21: ='60 Montmorency'!G32 -> MAAO | H21: ='60 Montmorency'!O32 -> 45000 | I21: ='60 Montmorency'!Q32 -> 52000
A22: Clinton | B22: ='19 Clinton'!G32 -> 4 | C22: ='19 Clinton'!O32 ->  | D22: ='19 Clinton'!Q32 -> 80425 | F22: Muskegon | G22: ='61 Muskegon'!G32 -> 3 | H22: ='61 Muskegon'!O32 -> 98473.44 | I22: ='61 Muskegon'!Q32 -> 122743
A23: Crawford | B23: ='20 Crawford'!G32 -> MAAO | C23: ='20 Crawford'!O32 -> CONTRACTED | D23: ='20 Crawford'!Q32 -> 0 | F23: Newaygo | G23: ='62 Newaygo'!G32 -> MAAO | H23: ='62 Newaygo'!O32 -> 60412.56 | I23: ='62 Newaygo'!Q32 -> 71078.8
A24: Delta | B24: ='21 Delta'!G32 -> MMAO(4) | C24: ='21 Delta'!O32 -> 90000 | D24: ='21 Delta'!Q32 -> 90000 | F24: Oakland | G24: ='63 Oakland'!G32 -> MMAO | H24: ='63 Oakland'!O32 -> 113823 | I24: ='63 Oakland'!Q32 -> 152502
A25: Dickinson | B25: ='22 Dickinson'!G32 -> III | C25: ='22 Dickinson'!O32 -> 60738 | D25: ='22 Dickinson'!Q32 -> 74099 | F25: Oceana | G25: ='64 Oceana'!G32 -> 0 | H25: ='64 Oceana'!O32 -> 0 | I25: ='64 Oceana'!Q32 -> 0
A26: Eaton | B26: ='23 Eaton'!G32 -> 4 | C26: ='23 Eaton'!O32 -> 81200 | D26: ='23 Eaton'!Q32 -> 99052 | F26: Ogemaw | G26: ='65 Ogemaw'!G32 -> MAAO | H26: ='65 Ogemaw'!O32 -> 0 | I26: ='65 Ogemaw'!Q32 -> 51000
A27: Emmet | B27: ='24 Emmet'!G32 -> 3 | C27: ='24 Emmet'!O32 -> 36000 | D27: ='24 Emmet'!Q32 ->  | F27: Ontonagon | G27: ='66 Ontonagon'!G32 -> MAAO | H27: ='66 Ontonagon'!O32 -> 48265 | I27: ='66 Ontonagon'!Q32 -> 52265
A28: Genesee | B28: ='25 Genesee'!G32 -> 4 | C28: ='25 Genesee'!O32 ->  | D28: ='25 Genesee'!Q32 -> 107608.8 | F28: Osceola | G28: ='67 Osceola'!G32 -> 3 | H28: ='67 Osceola'!O32 -> 54607.11 | I28: ='67 Osceola'!Q32 -> 70979.39
A29: Gladwin | B29: ='26 Gladwin'!G32 -> 3 | C29: ='26 Gladwin'!O32 -> 0 | D29: ='26 Gladwin'!Q32 -> 65000 | F29: Oscoda | G29: ='68 Oscoda'!G32 -> MAAO | H29: ='68 Oscoda'!O32 -> 49000 | I29: ='68 Oscoda'!Q32 -> 0
A30: Gogebic | B30: ='27 Gogebic'!G32 -> MAAO | C30: ='27 Gogebic'!O32 -> 52700 | D30: ='27 Gogebic'!Q32 -> 0 | F30: Otsego | G30: ='69 Otsego'!G32 -> 3 | H30: ='69 Otsego'!O32 -> Contracted | I30: ='69 Otsego'!Q32 -> 0
A31: Grand Traverse | B31: ='28 Grand Traverse'!G32 -> MMAO | C31: ='28 Grand Traverse'!O32 -> 85291 | D31: ='28 Grand Traverse'!Q32 -> 106631 | F31: Ottawa | G31: ='70 Ottawa'!G32 -> MMAO | H31: ='70 Ottawa'!O32 -> 91977 | I31: ='70 Ottawa'!Q32 -> 119569
A32: Gratiot | B32: ='29 Gratiot'!G32 -> MAAO | C32: ='29 Gratiot'!O32 -> 58864 | D32: ='29 Gratiot'!Q32 -> 71617 | F32: Presque Isle | G32: ='71 Presque Isle'!G32 -> 0 | H32: ='71 Presque Isle'!O32 -> 0 | I32: ='71 Presque Isle'!Q32 -> 0
A33: Hillsdale | B33: ='30 Hillsdale'!G32 -> MAAO | C33: ='30 Hillsdale'!O32 -> 0 | D33: ='30 Hillsdale'!Q32 -> 64395 | F33: Roscommon | G33: ='72 Roscommon'!G32 -> 3 | H33: ='72 Roscommon'!O32 -> 0 | I33: ='72 Roscommon'!Q32 -> 69680
A34: Houghton | B34: ='31 Houghton'!G32 -> 3 | C34: ='31 Houghton'!O32 -> 55000 | D34: ='31 Houghton'!Q32 -> 75000 | F34: Saginaw | G34: ='73 Saginaw'!G32 -> MAAO(3) | H34: ='73 Saginaw'!O32 -> 82913 | I34: ='73 Saginaw'!Q32 -> 109181
A35: Huron | B35: ='32 Huron'!G32 -> 3 | C35: ='32 Huron'!O32 -> contracted | D35: ='32 Huron'!Q32 ->  | F35: St. Clair | G35: ='74 St. Clair'!G32 -> MAAO | H35: ='74 St. Clair'!O32 -> 84635 | I35: ='74 St. Clair'!Q32 -> 111375
A36: Ingham | B36: ='33 Ingham'!G32 -> MMAO | C36: ='33 Ingham'!O32 -> 84834.36 | D36: ='33 Ingham'!Q32 -> 101825.79 | F36: St. Joseph | G36: ='75 St Joseph'!G32 -> MAAO | H36: ='75 St Joseph'!O32 -> 72205 | I36: ='75 St Joseph'!Q32 -> 93867
A37: Ionia | B37: ='34 Ionia'!G32 -> MAAO | C37: ='34 Ionia'!O32 -> 45000 | D37: ='34 Ionia'!Q32 -> 45000 | F37: Sanilac | G37: ='76 Sanilac'!G32 -> MAAO | H37: ='76 Sanilac'!O32 -> 0 | I37: ='76 Sanilac'!Q32 -> 60594
A38: Iosco | B38: ='35 Iosco'!G32 -> 3 | C38: ='35 Iosco'!O32 -> 45016 | D38: ='35 Iosco'!Q32 -> 45016 | F38: Schoolcraft | G38: ='77 Schoolcraft'!G32 -> MAAO | H38: ='77 Schoolcraft'!O32 -> CONTRACT | I38: ='77 Schoolcraft'!Q32 -> 48500
A39: Iron | B39: ='36 Iron'!G32 -> MAAO | C39: ='36 Iron'!O32 ->  | D39: ='36 Iron'!Q32 -> 55823 | F39: Shiawassee | G39: ='78 Shiawassee'!G32 -> 0 | H39: ='78 Shiawassee'!O32 -> 0 | I39: ='78 Shiawassee'!Q32 -> 0
A40: Isabella | B40: ='37 Isabella'!G32 -> 3 | C40: ='37 Isabella'!O32 -> 0 | D40: ='37 Isabella'!Q32 ->  | F40: Tuscola | G40: ='79 Tuscola'!G32 -> 3 | H40: ='79 Tuscola'!O32 -> 63890 | I40: ='79 Tuscola'!Q32 -> 77739
A41: Jackson | B41: ='38 Jackson'!G31 -> MAAO | C41: ='38 Jackson'!O31 -> 86990 | D41: ='38 Jackson'!Q31 -> 108755 | F41: Van Buren | G41: ='80 Van Buren'!G32 -> MMAO | H41: ='80 Van Buren'!O32 -> Contracted | I41: ='80 Van Buren'!Q32 -> 0
A42: Kalamazoo | B42: ='39 Kalamazoo'!G32 -> 4 | C42: ='39 Kalamazoo'!O32 -> 83990 | D42: ='39 Kalamazoo'!Q32 -> 103105 | F42: Washtenaw | G42: ='81 Washtenaw'!G32 -> 4 | H42: ='81 Washtenaw'!O32 -> contract | I42: ='81 Washtenaw'!Q32 -> contract
A43: Kalkaska | B43: ='40 Kalkaska'!G32 -> 0 | C43: ='40 Kalkaska'!O32 -> 0 | D43: ='40 Kalkaska'!Q32 -> 0 | F43: Wayne | G43: ='82 Wayne'!G32 -> MMAO | H43: ='82 Wayne'!O32 -> 86838 | I43: ='82 Wayne'!Q32 -> 138345
A44: Kent | B44: ='41 Kent'!G32 -> MMAO 4 | C44: ='41 Kent'!O32 -> 89262 | D44: ='41 Kent'!Q32 -> 127035 | F44: Wexford | G44: ='83 Wexford'!G32 -> 3 | H44: ='83 Wexford'!O32 -> 48950 | I44: ='83 Wexford'!Q32 -> 76975
A45: Keweenaw | B45: ='42 Keweenaw'!G32 -> 3 | C45: ='42 Keweenaw'!O32 -> 30000 | D45: ='42 Keweenaw'!Q32 -> 30000
A46: GET FULL DETAILS BY CLICKING ON THE COUNTY YOU ARE LOOKING FOR!

Sheet Deputy Director Summary
A1: 2022 Michigan Equalization Department Salary Survey
A2: Deputy Equalization Director Information
A3: County | B3: Required Certification | C3: Beginning Salary | D3: Ending Salary | F3: County | G3: Required Certification | H3: Beginning Salary | I3: Ending Salary
A4: Alcona | B4: ='01 Alcona'!G33 -> 0 | C4: ='01 Alcona'!O33 -> 0 | D4: ='01 Alcona'!Q33 -> 0 | F4: Lake | G4: ='43 Lake'!G33 -> 0 | H4: ='43 Lake'!O33 ->  | I4: ='43 Lake'!Q33 -> 
A5: Alger | B5: ='02 Alger'!G33 -> 0 | C5: ='02 Alger'!O33 ->  | D5: ='02 Alger'!Q33 ->  | F5: Lapeer | G5: ='44 Lapeer'!G33 -> 0 | H5: ='44 Lapeer'!O33 -> 0 | I5: ='44 Lapeer'!Q33 -> 0
A6: Allegan | B6: ='03 Allegan'!G33 -> MAAO 3 | C6: ='03 Allegan'!O33 -> 65862 | D6: ='03 Allegan'!Q33 -> 97156 | F6: Leelanau | G6: ='45 Leelanau'!G33 -> 0 | H6: ='45 Leelanau'!O33 ->  | I6: ='45 Leelanau'!Q33 -> 
A7: Alpena | B7: ='04 Alpena'!G33 -> 0 | C7: ='04 Alpena'!O33 ->  | D7: ='04 Alpena'!Q33 ->  | F7: Lenawee | G7: ='46 Lenawee'!G33 -> 0 | H7: ='46 Lenawee'!O33 -> 49932 | I7: ='46 Lenawee'!Q33 -> 57225
A8: Antrim | B8: ='05 Antrim'!G33 -> 0 | C8: ='05 Antrim'!O33 -> 0 | D8: ='05 Antrim'!Q33 -> 0 | F8: Livingston | G8: ='47 Livingston'!G33 ->  | H8: ='47 Livingston'!O33 ->  | I8: ='47 Livingston'!Q33 -> 
A9: Arenac | B9: ='06 Arenac'!G33 -> 0 | C9: ='06 Arenac'!O33 ->  | D9: ='06 Arenac'!Q33 ->  | F9: Luce | G9: ='48 Luce'!G33 -> 0 | H9: ='48 Luce'!O33 ->  | I9: ='48 Luce'!Q33 -> 
A10: Baraga | B10: ='07 Baraga'!G33 -> 0 | C10: ='07 Baraga'!O33 ->  | D10: ='07 Baraga'!Q33 -> 30030 | F10: Mackinac | G10: ='49 Mackinac'!G33 -> 0 | H10: ='49 Mackinac'!O33 ->  | I10: ='49 Mackinac'!Q33 -> 
A11: Barry | B11: ='08 Barry'!G33 -> 3 | C11: ='08 Barry'!O33 -> 53809.6 | D11: ='08 Barry'!Q33 -> 64334.4 | F11: Macomb | G11: ='50 Macomb'!G33 -> 0 | H11: ='50 Macomb'!O33 -> 0 | I11: ='50 Macomb'!Q33 -> 0
A12: Bay | B12: ='09 Bay'!G33 -> 0 | C12: ='09 Bay'!O33 ->  | D12: ='09 Bay'!Q33 ->  | F12: Manistee | G12: ='51 Manistee'!G33 -> 3 | H12: ='51 Manistee'!O33 -> 35802 | I12: ='51 Manistee'!Q33 -> 46566
A13: Benzie | B13: ='10 Benzie'!G33 -> MCAO | C13: ='10 Benzie'!O33 ->  | D13: ='10 Benzie'!Q33 -> 33675 | F13: Marquette | G13: ='52 Marquette'!G33 -> 3 | H13: ='52 Marquette'!O33 -> 24.26/hr | I13: ='52 Marquette'!Q33 -> 29.52/hr
A14: Berrien | B14: ='11 Berrien'!G33 -> MAAO | C14: ='11 Berrien'!O33 -> 68057 | D14: ='11 Berrien'!Q33 -> 91204 | F14: Mason | G14: ='53 Mason'!G33 -> 0 | H14: ='53 Mason'!Q33 ->  | I14: ='53 Mason'!P33 -> 0
A15: Branch | B15: ='12 Branch'!G33 -> 0 | C15: ='12 Branch'!O33 ->  | D15: ='12 Branch'!Q33 ->  | F15: Mecosta | G15: ='54 Mecosta'!G33 -> 0 | H15: ='54 Mecosta'!O33 -> 43331 | I15: ='54 Mecosta'!Q33 -> 51243
A16: Calhoun | B16: ='13 Calhoun'!G33 -> 3 | C16: ='13 Calhoun'!O33 -> 66382 | D16: ='13 Calhoun'!Q33 -> 80602.34 | F16: Menominee | G16: ='55 Menominee'!G33 -> 0 | H16: ='55 Menominee'!O33 ->  | I16: ='55 Menominee'!Q33 -> 
A17: Cass | B17: ='14 Cass'!G33 -> 0 | C17: ='14 Cass'!O33 -> 0 | D17: ='14 Cass'!Q33 -> 0 | F17: Midland | G17: ='56 Midland'!G33 -> 0 | H17: ='56 Midland'!O33 ->  | I17: ='56 Midland'!Q33 -> 
A18: Charlevoix | B18: ='15 Charlevoix'!G33 -> 0 | C18: ='15 Charlevoix'!O33 -> 0 | D18: ='15 Charlevoix'!Q33 -> 0 | F18: Missaukee | G18: ='57 Missaukee'!G33 -> 0 | H18: ='57 Missaukee'!O33 ->  | I18: ='57 Missaukee'!Q33 -> 
A19: Cheboygan | B19: ='16 Cheboygan'!G33 -> 0 | C19: ='16 Cheboygan'!Q33 ->  | D19: ='16 Cheboygan'!IQ33 -> 0 | F19: Monroe | G19: ='58 Monroe'!G33 -> MAAO | H19: ='58 Monroe'!O33 -> 50400 | I19: ='58 Monroe'!Q33 -> 63000
A20: Chippewa | B20: ='17 Chippewa'!G33 -> 0 | C20: ='17 Chippewa'!O33 ->  | D20: ='17 Chippewa'!Q33 ->  | F20: Montcalm | G20: ='59 Montcalm'!G33 ->  | H20: ='59 Montcalm'!O33 -> 43098 | I20: ='59 Montcalm'!Q33 -> 50440
A21: Clare | B21: ='18 Clare'!G33 -> 0 | C21: ='18 Clare'!O33 -> 0 | D21: ='18 Clare'!Q33 -> 0 | F21: Montmorency | G21: ='60 Montmorency'!G33 -> MCAT | H21: ='60 Montmorency'!O33 -> 18000 | I21: ='60 Montmorency'!Q33 -> 23000
A22: Clinton | B22: ='19 Clinton'!G33 -> 0 | C22: ='19 Clinton'!O33 ->  | D22: ='19 Clinton'!Q33 ->  | F22: Muskegon | G22: ='61 Muskegon'!G33 -> 3 | H22: ='61 Muskegon'!O33 -> 72590 | I22: ='61 Muskegon'!Q33 -> 92294
A23: Crawford | B23: ='20 Crawford'!G33 -> 0 | C23: ='20 Crawford'!O33 -> CONTRACTED | D23: ='20 Crawford'!Q33 ->  | F23: Newaygo | G23: ='62 Newaygo'!G33 -> 0 | H23: ='62 Newaygo'!O33 -> 0 | I23: ='62 Newaygo'!Q33 -> 0
A24: Delta | B24: ='21 Delta'!G33 -> MCAO | C24: ='21 Delta'!O33 -> 31208 | D24: ='21 Delta'!Q33 -> 33004 | F24: Oakland | G24: ='63 Oakland'!G33 -> MMAO | H24: ='63 Oakland'!O33 -> 84937 | I24: ='63 Oakland'!Q33 -> 113798
A25: Dickinson | B25: ='22 Dickinson'!G33 -> II | C25: ='22 Dickinson'!O33 -> 42762 | D25: ='22 Dickinson'!Q33 -> 48229 | F25: Oceana | G25: ='64 Oceana'!G33 ->  | H25: ='64 Oceana'!O33 ->  | I25: ='64 Oceana'!Q33 -> 0
A26: Eaton | B26: ='23 Eaton'!G33 -> 3 | C26: ='23 Eaton'!O33 -> 49755 | D26: ='23 Eaton'!Q33 -> 65313 | F26: Ogemaw | G26: ='65 Ogemaw'!G33 -> 0 | H26: ='65 Ogemaw'!O33 ->  | I26: ='65 Ogemaw'!Q33 -> 
A27: Emmet | B27: ='24 Emmet'!G33 -> 3 | C27: ='24 Emmet'!O33 -> 70000 | D27: ='24 Emmet'!Q33 ->  | F27: Ontonagon | G27: ='66 Ontonagon'!G33 -> 0 | H27: ='66 Ontonagon'!O33 ->  | I27: ='66 Ontonagon'!Q33 -> 
A28: Genesee | B28: ='25 Genesee'!G33 -> 0 | C28: ='25 Genesee'!O33 -> 0 | D28: ='25 Genesee'!Q33 -> 0 | F28: Osceola | G28: ='67 Osceola'!G33 -> 0 | H28: ='67 Osceola'!O33 -> 32511.81 | I28: ='67 Osceola'!Q33 -> 48291
A29: Gladwin | B29: ='26 Gladwin'!G33 -> 0 | C29: ='26 Gladwin'!O33 -> 0 | D29: ='26 Gladwin'!Q33 ->  | F29: Oscoda | G29: ='68 Oscoda'!G33 -> MCAO | H29: ='68 Oscoda'!O33 -> 16.24 | I29: ='68 Oscoda'!Q33 -> /hr
A30: Gogebic | B30: ='27 Gogebic'!G33 -> MCAO | C30: ='27 Gogebic'!O33 -> 38000 | D30: ='27 Gogebic'!Q33 ->  | F30: Otsego | G30: ='69 Otsego'!G33 -> 3 | H30: ='69 Otsego'!O33 -> 46220 | I30: ='69 Otsego'!Q33 -> 50530
A31: Grand Traverse | B31: ='28 Grand Traverse'!G33 -> MAAO | C31: ='28 Grand Traverse'!O33 -> 50014 | D31: ='28 Grand Traverse'!Q33 -> 62484 | F31: Ottawa | G31: ='70 Ottawa'!G33 -> MMAO | H31: ='70 Ottawa'!O33 -> 74375 | I31: ='70 Ottawa'!Q33 -> 96689
A32: Gratiot | B32: ='29 Gratiot'!G33 -> 0 | C32: ='29 Gratiot'!O33 ->  | D32: ='29 Gratiot'!Q33 ->  | F32: Perque Isle | G32: ='71 Presque Isle'!G33 -> 0 | H32: ='71 Presque Isle'!O33 ->  | I32: ='71 Presque Isle'!Q33 -> 
A33: Hillsdale | B33: ='30 Hillsdale'!G33 -> MCAO | C33: ='30 Hillsdale'!O33 -> 38000 | D33: ='30 Hillsdale'!Q33 -> 49945 | F33: Roscommon | G33: ='72 Roscommon'!G33 -> 0 | H33: ='72 Roscommon'!O33 -> 0 | I33: ='72 Roscommon'!Q33 -> 0
A34: Houghton | B34: ='31 Houghton'!G33 -> 1 | C34: ='31 Houghton'!O33 -> 32000 | D34: ='31 Houghton'!Q33 -> 45000 | F34: Saginaw | G34: ='73 Saginaw'!G33 -> MAAO(3) | H34: ='73 Saginaw'!O33 -> 72419 | I34: ='73 Saginaw'!Q33 -> 95362
A35: Huron | B35: ='32 Huron'!G33 -> 2 | C35: ='32 Huron'!O33 -> 36491 | D35: ='32 Huron'!Q33 ->  | F35: St. Clair | G35: ='74 St. Clair'!G33 -> 0 | H35: ='74 St. Clair'!O33 -> 0 | I35: ='74 St. Clair'!Q33 -> 0
A36: Ingham | B36: ='33 Ingham'!G33 -> MAAO | C36: ='33 Ingham'!O33 -> 57981.36 | D36: ='33 Ingham'!Q33 -> 69605.2 | F36: St. Joseph | G36: ='75 St Joseph'!G33 -> 0 | H36: ='75 St Joseph'!O33 -> 0 | I36: ='75 St Joseph'!Q33 -> 0
A37: Ionia | B37: ='34 Ionia'!G33 -> 0 | C37: ='34 Ionia'!O33 ->  | D37: ='34 Ionia'!Q33 ->  | F37: Sanilac | G37: ='76 Sanilac'!G33 -> 0 | H37: ='76 Sanilac'!O33 ->  | I37: ='76 Sanilac'!Q33 -> 39500
A38: Iosco | B38: ='35 Iosco'!G33 -> 0 | C38: ='35 Iosco'!O33 -> 0 | D38: ='35 Iosco'!Q33 -> 0 | F38: Schoolcraft | G38: ='77 Schoolcraft'!G33 -> 0 | H38: ='77 Schoolcraft'!O33 ->  | I38: ='77 Schoolcraft'!Q33 -> 
A39: Iron | B39: ='36 Iron'!G33 -> 0 | C39: ='36 Iron'!O33 -> 0 | D39: ='36 Iron'!Q33 -> 38000 | F39: Shiawassee | G39: ='78 Shiawassee'!G33 -> 0 | H39: ='78 Shiawassee'!O33 ->  | I39: ='78 Shiawassee'!Q33 -> 
A40: Isabella | B40: ='37 Isabella'!G33 -> 0 | C40: ='37 Isabella'!O33 -> 0 | D40: ='37 Isabella'!Q33 -> 138000 | F40: Tuscola | G40: ='79 Tuscola'!G33 -> 0 | H40: ='79 Tuscola'!O33 -> 0 | I40: ='79 Tuscola'!Q33 -> 0
A41: Jackson | B41: ='38 Jackson'!G32 -> MAAO | C41: ='38 Jackson'!O32 -> 62500 | D41: ='38 Jackson'!Q32 -> 65800 | F41: Van Buren | G41: ='80 Van Buren'!G33 -> 0 | H41: ='80 Van Buren'!O33 -> 0 | I41: ='80 Van Buren'!Q33 -> 0
A42: Kalamazoo | B42: ='39 Kalamazoo'!G33 -> 3 | C42: ='39 Kalamazoo'!O33 -> 60424 | D42: ='39 Kalamazoo'!Q33 -> 74152 | F42: Washtenaw | G42: ='81 Washtenaw'!G33 -> 0 | H42: ='81 Washtenaw'!O33 -> 0 | I42: ='81 Washtenaw'!Q33 -> 0
A43: Kalkaska | B43: ='40 Kalkaska'!G33 -> 0 | C43: ='40 Kalkaska'!O33 ->  | D43: ='40 Kalkaska'!Q33 ->  | F43: Wayne | G43: ='82 Wayne'!G33 -> MAAO | H43: ='82 Wayne'!O33 -> 70613 | I43: ='82 Wayne'!Q33 -> 112170
A44: Kent | B44: ='41 Kent'!G33 -> MAAO 3 | C44: ='41 Kent'!O33 -> 73825 | D44: ='41 Kent'!Q33 -> 90942 | F44: Wexford | G44: ='83 Wexford'!G33 -> 2 | H44: ='83 Wexford'!O33 -> 37500 | I44: ='83 Wexford'!Q33 -> 50720
A45: Keweenaw | B45: ='42 Keweenaw'!G33 -> 0 | C45: ='42 Keweenaw'!O33 -> 0 | D45: ='42 Keweenaw'!Q33 -> 0

Sheet Appraiser III Summary
A1: 2022 Michigan Equalization Department Salary Survey
A2: Appraiser III Information
A3: County | B3: Beginning Salary | C3: Ending Salary | E3: County | F3: Beginning Salary | G3: Ending Salary
A4: Alcona | B4: ='01 Alcona'!O38 -> 0 | C4: ='01 Alcona'!Q38 -> 0 | E4: Lake | F4: ='43 Lake'!O38 -> 0 | G4: ='43 Lake'!Q38 -> 0
A5: Alger | B5: ='02 Alger'!O38 -> 0 | C5: ='02 Alger'!Q38 -> 0 | E5: Lapeer | F5: ='44 Lapeer'!O38 -> 0 | G5: ='44 Lapeer'!Q38 -> 0
A6: Allegan | B6: ='03 Allegan'!O38 -> 0 | C6: ='03 Allegan'!Q38 -> 0 | E6: Leelanau | F6: ='45 Leelanau'!O38 -> 39148 | G6: ='45 Leelanau'!Q38 -> 51051
A7: Alpena | B7: ='04 Alpena'!O38 -> 0 | C7: ='04 Alpena'!Q38 -> 0 | E7: Lenawee | F7: ='46 Lenawee'!O38 -> 39767 | G7: ='46 Lenawee'!Q38 -> 45644
A8: Antrim | B8: ='05 Antrim'!O38 -> contact | C8: ='05 Antrim'!Q38 -> 15000 | E8: Livingston | F8: ='47 Livingston'!O38 -> 51499 | G8: ='47 Livingston'!Q38 -> 66948
A9: Arenac | B9: ='06 Arenac'!O38 ->  | C9: ='06 Arenac'!Q38 ->  | E9: Luce | F9: ='48 Luce'!O38 -> 0 | G9: ='48 Luce'!Q38 -> 0
A10: Baraga | B10: ='07 Baraga'!O38 ->  | C10: ='07 Baraga'!Q38 ->  | E10: Mackinac | F10: ='49 Mackinac'!O38 ->  | G10: ='49 Mackinac'!Q38 -> 
A11: Barry | B11: ='08 Barry'!O38 ->  | C11: ='08 Barry'!Q38 ->  | E11: Macomb | F11: ='50 Macomb'!O38 ->  | G11: ='50 Macomb'!Q38 -> 
A12: Bay | B12: ='09 Bay'!O38 -> 50544 | C12: ='09 Bay'!Q38 -> 51563 | E12: Manistee | F12: ='51 Manistee'!O38 ->  | G12: ='51 Manistee'!Q38 -> 
A13: Benzie | B13: ='10 Benzie'!O38 -> 0 | C13: ='10 Benzie'!Q38 -> 0 | E13: Marquette | F13: ='52 Marquette'!O38 -> 20.26/hr | G13: ='52 Marquette'!Q38 -> 25.03/hr
A14: Berrien | B14: ='11 Berrien'!O38 -> 41265 | C14: ='11 Berrien'!Q38 -> 53778 | E14: Mason | F14: ='53 Mason'!Q38 ->  | G14: ='53 Mason'!P38 -> 0
A15: Branch | B15: ='12 Branch'!O38 -> 0 | C15: ='12 Branch'!Q38 -> Contracted | E15: Mecosta | F15: ='54 Mecosta'!O38 ->  | G15: ='54 Mecosta'!Q38 -> 
A16: Calhoun | B16: ='13 Calhoun'!O38 -> 0 | C16: ='13 Calhoun'!Q38 -> 0 | E16: Menominee | F16: ='55 Menominee'!O38 ->  | G16: ='55 Menominee'!Q38 -> 
A17: Cass | B17: ='14 Cass'!O38 -> 0 | C17: ='14 Cass'!Q38 -> 0 | E17: Midland | F17: ='56 Midland'!O38 ->  | G17: ='56 Midland'!Q38 -> 
A18: Charlevoix | B18: ='15 Charlevoix'!O38 -> 41000 | C18: ='15 Charlevoix'!Q38 -> 50000 | E18: Missaukee | F18: ='57 Missaukee'!O38 ->  | G18: ='57 Missaukee'!Q38 -> 
A19: Cheboygan | B19: ='16 Cheboygan'!O38 -> 0 | C19: ='16 Cheboygan'!IR38 -> 0 | E19: Monroe | F19: ='58 Monroe'!O38 -> 44000 | G19: ='58 Monroe'!Q38 -> 55000
A20: Chippewa | B20: ='17 Chippewa'!O38 ->  | C20: ='17 Chippewa'!Q38 ->  | E20: Montcalm | F20: ='59 Montcalm'!O38 -> 0 | G20: ='59 Montcalm'!Q38 -> 
A21: Clare | B21: ='18 Clare'!O38 -> 0 | C21: ='18 Clare'!Q38 -> 0 | E21: Montmorency | F21: ='60 Montmorency'!O38 -> 0 | G21: ='60 Montmorency'!Q38 -> 0
A22: Clinton | B22: ='19 Clinton'!O38 ->  | C22: ='19 Clinton'!Q38 -> 48605 | E22: Muskegon | F22: ='61 Muskegon'!O38 -> 48995 | G22: ='61 Muskegon'!Q38 -> 62980
A23: Crawford | B23: ='20 Crawford'!O38 -> 0 | C23: ='20 Crawford'!Q38 -> 0 | E23: Newaygo | F23: ='62 Newaygo'!O38 ->  | G23: ='62 Newaygo'!Q38 -> 
A24: Delta | B24: ='21 Delta'!O38 -> CONTRACTED | C24: ='21 Delta'!Q38 -> 0 | E24: Oakland | F24: ='63 Oakland'!O38 -> 57489 | G24: ='63 Oakland'!Q38 -> 103219
A25: Dickinson | B25: ='22 Dickinson'!O38 -> 0 | C25: ='22 Dickinson'!Q38 -> 0 | E25: Oceana | F25: ='64 Oceana'!O38 -> 25.75 | G25: ='64 Oceana'!Q38 -> 33.75
A26: Eaton | B26: ='23 Eaton'!O38 -> 42267 | C26: ='23 Eaton'!Q38 -> 55272 | E26: Ogemaw | F26: ='65 Ogemaw'!O38 -> 0 | G26: ='65 Ogemaw'!Q38 -> 0
A27: Emmet | B27: ='24 Emmet'!O38 ->  | C27: ='24 Emmet'!Q38 ->  | E27: Ontonagon | F27: ='66 Ontonagon'!O38 -> 0 | G27: ='66 Ontonagon'!Q38 -> 0
A28: Genesee | B28: ='25 Genesee'!O38 -> 57579 | C28: ='25 Genesee'!Q38 -> 71045 | E28: Osceola | F28: ='67 Osceola'!O387 -> 0 | G28: ='67 Osceola'!Q38 -> 
A29: Gladwin | B29: ='26 Gladwin'!O38 ->  | C29: ='26 Gladwin'!Q38 -> 0 | E29: Oscoda | F29: ='68 Oscoda'!O38 -> 0 | G29: ='68 Oscoda'!Q38 -> 0
A30: Gogebic | B30: ='27 Gogebic'!O38 -> 0 | C30: ='27 Gogebic'!Q38 -> 0 | E30: Otsego | F30: ='69 Otsego'!O38 -> 15.98 | G30: ='69 Otsego'!Q38 -> 21.53
A31: Grand Traverse | B31: ='28 Grand Traverse'!O38 -> 50294 | C31: ='28 Grand Traverse'!Q38 -> 63003 | E31: Ottawa | F31: ='70 Ottawa'!O38 -> 0 | G31: ='70 Ottawa'!Q38 -> 0
A32: Gratiot | B32: ='29 Gratiot'!O38 -> 0 | C32: ='29 Gratiot'!Q38 -> 0 | E32: Perque Isle | F32: ='71 Presque Isle'!O38 -> 0 | G32: ='71 Presque Isle'!Q38 -> 0
A33: Hillsdale | B33: ='30 Hillsdale'!O38 ->  | C33: ='30 Hillsdale'!Q38 ->  | E33: Roscommon | F33: ='72 Roscommon'!O38 -> contract | G33: ='72 Roscommon'!Q38 -> 15000
A34: Houghton | B34: ='31 Houghton'!O38 -> 0 | C34: ='31 Houghton'!Q38 -> 0 | E34: Saginaw | F34: ='73 Saginaw'!O38 -> 0 | G34: ='73 Saginaw'!Q38 -> 0
A35: Huron | B35: ='32 Huron'!O38 ->  | C35: ='32 Huron'!Q38 ->  | E35: St. Clair | F35: ='74 St. Clair'!O38 -> 46995 | G35: ='74 St. Clair'!Q38 -> 61843
A36: Ingham | B36: ='33 Ingham'!O38 -> 53158.82 | C36: ='33 Ingham'!Q38 -> 63815.36 | E36: St. Joseph | F36: ='75 St Joseph'!O38 ->  | G36: ='75 St Joseph'!Q38 -> 
A37: Ionia | B37: ='34 Ionia'!O38 -> 65000 | C37: ='34 Ionia'!Q38 -> 65000 | E37: Sanilac | F37: ='76 Sanilac'!O38 -> 0 | G37: ='76 Sanilac'!Q38 -> 0
A38: Iosco | B38: ='35 Iosco'!O38 -> 0 | C38: ='35 Iosco'!Q38 -> 0 | E38: Schoolcraft | F38: ='77 Schoolcraft'!O38 -> 0 | G38: ='77 Schoolcraft'!Q38 -> 0
A39: Iron | B39: ='36 Iron'!O38 -> 0 | C39: ='36 Iron'!Q38 -> 0 | E39: Shiawassee | F39: ='78 Shiawassee'!O38 -> 0 | G39: ='78 Shiawassee'!Q38 -> 0
A40: Isabella | B40: ='37 Isabella'!O38 ->  | C40: ='37 Isabella'!Q38 ->  | E40: Tuscola | F40: ='79 Tuscola'!O38 -> 0 | G40: ='79 Tuscola'!Q38 -> 0
A41: Jackson | B41: ='38 Jackson'!O37 -> 52644 | C41: ='38 Jackson'!Q37 -> 65800 | E41: Van Buren | F41: ='80 Van Buren'!O38 -> Contracted | G41: ='80 Van Buren'!Q38 -> 0
A42: Kalamazoo | B42: ='39 Kalamazoo'!O38 -> 50419 | C42: ='39 Kalamazoo'!Q38 -> 61880 | E42: Washtenaw | F42: ='81 Washtenaw'!O38 -> 53937 | G42: ='81 Washtenaw'!Q38 -> 71055
A43: Kalkaska | B43: ='40 Kalkaska'!O38 -> 0 | C43: ='40 Kalkaska'!Q38 -> 0 | E43: Wayne | F43: ='82 Wayne'!O38 -> 55000 | G43: ='82 Wayne'!Q38 -> 65314
A44: Kent | B44: ='41 Kent'!O38 -> 52124 | C44: ='41 Kent'!Q38 -> 75858 | E44: Wexford | F44: ='83 Wexford'!O38 ->  | G44: ='83 Wexford'!Q38 -> 
A45: Keweenaw | B45: ='42 Keweenaw'!O38 -> 0 | C45: ='42 Keweenaw'!Q38 -> 0

Sheet Appraiser II Summary
A1: 2022 Michigan Equalization Department Salary Survey
A2: Appraiser II Information
A3: County | B3: Beginning Salary | C3: Ending Salary | E3: County | F3: Beginning Salary | G3: Ending Salary
A4: Alcona | B4: ='01 Alcona'!O39 -> 0 | C4: ='01 Alcona'!Q39 -> 0 | E4: Lake | F4: ='43 Lake'!O39 -> 0 | G4: ='43 Lake'!Q39 -> 0
A5: Alger | B5: ='02 Alger'!O39 -> 0 | C5: ='02 Alger'!Q39 -> 0 | E5: Lapeer | F5: ='44 Lapeer'!O39 -> 0 | G5: ='44 Lapeer'!Q39 -> 0
A6: Allegan | B6: ='03 Allegan'!O39 -> 39027 | C6: ='03 Allegan'!Q39 -> 59259 | E6: Leelanau | F6: ='45 Leelanau'!O39 -> 0 | G6: ='45 Leelanau'!Q39 -> 0
A7: Alpena | B7: ='04 Alpena'!O39 -> 0 | C7: ='04 Alpena'!Q39 -> 0 | E7: Lenawee | F7: ='46 Lenawee'!O39 -> 36148 | G7: ='46 Lenawee'!Q39 -> 41708
A8: Antrim | B8: ='05 Antrim'!O39 -> 0 | C8: ='05 Antrim'!Q39 -> 0 | E8: Livingston | F8: ='47 Livingston'!O39 -> 42561.37 | G8: ='47 Livingston'!Q39 -> 55329
A9: Arenac | B9: ='06 Arenac'!O39 ->  | C9: ='06 Arenac'!Q39 -> 0 | E9: Luce | F9: ='48 Luce'!O39 -> 0 | G9: ='48 Luce'!Q39 -> 0
A10: Baraga | B10: ='07 Baraga'!O39 ->  | C10: ='07 Baraga'!Q39 ->  | E10: Mackinac | F10: ='49 Mackinac'!O39 -> 35089 | G10: ='49 Mackinac'!Q39 -> 41987
A11: Barry | B11: ='08 Barry'!O39 -> 0 | C11: ='08 Barry'!Q39 -> 0 | E11: Macomb | F11: ='50 Macomb'!O39 -> 57918 | G11: ='50 Macomb'!Q39 -> 73454
A12: Bay | B12: ='09 Bay'!O39 -> 0 | C12: ='09 Bay'!Q39 -> 0 | E12: Manistee | F12: ='51 Manistee'!O39 -> 31843 | G12: ='51 Manistee'!Q39 -> 41398
A13: Benzie | B13: ='10 Benzie'!O39 -> 0 | C13: ='10 Benzie'!Q39 -> 0 | E13: Marquette | F13: ='52 Marquette'!O39 -> 21.06/hr | G13: ='52 Marquette'!Q39 -> 25.76nr
A14: Berrien | B14: ='11 Berrien'!O39 -> 34100 | C14: ='11 Berrien'!Q39 -> 44445 | E14: Mason | F14: ='53 Mason'!Q39 -> 46100 | G14: ='53 Mason'!P39 -> 0
A15: Branch | B15: ='12 Branch'!O39 -> 0 | C15: ='12 Branch'!Q39 -> 0 | E15: Mecosta | F15: ='54 Mecosta'!O39 ->  | G15: ='54 Mecosta'!Q39 -> 
A16: Calhoun | B16: ='13 Calhoun'!O39 -> 0 | C16: ='13 Calhoun'!Q39 -> 0 | E16: Menominee | F16: ='55 Menominee'!O39 ->  | G16: ='55 Menominee'!Q39 -> 
A17: Cass | B17: ='14 Cass'!O39 -> 0 | C17: ='14 Cass'!Q39 -> 0 | E17: Midland | F17: ='56 Midland'!O39 ->  | G17: ='56 Midland'!Q39 -> 
A18: Charlevoix | B18: ='15 Charlevoix'!O39 -> 36600 | C18: ='15 Charlevoix'!Q39 -> 44000 | E18: Missaukee | F18: ='57 Missaukee'!O39 ->  | G18: ='57 Missaukee'!Q39 -> 0
A19: Cheboygan | B19: ='16 Cheboygan'!O39 -> 0 | C19: ='16 Cheboygan'!Q39 -> 43831 | E19: Monroe | F19: ='58 Monroe'!O39 -> 0 | G19: ='58 Monroe'!Q39 -> 0
A20: Chippewa | B20: ='17 Chippewa'!O39 -> 37400 | C20: ='17 Chippewa'!Q39 -> 44700 | E20: Montcalm | F20: ='59 Montcalm'!O39 -> 0 | G20: ='59 Montcalm'!Q39 -> 0
A21: Clare | B21: ='18 Clare'!O39 -> 29708.25 | C21: ='18 Clare'!Q39 -> 35949.16 | E21: Montmorency | F21: ='60 Montmorency'!O39 -> 0 | G21: ='60 Montmorency'!Q39 -> 0
A22: Clinton | B22: ='19 Clinton'!O39 ->  | C22: ='19 Clinton'!Q39 ->  | E22: Muskegon | F22: ='61 Muskegon'!O39 -> 43237 | G22: ='61 Muskegon'!Q39 -> 54429
A23: Crawford | B23: ='20 Crawford'!O39 -> 14.75 | C23: ='20 Crawford'!Q39 -> 19.62 | E23: Newaygo | F23: ='62 Newaygo'!O39 -> 38946.13 | G23: ='62 Newaygo'!Q39 -> 45727.76
A24: Delta | B24: ='21 Delta'!O39 -> 0 | C24: ='21 Delta'!Q39 -> 0 | E24: Oakland | F24: ='63 Oakland'!O39 -> 66550 | G24: ='63 Oakland'!Q39 -> 89165
A25: Dickinson | B25: ='22 Dickinson'!O39 -> 0 | C25: ='22 Dickinson'!Q39 -> 0 | E25: Oceana | F25: ='64 Oceana'!O39 -> 21.75 | G25: ='64 Oceana'!Q39 -> 25.75
A26: Eaton | B26: ='23 Eaton'!O39 -> 0 | C26: ='23 Eaton'!Q39 -> 0 | E26: Ogemaw | F26: ='65 Ogemaw'!O39 -> 0 | G26: ='65 Ogemaw'!Q39 -> 0
A27: Emmet | B27: ='24 Emmet'!O39 ->  | C27: ='24 Emmet'!Q39 ->  | E27: Ontonagon | F27: ='66 Ontonagon'!O39 -> 36280 | G27: ='66 Ontonagon'!Q39 -> 38830
A28: Genesee | B28: ='25 Genesee'!O39 -> 61245 | C28: ='25 Genesee'!Q39 -> 75372 | E28: Osceola | F28: ='67 Osceola'!O39 ->  | G28: ='67 Osceola'!Q39 -> 
A29: Gladwin | B29: ='26 Gladwin'!O39 ->  | C29: ='26 Gladwin'!Q39 ->  | E29: Oscoda | F29: ='68 Oscoda'!O38 -> 0 | G29: ='68 Oscoda'!Q39 -> 0
A30: Gogebic | B30: ='27 Gogebic'!O39 -> 0 | C30: ='27 Gogebic'!Q39 -> 0 | E30: Otsego | F30: ='69 Otsego'!O39 -> 0 | G30: ='69 Otsego'!Q39 -> 0
A31: Grand Traverse | B31: ='28 Grand Traverse'!O39 -> 45697 | C31: ='28 Grand Traverse'!Q39 -> 57262 | E31: Ottawa | F31: ='70 Ottawa'!O39 -> 56740 | G31: ='70 Ottawa'!Q39 -> 73772
A32: Gratiot | B32: ='29 Gratiot'!O39 -> 0 | C32: ='29 Gratiot'!Q39 -> 0 | E32: Perque Isle | F32: ='71 Presque Isle'!O39 -> 0 | G32: ='71 Presque Isle'!Q39 -> 0
A33: Hillsdale | B33: ='30 Hillsdale'!O39 -> 31595 | C33: ='30 Hillsdale'!Q39 -> 39910 | E33: Roscommon | F33: ='72 Roscommon'!O39 -> 0 | G33: ='72 Roscommon'!Q39 -> 
A34: Houghton | B34: ='31 Houghton'!O39 -> 40000 | C34: ='31 Houghton'!Q39 -> 50000 | E34: Saginaw | F34: ='73 Saginaw'!O39 -> 48261 | G34: ='73 Saginaw'!Q39 -> 60219
A35: Huron | B35: ='32 Huron'!O39 ->  | C35: ='32 Huron'!Q39 ->  | E35: St. Clair | F35: ='74 St. Clair'!O39 -> 43450 | G35: ='74 St. Clair'!Q39 -> 57176
A36: Ingham | B36: ='33 Ingham'!O39 -> 53159.82 | C36: ='33 Ingham'!Q39 -> 63815.36 | E36: St. Joseph | F36: ='75 St Joseph'!O39 -> 40852 | G36: ='75 St Joseph'!Q39 -> 53110
A37: Ionia | B37: ='34 Ionia'!O39 ->  | C37: ='34 Ionia'!Q39 ->  | E37: Sanilac | F37: ='76 Sanilac'!O39 -> 0 | G37: ='76 Sanilac'!Q39 -> 0
A38: Iosco | B38: ='35 Iosco'!O39 ->  | C38: ='35 Iosco'!Q39 ->  | E38: Schoolcraft | F38: ='77 Schoolcraft'!O39 -> 0 | G38: ='77 Schoolcraft'!Q39 -> 0
A39: Iron | B39: ='36 Iron'!O39 -> 0 | C39: ='36 Iron'!Q39 ->  | E39: Shiawassee | F39: ='78 Shiawassee'!O39 -> 0 | G39: ='78 Shiawassee'!Q39 -> 0
A40: Isabella | B40: ='37 Isabella'!O39 ->  | C40: ='37 Isabella'!Q39 ->  | E40: Tuscola | F40: ='79 Tuscola'!O39 -> 41515 | G40: ='79 Tuscola'!Q39 -> 45513
A41: Jackson | B41: ='38 Jackson'!O38 -> 45559 | C41: ='38 Jackson'!Q38 -> 56971 | E41: Van Buren | F41: ='80 Van Buren'!O39 -> Contracted | G41: ='80 Van Buren'!Q39 -> 0
A42: Kalamazoo | B42: ='39 Kalamazoo'!O39 -> 0 | C42: ='39 Kalamazoo'!Q39 -> 0 | E42: Washtenaw | F42: ='81 Washtenaw'!O39 -> 0 | G42: ='81 Washtenaw'!Q39 -> 0
A43: Kalkaska | B43: ='40 Kalkaska'!O39 -> 0 | C43: ='40 Kalkaska'!Q39 -> 0 | E43: Wayne | F43: ='82 Wayne'!O39 -> 42000 | G43: ='82 Wayne'!Q39 -> 54022
A44: Kent | B44: ='41 Kent'!O39 -> 0 | C44: ='41 Kent'!Q39 -> 0 | E44: Wexford | F44: ='83 Wexford'!O39 -> 28100 | G44: ='83 Wexford'!Q39 -> 39000
A45: Keweenaw | B45: ='42 Keweenaw'!O39 -> 0 | C45: ='42 Keweenaw'!Q39 -> 0

Sheet Appraiser I Summary
A1: 2022 Michigan Equalization Department Salary Survey
A2: Appraiser I Information
A3: County | B3: Beginning Salary | C3: Ending Salary | E3: County | F3: Beginning Salary | G3: Ending Salary
A4: Alcona | B4: ='01 Alcona'!O40 ->  | C4: ='01 Alcona'!Q40 -> 35963 | E4: Lake | F4: ='43 Lake'!O40 -> 40617 | G4: ='43 Lake'!Q40 -> 0
A5: Alger | B5: ='02 Alger'!O40 -> 0 | C5: ='02 Alger'!Q40 -> 0 | E5: Lapeer | F5: ='44 Lapeer'!O40 -> 28000 | G5: ='44 Lapeer'!Q40 -> 38000
A6: Allegan | B6: ='03 Allegan'!O40 -> 39027 | C6: ='03 Allegan'!Q40 -> 45593 | E6: Leelanau | F6: ='45 Leelanau'!O40 ->  | G6: ='45 Leelanau'!Q40 -> 
A7: Alpena | B7: ='04 Alpena'!O40 -> 0 | C7: ='04 Alpena'!Q40 -> 0 | E7: Lenawee | F7: ='46 Lenawee'!O40 ->  | G7: ='46 Lenawee'!Q40 -> 
A8: Antrim | B8: ='05 Antrim'!O40 -> 0 | C8: ='05 Antrim'!Q40 -> 36975 | E8: Livingston | F8: ='47 Livingston'!O40 ->  | G8: ='47 Livingston'!Q40 -> 
A9: Arenac | B9: ='06 Arenac'!O40 ->  | C9: ='06 Arenac'!Q40 ->  | E9: Luce | F9: ='48 Luce'!O40 -> 0 | G9: ='48 Luce'!Q40 -> 0
A10: Baraga | B10: ='07 Baraga'!O40 ->  | C10: ='07 Baraga'!Q40 ->  | E10: Mackinac | F10: ='49 Mackinac'!O40 -> 37710 | G10: ='49 Mackinac'!Q40 -> 44699
A11: Barry | B11: ='08 Barry'!O40 -> 37668.8 | C11: ='08 Barry'!Q40 -> 45011.2 | E11: Macomb | F11: ='50 Macomb'!O40 -> 0 | G11: ='50 Macomb'!Q40 -> 0
A12: Bay | B12: ='09 Bay'!O40 -> 0 | C12: ='09 Bay'!Q40 -> 0 | E12: Manistee | F12: ='51 Manistee'!O40 ->  | G12: ='51 Manistee'!Q40 -> 
A13: Benzie | B13: ='10 Benzie'!O40 -> 0 | C13: ='10 Benzie'!Q40 -> 0 | E13: Marquette | F13: ='52 Marquette'!O40 ->  | G13: ='52 Marquette'!Q40 -> 
A14: Berrien | B14: ='11 Berrien'!O40 -> 28184 | C14: ='11 Berrien'!Q40 -> 36731 | E14: Mason | F14: ='53 Mason'!Q40 ->  | G14: ='53 Mason'!P40 -> 0
A15: Branch | B15: ='12 Branch'!O40 -> 0 | C15: ='12 Branch'!Q40 -> 0 | E15: Mecosta | F15: ='54 Mecosta'!O40 -> 32818 | G15: ='54 Mecosta'!Q40 -> 41028
A16: Calhoun | B16: ='13 Calhoun'!O40 -> 0 | C16: ='13 Calhoun'!Q40 -> 0 | E16: Menominee | F16: ='55 Menominee'!O40 ->  | G16: ='55 Menominee'!Q40 -> 
A17: Cass | B17: ='14 Cass'!O40 -> 0 | C17: ='14 Cass'!Q40 -> 0 | E17: Midland | F17: ='56 Midland'!O40 -> 52900 | G17: ='56 Midland'!Q40 -> 68800
A18: Charlevoix | B18: ='15 Charlevoix'!O40 -> 0 | C18: ='15 Charlevoix'!Q40 -> 0 | E18: Missaukee | F18: ='57 Missaukee'!O40 ->  | G18: ='57 Missaukee'!Q40 -> 
A19: Cheboygan | B19: ='16 Cheboygan'!O40 ->  | C19: ='16 Cheboygan'!IQ40 -> 0 | E19: Monroe | F19: ='58 Monroe'!O40 ->  | G19: ='58 Monroe'!Q40 -> 
A20: Chippewa | B20: ='17 Chippewa'!O40 ->  | C20: ='17 Chippewa'!Q40 ->  | E20: Montcalm | F20: ='59 Montcalm'!O40 -> 34174 | G20: ='59 Montcalm'!Q40 -> 40435
A21: Clare | B21: ='18 Clare'!O40 -> 0 | C21: ='18 Clare'!Q40 -> 0 | E21: Montmorency | F21: ='60 Montmorency'!O40 -> 0 | G21: ='60 Montmorency'!Q40 -> 0
A22: Clinton | B22: ='19 Clinton'!O40 ->  | C22: ='19 Clinton'!Q40 ->  | E22: Muskegon | F22: ='61 Muskegon'!O40 -> 35071 | G22: ='61 Muskegon'!Q40 -> 43216
A23: Crawford | B23: ='20 Crawford'!O40 -> 0 | C23: ='20 Crawford'!Q40 -> 0 | E23: Newaygo | F23: ='62 Newaygo'!O40 -> 38946.13 | G23: ='62 Newaygo'!Q40 -> 45727.76
A24: Delta | B24: ='21 Delta'!O40 -> 0 | C24: ='21 Delta'!Q40 -> 0 | E24: Oakland | F24: ='63 Oakland'!O40 -> 57489 | G24: ='63 Oakland'!Q40 -> 77023
A25: Dickinson | B25: ='22 Dickinson'!O40 -> 0 | C25: ='22 Dickinson'!Q40 -> 0 | E25: Oceana | F25: ='64 Oceana'!O40 -> 0 | G25: ='64 Oceana'!Q40 -> 0
A26: Eaton | B26: ='23 Eaton'!O40 ->  | C26: ='23 Eaton'!Q40 ->  | E26: Ogemaw | F26: ='65 Ogemaw'!O40 -> 16.91 | G26: ='65 Ogemaw'!Q40 -> 19.7
A27: Emmet | B27: ='24 Emmet'!O40 -> 44000 | C27: ='24 Emmet'!Q40 ->  | E27: Ontonagon | F27: ='66 Ontonagon'!O40 -> 34060 | G27: ='66 Ontonagon'!Q40 -> 36610
A28: Genesee | B28: ='25 Genesee'!O40 ->  | C28: ='25 Genesee'!Q40 ->  | E28: Osceola | F28: ='67 Osceola'!O40 -> 0 | G28: ='67 Osceola'!Q40 -> 0
A29: Gladwin | B29: ='26 Gladwin'!O40 ->  | C29: ='26 Gladwin'!Q40 ->  | E29: Oscoda | F29: ='68 Oscoda'!O40 -> 0 | G29: ='68 Oscoda'!Q40 -> 0
A30: Gogebic | B30: ='27 Gogebic'!O40 -> 0 | C30: ='27 Gogebic'!Q40 -> 0 | E30: Otsego | F30: ='69 Otsego'!O40 ->  | G30: ='69 Otsego'!Q40 -> 
A31: Grand Traverse | B31: ='28 Grand Traverse'!O40 -> 36171 | C31: ='28 Grand Traverse'!Q40 -> 45281 | E31: Ottawa | F31: ='70 Ottawa'!O40 -> 0 | G31: ='70 Ottawa'!Q40 -> 0
A32: Gratiot | B32: ='29 Gratiot'!O40 -> 0 | C32: ='29 Gratiot'!Q40 -> 0 | E32: Perque Isle | F32: ='71 Presque Isle'!O40 -> 0 | G32: ='71 Presque Isle'!Q40 -> 0
A33: Hillsdale | B33: ='30 Hillsdale'!O40 -> 29453 | C33: ='30 Hillsdale'!Q40 -> 37520 | E33: Roscommon | F33: ='72 Roscommon'!O40 ->  | G33: ='72 Roscommon'!Q40 -> 41690
A34: Houghton | B34: ='31 Houghton'!O40 ->  | C34: ='31 Houghton'!Q40 ->  | E34: Saginaw | F34: ='73 Saginaw'!O40 -> 51634 | G34: ='73 Saginaw'!Q40 -> 67992
A35: Huron | B35: ='32 Huron'!O40 ->  | C35: ='32 Huron'!Q40 ->  | E35: St. Clair | F35: ='74 St. Clair'!O40 -> 38627 | G35: ='74 St. Clair'!Q40 -> 50830
A36: Ingham | B36: ='33 Ingham'!O40 -> 48571.1 | C36: ='33 Ingham'!Q40 -> 58307.73 | E36: St. Joseph | F36: ='75 St Joseph'!O40 ->  | G36: ='75 St Joseph'!Q40 -> 
A37: Ionia | B37: ='34 Ionia'!O40 ->  | C37: ='34 Ionia'!Q40 ->  | E37: Sanilac | F37: ='76 Sanilac'!O40 -> 0 | G37: ='76 Sanilac'!Q40 -> 0
A38: Iosco | B38: ='35 Iosco'!O40 -> 27008 | C38: ='35 Iosco'!Q40 -> 32104 | E38: Schoolcraft | F38: ='77 Schoolcraft'!O40 -> 0 | G38: ='77 Schoolcraft'!Q40 -> 0
A39: Iron | B39: ='36 Iron'!O40 ->  | C39: ='36 Iron'!Q40 ->  | E39: Shiawassee | F39: ='78 Shiawassee'!O40 -> 0 | G39: ='78 Shiawassee'!Q40 -> 0
A40: Isabella | B40: ='37 Isabella'!O40 -> 41285 | C40: ='37 Isabella'!Q40 -> 51031 | E40: Tuscola | F40: ='79 Tuscola'!O40 -> 0 | G40: ='79 Tuscola'!Q40 -> 0
A41: Jackson | B41: ='38 Jackson'!O39 -> 0 | C41: ='38 Jackson'!Q39 -> 0 | E41: Van Buren | F41: ='80 Van Buren'!O40 -> 0 | G41: ='80 Van Buren'!Q40 -> 0
A42: Kalamazoo | B42: ='39 Kalamazoo'!O40 -> 0 | C42: ='39 Kalamazoo'!Q40 -> 0 | E42: Washtenaw | F42: ='81 Washtenaw'!O40 ->  | G42: ='81 Washtenaw'!Q40 -> 
A43: Kalkaska | B43: ='40 Kalkaska'!O40 -> 0 | C43: ='40 Kalkaska'!Q40 -> 0 | E43: Wayne | F43: ='82 Wayne'!O40 -> 32699 | G43: ='82 Wayne'!Q40 -> 49093
A44: Kent | B44: ='41 Kent'!O40 -> 37835 | C44: ='41 Kent'!Q40 -> 54995 | E44: Wexford | F44: ='83 Wexford'!O40 ->  | G44: ='83 Wexford'!Q40 -> 
A45: Keweenaw | B45: ='42 Keweenaw'!O40 ->  | C45: ='42 Keweenaw'!Q40 -> 

Sheet 01 Alcona
A1: 2017 Michigan Equalization Department Salary Survey
A2: COUNTY OF | D2: ALCONA | K2: CLICK HERE TO RETURN TO DIRECTOR SUMMARY PAGE
A4: Director | C4: Troy M Somers | J4: Private Phone: | L4: 989-724-9430 | R4: E-mail: | S4: troysomers@hotmail.com
A5: Alternate: | C5: Erin Mahalak | J5: Private Phone: | L5: 989-724-9430 | R5: E-mail: | S5: popov_princess@yahoo.com
A8: General County Information for the year 2016 | J8: Additional Duties and Responsibilities | R8: General Office Information for the year 2016
A10: 1966 | B10: Dept. Established: | E10: 0.04 | F10: % General Fund | J10: x | K10: Apportionment | N10: x | O10: Tax Bills | R10: Business Hrs: | T10: 8:30 to 12:00 & 1:00 to 4:30 | X10: Office Fax #: | Z10: 989-724-9439
A11: 1 | B11: No. of Cities: | E11: 0.4 | F11: Auto Allowance | J11: x | K11: Property Desc. | N11: x | O11: Addressing | R11: Office Phone: | T11: 989-724-9430 | X11: Website: | Z11: alconacountymi.com
A12: 11 | B12: No.of Townships: | E12: y | F12: Fringe Benefits | K12: Assessing Units | O12: Website | R12: Address: | T12: PO Box 322
A13: 1 | B13: No.of Villages: | E13: 2017 Budget | J13: x | K13: Data Processing | N13: x | O13: Mapping/GIS | T13: Harrisville MI 48740
A14: 35 | B14: No of hrs. per week | E14: 192269
A15: 3 | B15: No. of Staff (FTEE) | E15: 2017 Revenue(s) | J15: (detail:)
E16: 40000
T18: Fringe Benefits for the year 2016
A19: 2016 Valuation Information
T20: LEAVE POLICY: | U20: Vacation Days
G21: No. of | I21: Assessed | M21: % of | O21: Taxable | T21: y | U21: Personal Days | X21: y | Y21: Sick Days
G22: Parcels | I22: Valuations | M22: Total | O22: Valuations | T22: n | U22: (detail:) | Y22: Other
B23: Real Property | G23: 18579 | I23: 755295000 | M23: 0.952 | O23: 697947364 | T23: Y | V23: Vacation 1 year=2 wks, 5 years=3wks & 15 years=4wks. Union get 2 personal days
B24: Personal Property | G24: 961 | I24: 38019700 | M24: 0.048 | O24: 38019700
B25: Total | G25: 19540 | I25: 793314700 | M25: 1 | O25: 735967064
T26: PENSION:
T27: y | U27: Mers | Y27: 401K
A28: Director, Management & Supervision Survey for 2016 | U28: (detail:) | Y28: Other
A30: Position | C30: No of years in: | G30: S.A.B. Level | K30: Personal | M30: No. in | O30: 2010
C31: Position | E31: Assmt Adm | G31: Required | I31: Held | K31: Prop. Exmnr | M31: Position | O31: Salary Range
A32: Director | C32: 9 | E32: 18 | G32: MAAO | I32: MAAO | K32: Y | M32: 1 | Q32: 44800 | T32: LONGEVITY: | U32: (detail:)
A33: Deputy/Asst. | V33: Union 15 years .20 per hour for all the hours paid in the previous year. 20 years .40 per hour for all the hours paid in the previous year. Director get $500 for 15 years & $1000 for 20 years
T36: HEALTH:
A37: Staff Survey for 2016 | C37: for 2016 | T37: y | U37: BC/BS | X37: y | Y37: Dental
A38: Appraiser III | U38: HMO | X38: y | Y38: Vision
A39: Appraiser II | U39: (detail:) | Y39: Other
A40: Appraiser I | G40: MCAO | I40: MCAO | M40: 1 | Q40: 35963
A41: P/P Auditor
A42: GIS/Mapping
A43: Clerical | T43: LIFE INSURANCE: | U43: (detail:)
A44: Dis Clerk | I44: MCAT | M44: 1 | Q44: 28736
T47: OTHER: | U47: (detail:)
A49: *Additional Comments:
A52: Tempory Changes Due To COVID-19:

Sheet 02 Alger
A1: 2022 Michigan Equalization Department Salary Survey
A2: COUNTY OF | D2: ALGER | K2: CLICK HERE TO RETURN TO DIRECTOR SUMMARY PAGE
A4: Director | C4: Dulcee Ranta | J4: Private Phone: | L4: 906-250-2613 | R4: E-mail: | S4: dulceeranta@gmail.com
A5: Alternate: | J5: Private Phone: | R5: E-mail:
A8: General County Information | J8: Additional Duties and Responsibilities | R8: General Office Information
B10: Dept. Established: | F10: % General Fund | K10: Apportionment | O10: Tax Bills | R10: Business Hrs: | T10: 8:00 to 4:00 | X10: Office Fax #:
A11: 1 | B11: No. of Cities: | F11: Auto Allowance | K11: Property Desc. | O11: Addressing | R11: Office Phone: | T11: 906-387-2567 | X11: Website:
A12: 8 | B12: No.of Townships: | F12: Fringe Benefits | K12: Assessing Units | O12: Website | R12: Address:
A13: 1 | B13: No.of Villages: | E13: 2022 Budget | K13: Data Processing | O13: Mapping/GIS
B14: No of hrs. per week | K14: Other | O14: Other | R14: Fax:
A15: 1 | B15: No. of Staff (FTEE) | E15: 2022 Revenue(s) | J15: (detail:)
T18: Fringe Benefits
A19: Valuation Information | G19: CURRENT SOFTWARE | L19: BS & A
T20: LEAVE POLICY:
G21: No. of | I21: Assessed | M21: % of | O21: Taxable | U21: Vacation Days | Y21: Sick Days
G22: Parcels | I22: Valuations | M22: Total | O22: Valuations | U22: Personal Days | Y22: Other | Z22: Holidays
B23: Real Property | U23: (detail:)
B24: Personal Property
B25: Total
B26: Exempt | T26: PENSION:
U27: Mers | Y27: 401K
A28: Director, Management & Supervision | U28: Defined Contr | Y28: Other | Z28: Defined Benefit
U29: (detail:)
A30: Position | C30: No of years in: | G30: S.T.C. Level | K30: Personal | M30: No. in | O30: 2022
C31: Position | E31: Assmt Adm | G31: Required | I31: Held | K31: Prop. Exmnr | M31: Position | O31: Salary Range
A32: Director | C32: 2 | E32: 16 | G32: MAAO | I32: MMAO | K32: Y | O32: CONTRACT | Q32: 30750 | T32: LONGEVITY:
A33: Deputy/Asst. | T33: N/A | U33: (detail:)
T36: HEALTH:
A37: Staff | U37: BC/BS Type | Y37: Dental
A38: Appraiser III | U38: HMO | Y38: Vision
A39: Appraiser II | U39: Cafeteria | Y39: Other
A40: Appraiser I | U40: (detail:)
A41: P/P Auditor
A42: GIS/Mapping
A43: Clerical | I43: MAAO | T43: LIFE INSURANCE:
T47: OTHER:
A49: *Additional Comments:
A52: Tempory Changes Due To COVID-19:

Sheet 03 Allegan
A1: 2020 Michigan Equalization Department Salary Survey
A2: COUNTY OF | D2: ALLEGAN | K2: CLICK HERE TO RETURN TO DIRECTOR SUMMARY PAGE
A4: Director | C4: Matt Woolford | J4: Private Phone: | L4: 616-632-7544 | R4: E-mail: | S4: mwoolford@allegancounty.org
A5: Alternate: | C5: Steve Rickers | J5: Private Phone: | L5: 616-648-2125 | R5: E-mail: | S5: srickers@allegancounty.org
A8: General County Information | J8: Additional Duties and Responsibilities | R8: General Office Information
B10: Dept. Established: | F10: % General Fund | J10: x | K10: Apportionment | O10: Tax Bills | R10: Business Hrs: | T10: 8 - 5 Mon- Fri | X10: Office Fax #: | Z10: 269 673-0312
A11: 9 | B11: No. of Cities: | E11: .30 to .50 | F11: Auto Allowance | J11: x | K11: Property Desc. | O11: Addressing | R11: Office Phone: | T11: 269 673-0230 | X11: Website: | Z11: www.allegancounty.org
A12: 24 | B12: No.of Townships: | F12: Fringe Benefits | K12: Assessing Units | N12: x | O12: Website | R12: Address: | T12: 3283 122nd Ave
A13: 2 | B13: No.of Villages: | E13: 2020 Budget | K13: Data Processing | N13: x | O13: Mapping/GIS | T13: Allegan, MI 49010
A14: 40 | B14: No of hrs. per week | E14: 446069 | K14: Other | O14: Other
A15: 6 | B15: No. of Staff (FTEE) | E15: 2020 Revenue(s) | J15: (detail:) | K15: Equalization maps and maintains the base layer only, Splits and combinations.
E16: 15417
T18: Fringe Benefits
A19: Valuation Information | G19: CURRENT SOFTWARE | L19: BS&A .NET
T20: LEAVE POLICY:
G21: No. of | I21: Assessed | M21: % of | O21: Taxable | T21: x | U21: Vacation Days | X21: 0 | Y21: Sick Days
G22: Parcels | I22: Valuations | M22: Total | O22: Valuations | T22: 0 | U22: Personal Days | X22: 0 | Y22: Other
B23: Real Property | G23: 63411 | I23: 6893397900 | J23: 4570709389 | K23: 4570709389 | L23: 4570709389 | M23: =I23/K25 -> 0.9524444104 | O23: 4860346656 | P23: 3695745948 | Q23: 3695745948 | R23: 3695745948 | U23: (detail:) | V23: 80 hrs given 1st of each yr. Time is then earned per pay period 1st yr 1.54 hrs,2nd 3.08hrs, then .30 added annually up to 12 yr. Max at 6.16 hrs. Bank time allowance is 280hr. Must use annually 1/2 of annual hours earned.
B24: Personal Property | G24: 3791 | I24: 344187648 | K24: 430653865 | M24: =I24/K25 -> 0.0475555896 | O24: 344160553 | P24: 430514163 | Q24: 430514163 | R24: 430514163
B25: Total | G25: 67202 | K25: =I23+I24 -> 7237585548 | M25: 1 | O25: =O23+O24 -> 5204507209
T26: PENSION:
T27: x | U27: Mers | X27: x | Y27: 401K
A28: Director, Management & Supervision | T28: x | U28: Defined Contr | Y28: Other | Z28: Defined Benefit
U29: (detail:) | V29: County contributes 4% if employee contributes 2%. County will match 2%.
A30: Position | C30: No of years in: | G30: S.T.C. Level | K30: Personal | M30: No. in | O30: 2020
C31: Position | E31: Assmt Adm | G31: Required | I31: Held | K31: Prop. Exmnr | M31: Position | O31: Salary Range
A32: Director | C32: 4 | E32: 28 | G32: MMAO 4 | I32: MMAO (4) | K32: Yes | M32: 1 | O32: see Kent County | Q32: see Kent County | T32: LONGEVITY:
A33: Deputy/Asst. | C33: 2 | E33: 34 | G33: MAAO 3 | I33: MAAO 3 | K33: Yes | M33: 1 | O33: 65862 | Q33: 97156 | U33: (detail:) | V33: Eliminated 2012
T36: HEALTH:
A37: Staff | T37: x | U37: BC/BS Type | X37: x | Y37: Dental
A38: Appraiser III | G38: MAAO 3 | U38: HMO | X38: Optional | Y38: Vision
A39: Appraiser II | G39: MCAO | I39: MCAO | M39: 1 | O39: 39027 | Q39: 59259 | U39: Cafeteria | Y39: Other
A40: Appraiser II | G40: MCAO | I40: MCAO | M40: 1 | O40: 39027 | Q40: 45593 | U40: (detail:) | V40: BC/BS Traditional or PPO 20% employee contribution.
A41: P/P Auditor
A42: GIS/Mapping | M42: Vacant
A43: Equalization Technician | I43: 1 | M43: 1 | O43: 30244 | Q43: 36836 | T43: LIFE INSURANCE:
U44: (detail:) | V44: Term life insurances $20000
T47: OTHER:
U48: (detail:)
A49: *Additional Comments:
A50: Beginning in 2016, Allegan contracts for Equalization Director Services with Kent County. Allegan provides a full time deputy director at the Director salary level and Kent provides administration services to Allegan.

Sheet 04 Alpena
A1: 2017 Michigan Equalization Department Salary Survey
A2: COUNTY OF | D2: ALPENA | K2: CLICK HERE TO RETURN TO DIRECTOR SUMMARY PAGE
A4: Director | C4: Ted Somers | J4: Private Phone: | L4: 989-354-9560 | R4: E-mail: | S4: somerst@alpenacounty.org
A5: Alternate: | J5: Private Phone: | R5: E-mail:
A8: General County Information | J8: Additional Duties and Responsibilities | R8: General Office Information
B10: Dept. Established: | F10: % General Fund | J10: * | K10: Apportionment | N10: * | O10: Tax Bills | R10: Business Hrs: | T10: 8-4:30 | X10: Office Fax #:
A11: 1 | B11: No. of Cities: | F11: Auto Allowance | K11: Property Desc. | N11: * | O11: Addressing | R11: Office Phone: | T11: 989-354-9560 | X11: Website: | Z11: alpenacounty.org
A12: 8 | B12: No.of Townships: | F12: Fringe Benefits | K12: Assessing Units | O12: Website | R12: Address: | T12: 720 W Chisholm St
B13: No.of Villages: | E13: 2017 Budget | J13: * | K13: Data Processing | O13: Mapping/GIS | T13: Alpena MI
A14: 40 | B14: No of hrs. per week | E14: 204800 | K14: Other | O14: Other | R14: Fax: | T14: 49707
A15: 2 | B15: No. of Staff (FTEE) | E15: 2017 Revenue(s) | J15: (detail:)
E16: 32100
T18: Fringe Benefits
A19: Valuation Information | G19: CURRENT SOFTWARE | L19: BS & A
T20: LEAVE POLICY:
G21: No. of | I21: Assessed | M21: % of | O21: Taxable | T21: * | U21: Vacation Days | Y21: Sick Days
G22: Parcels | I22: Valuations | M22: Total | O22: Valuations | U22: Personal Days | X22: * | Y22: Other | Z22: Holidays
B23: Real Property | G23: 21297 | I23: 970077700 | O23: 834133999 | U23: (detail:)
B24: Personal Property | G24: 1399 | I24: 71666280 | O24: 71666280
B25: Total | I25: 1041743980 | O25: 905800279
B26: Exempt | T26: PENSION:
U27: Mers | Y27: 401K
A28: Director, Management & Supervision | T28: * | U28: Defined Contr | Y28: Other | Z28: Defined Benefit
U29: (detail:)
A30: Position | C30: No of years in: | G30: S.T.C. Level | K30: Personal | M30: No. in | O30: 2016
C31: Position | E31: Assmt Adm | G31: Required | I31: Held | K31: Prop. Exmnr | M31: Position | O31: Salary Range
A32: Director | G32: MAAO | I32: MAAO | K32: yes | Q32: 48000 | T32: LONGEVITY:
A33: Deputy/Asst. | T33: N/A | U33: (detail:)
T36: HEALTH:
A37: Staff | U37: BC/BS Type | Y37: Dental
A38: Appraiser III | U38: HMO | Y38: Vision
A39: Appraiser II | U39: Cafeteria | Y39: Other
A40: Appraiser I | U40: (detail:)
A41: P/P Auditor
A42: GIS/Mapping
A43: Clerical | M43: 3 | T43: LIFE INSURANCE:
T47: OTHER:
A49: *Additional Comments:
A52: Tempory Changes Due To COVID-19:

Sheet 05 Antrim
A1: 2022 Michigan Equalization Department Salary Survey
A2: COUNTY OF | D2: ANTRIM | K2: CLICK HERE TO RETURN TO DIRECTOR SUMMARY PAGE
A4: Director | C4: Jamie Houserman | J4: Private Phone: | L4: 989-205-0599 | R4: E-mail: | S4: housermanj@antrimcounty.org
A5: Alternate: | J5: Private Phone: | L5: N/A | R5: E-mail:
A8: General County Information | J8: Additional Duties and Responsibilities | R8: General Office Information
A10: 1966 | B10: Dept. Established: | E10: 0.0288 | F10: % General Fund | J10: x | K10: Apportionment | O10: Tax Bills | R10: Business Hrs: | T10: 8:30 - 5:00 | X10: Office Fax #:
A11: 0 | B11: No. of Cities: | E11: 0.535 | F11: Auto Allowance | J11: x | K11: Property Desc. | N11: x | O11: Addressing | R11: Office Phone: | T11: 231-533-6329 | X11: Website: | Z11: www.antrimcounty.org
A12: 15 | B12: No.of Townships: | F12: Fringe Benefits | K12: Assessing Units | N12: x | O12: Website | R12: Address: | T12: PO Box 541
A13: 5 | B13: No.of Villages: | E13: Budget | J13: x | K13: Data Processing | N13: x | O13: Mapping/GIS | T13: Bellaire, MI 49615
A14: 37.5 | B14: No of hrs. per week | E14: 303643 | K14: Other | O14: Other | R14: Fax:
A15: 3 | B15: No. of Staff (FTEE) | E15: Revenue(s) | J15: (detail:)
E16: None
T18: Fringe Benefits
A19: Valuation Information | G19: CURRENT SOFTWARE | L19: BS & A
T20: LEAVE POLICY:
G21: No. of | I21: Assessed | M21: % of | O21: Taxable | T21: x | U21: Vacation Days | X21: x | Y21: Sick Days
G22: Parcels | I22: Valuations | M22: Total | O22: Valuations | T22: x | U22: Personal Days | X22: x | Y22: Other | Z22: Holidays - 12.5 Days
B23: Real Property | G23: 35557 | I23: 2667256390 | M23: =I23/I25 -> 0.9685082961 | O23: 2000769911 | U23: (detail:)
B24: Personal Property | G24: 1021 | I24: 86727650 | M24: =I24/I25 -> 0.03149170392 | O24: =I24 -> 86727650
B25: Total | G25: =SUM(G23:G24) -> 36578 | I25: =SUM(I23:I24) -> 2753984040 | M25: =SUM(M23:M24) -> 1 | O25: =SUM(O23:O24) -> 2087497561
B26: Exempt | G26: 1247 | T26: PENSION:
T27: x | U27: Mers | Y27: 401K
A28: Director, Management & Supervision | U28: Defined Contr | X28: x | Y28: Other | Z28: Defined Benefit
U29: (detail:) | V29: MERS B-4 100% County Paid for Employees Hired Prior to 01/01/15; MERS Hybrid - Employees Hired On or After 01/01/15
A30: Position | C30: No of years in: | G30: S.T.C. Level | K30: Personal | M30: No. in
C31: Position | E31: Assmt Adm | G31: Required | I31: Held | K31: Prop. Exmnr | M31: Position | O31: Salary Range
A32: Director/Deputy Director | C32: 7 | E32: 14 | G32: 3 | I32: 4 | K32: Yes | M32: 2 | O32: contact | Q32: 100000 | T32: LONGEVITY:
T33: None | U33: (detail:)
T36: HEALTH:
A37: Staff | T37: x | U37: BC/BS Type | X37: x | Y37: Dental
A38: Appraiser III | G38: 3 | I38: 4 | K38: Yes | M38: 3 | O38: contact | Q38: 15000 | U38: HMO | X38: x | Y38: Vision
A39: Appraiser II | U39: Cafeteria | Y39: Other
A40: Appraiser I | G40: 2 | I40: 2 | K40: Yes | M40: 2 | Q40: 36975 | U40: (detail:)
A41: P/P Auditor
A42: GIS/Mapping | G42: MCAT | I42: MCAT | K42: Yes | M42: 1 | Q42: 42900
A43: Clerical | G43: MCAT | I43: None | K43: No | M43: 4 | O43: contract | Q43: 25000 | T43: LIFE INSURANCE:
T44: $25,000 Term Life
T47: OTHER:
T48: Deferred Comp Plan
A49: *Additional Comments: | T49: Funeral Leave - Instate 3 Days, Out of State 5 Days
A52: Tempory Changes Due To COVID-19:
A53: None

Sheet 06 Arenac
A1: 2020 Michigan Equalization Department Salary Survey
A2: COUNTY OF | D2: ARENAC | K2: CLICK HERE TO RETURN TO DIRECTOR SUMMARY PAGE
A4: Director | C4: Anthony E. Meyaard | J4: Private Phone: | L4: 616-836-6720 | R4: E-mail: | S4: ameyaard@arenaccountymi.gov
A5: Alternate: | J5: Private Phone: | R5: E-mail:
A8: General County Information | J8: Additional Duties and Responsibilities | R8: General Office Information
A10: 1968 | B10: Dept. Established: | F10: % General Fund | J10: x | K10: Apportionment | N10: x | O10: Tax Bills | R10: Business Hrs: | T10: Mon-Fri 9am-4:30 | X10: Office Fax #: | Z10: 989 846-0950
A11: 3 | B11: No. of Cities: | F11: Auto Allowance | J11: x | K11: Property Desc. | O11: Addressing | R11: Office Phone: | T11: 989 846-6246 | X11: Website: | Z11: arenaccountymi.gov
A12: 12 | B12: No.of Townships: | F12: Fringe Benefits | K12: Assessing Units | N12: x | O12: Website | R12: Address: | T12: PO Box 754
A13: 3 | B13: No.of Villages: | E13: 2020 Budget | J13: x | K13: Data Processing | O13: Mapping/GIS | T13: 120 N Grove Street
A14: 35 | B14: No of hrs. per week | E14: =155157.85+31092.15 -> 186250 | K14: Other | O14: Other | T14: Standish, MI 48658
A15: 1 | B15: No. of Staff (FTEE) | E15: 2020 Revenue(s) | J15: (detail:)
T18: Fringe Benefits
A19: Valuation Information | G19: CURRENT SOFTWARE | L19: Resource
T20: LEAVE POLICY:
G21: No. of | I21: Assessed | M21: % of | O21: Taxable | U21: Vacation Days | Z21: PTO 144hrs 1-6 yrs
G22: Parcels | I22: Valuations | M22: Total | O22: Valuations | U22: Personal Days | X22: 184 hrs | Y22: Other | Z22: PTO 6-14 yrs
B23: Real Property | G23: 18036 | I23: 703025315 | M23: =I23/I25 -> 0.9335236268 | O23: 550690184 | U23: (detail:)
B24: Personal Property | G24: 1026 | I24: 50062550 | M24: =M25-M23 -> 0.06647637324 | O24: 50100300
B25: Total | G25: 19192 | I25: =I23+I24 -> 753087865 | M25: 1 | O25: =O23+O24 -> 600790484
T26: PENSION:
T27: x | U27: Mers | Y27: 401K
A28: Director, Management & Supervision | U28: Defined Contr | Y28: Other | Z28: Defined Benefit
U29: (detail:) | V29: Mers B-4 1.00% employee contribution
A30: Position | C30: No of years in: | G30: S.T.C. Level | K30: Personal | M30: No. in | O30: 2020
C31: Position | E31: Assmt Adm | G31: Required | I31: Held | K31: Prop. Exmnr | M31: Position | O31: Salary Range
A32: Director | C32: 3 | E32: 21 | G32: MAAO | I32: MAAO | K32: YES | M32: 1 | O32: Contract | Q32: 50000 | S32: *** | T32: LONGEVITY:
A33: Deputy/Asst. | T33: X | U33: (detail:) | V33: 5yrs $350; 10yrs $520; 15 yrs $670; 20yrs $850
T36: HEALTH:
A37: Staff | T37: x | U37: BCN 10 | X37: x | Y37: Dental
A38: Appraiser III | U38: HMO | X38: X | Y38: Vision
A39: Appraiser II | U39: Cafeteria | Y39: Other
A40: Appraiser I | U40: (detail:) | V40: Only one provider choice of single or family with employee contribution or $3,000 in lieu of
A41: P/P Auditor
A42: GIS/Mapping
A43: Clerical | T43: LIFE INSURANCE:
M44: 1 | O44: =Q44*0.9 -> 14.832 | Q44: 16.48 | T44: X | U44: (detail:) | V44: $20,000 benefit policy
T47: OTHER:
T48: X | U48: (detail:) | V48: Deferred Comp Plan available, Nationwide Retirement Solutions Long and Short Term Disability
A49: *Additional Comments:
A50: Appraisals are contracted out.
A52: Tempory Changes Due To COVID-19:

Sheet 07 Baraga
A1: 2020 Michigan Equalization Department Salary Survey
A2: COUNTY OF | D2: BARAGA | K2: CLICK HERE TO RETURN TO DIRECTOR SUMMARY PAGE
A4: Director | C4: PAT OSTERMAN | J4: Private Phone: | L4: 906-524-6100 ext #697 | R4: E-mail: | S4: OSTERMANP@BARAGACOUNTY.ORG
A5: Alternate: | J5: Private Phone: | R5: E-mail:
A8: General County Information | J8: Additional Duties and Responsibilities | R8: General Office Information
B10: Dept. Established: | F10: % General Fund | J10: X | K10: Apportionment | O10: Tax Bills | R10: Business Hrs: | T10: 8-3:30 | X10: Office Fax #: | Z10: 906-524-6432
B11: No. of Cities: | F11: Auto Allowance | J11: X | K11: Property Desc. | N11: X | O11: Addressing | R11: Office Phone: | T11: 906-524-6100 ext #697 | X11: Website: | Z11: baragacounty.org
A12: 5 | B12: No.of Townships: | F12: Fringe Benefits | K12: Assessing Units | O12: Website | R12: Address: | T12: 2 SOUTH MAIN STREET
A13: 2 | B13: No.of Villages: | E13: 2020 Budget | J13: X | K13: Data Processing | N13: X | O13: Mapping/GIS | T13: L'ANSE, MI 49946
A14: 35 | B14: No of hrs. per week | E14: 246385.47 | K14: Other | O14: Other
A15: 2 | B15: No. of Staff (FTEE) | E15: 2020 Revenue(s) | J15: (detail:)
T18: Fringe Benefits
A19: Valuation Information | G19: CURRENT SOFTWARE | L19: BSA DOT.NET
T20: LEAVE POLICY:
G21: No. of | I21: Assessed | M21: % of | O21: Taxable | T21: 10 | U21: Vacation Days | Y21: Sick Days
G22: Parcels | I22: Valuations | M22: Total | O22: Valuations | T22: 3 | U22: Personal Days | Y22: Other
B23: Real Property | G23: 7619 | I23: 331536689 | M23: 0.8618 | O23: 239186467 | U23: (detail:)
B24: Personal Property | G24: 289 | I24: 53187800 | M24: 0.1382 | O24: 53187800
B25: Total | G25: =SUM(G23:H24) -> 7908 | I25: =SUM(I23:L24) -> 384724489 | M25: =SUM(M23:N24) -> 1 | O25: =SUM(O23:R24) -> 292374267
T26: PENSION:
T27: x | U27: Mers | Y27: 401K
A28: Director, Management & Supervision | T28: X | U28: Defined Contr | Y28: Other | Z28: Defined Benefit
U29: (detail:) | V29: DEFINED FOR NEW EMPLOYEES
A30: Position | C30: No of years in: | G30: S.T.C. Level | K30: Personal | M30: No. in | O30: 2020
C31: Position | E31: Assmt Adm | G31: Required | I31: Held | K31: Prop. Exmnr | M31: Position | O31: Salary Range
A32: Director | C32: 4 | G32: 3 | I32: 3 | K32: yes | M32: 1 | Q32: 58606 | S32: *** | T32: LONGEVITY:
A33: Field Specialist | C33: 1 | Q33: 30030 | T33: X | U33: (detail:) | V33: DISCONTINUED FOR NEW HIRES
T36: HEALTH:
A37: Staff | U37: BC/BS Type | X37: x | Y37: Dental
A38: Appraiser III | T38: X | U38: HMO | X38: x | Y38: Vision
A39: Appraiser II | U39: Cafeteria | Y39: Other
A40: Appraiser I | U40: (detail:)
A41: P/P Auditor
A42: GIS/Mapping
A43: Clerical | G43: 0 | I43: 0 | K43: 0 | T43: LIFE INSURANCE:
U44: (detail:)
T47: OTHER:
U48: (detail:)
A49: *Additional Comments:
A52: Tempory Changes Due To COVID-19:

Sheet 08 Barry
A1: 2022 Michigan Equalization Department Salary Survey
A2: COUNTY OF | D2: BARRY | K2: CLICK HERE TO RETURN TO DIRECTOR SUMMARY PAGE
A4: Director | C4: Meshia Rose | J4: Private Phone: | L4: 269-945-1288 | R4: E-mail: | S4: mrose@barrycounty.org
A5: Alternate: | J5: Private Phone: | R5: E-mail:
A8: General County Information | J8: Additional Duties and Responsibilities | R8: General Office Information
A10: 1966 | B10: Dept. Established: | E10: 0.698 | F10: % General Fund | J10: x | K10: Apportionment | O10: Tax Bills | R10: Business Hrs: | T10: 8:00 am - 5:00 pm | X10: Office Fax #:
A11: 1 | B11: No. of Cities: | F11: Auto Allowance | K11: Property Desc. | O11: Addressing | R11: Office Phone: | T11: 269-945-1288 | X11: Website: | Z11: barrycounty.org
A12: 16 | B12: No.of Townships: | F12: Fringe Benefits | K12: Assessing Units | O12: Website | R12: Address: | T12: 220 W State St
A13: 4 | B13: No.of Villages: | E13: 2022 Budget | K13: Data Processing | O13: Mapping/GIS | T13: Hastings, MI 49058
A14: 40 | B14: No of hrs. per week | E14: 355119 | K14: Other | O14: Other
A15: 2 | B15: No. of Staff (FTEE) | E15: 2022 Revenue(s) | J15: (detail:)
T18: Fringe Benefits
A19: Valuation Information | G19: CURRENT SOFTWARE | L19: BS & A
T20: LEAVE POLICY:
G21: No. of | I21: Assessed | M21: % of | O21: Taxable | T21: 2 - 4 wks | U21: Vacation Days | X21: 9 | Y21: Sick Days
G22: Parcels | I22: Valuations | M22: Total | O22: Valuations | T22: 3 | U22: Personal Days | Y22: Other
B23: Real Property | G23: 32373 | I23: 3519363571 | M23: 0.9638 | O23: 2497058116 | U23: (detail:)
B24: Personal Property | G24: 1401 | I24: 121423080 | M24: 0.0362 | O24: 121423080
B25: Total | G25: 34199 | K25: =I23+I24 -> 3640786651 | M25: =M23+M24 -> 1 | Q25: =O23+O24 -> 2618481196
T26: PENSION:
T27: x | U27: Mers | Y27: 401K
A28: Director, Management & Supervision | U28: Defined Contr | Y28: Other | Z28: Defined Benefit
U29: (detail:)
A30: Position | C30: No of years in: | G30: S.T.C. Level | K30: Personal | M30: No. in | O30: 2022
C31: Position | E31: Assmt Adm | G31: Required | I31: Held | K31: Prop. Exmnr | M31: Position | O31: Salary Range
A32: Director | C32: 1 | E32: 7 | G32: 3 | I32: 4 | M32: 1 | O32: 74213.57 | Q32: 89043.55 | T32: LONGEVITY:
A33: Deputy/Asst. | C33: 15 | E33: 22 | G33: 3 | I33: 3 | K33: Y | M33: 1 | O33: 53809.6 | Q33: 64334.4 | U33: (detail:) | V33: $25/5th yr - $650/yr cap;
T36: HEALTH:
A37: Staff | T37: x | U37: BC/BS Type | Y37: Dental
A38: Appraiser III | T38: x | U38: HMO | Y38: Vision
A39: Appraiser II | U39: Cafeteria | Y39: Other
A40: Appraiser I | M40: 0 | O40: 37668.8 | Q40: 45011.2 | U40: (detail:) | V40: Employees are reimbursed for up to $600 for any dental or vision expenses
A41: P/P Auditor
A42: GIS/Mapping
A43: Clerical (25 hours a week) | M43: 1 | O43: 19539 | Q43: 22815 | T43: LIFE INSURANCE:
O44: Per hour | U44: (detail:) | V44: 20
T47: OTHER:
U48: (detail:)
A49: *Additional Comments:
A50: Appraiser position is currently vacant. County is currently working on salary schedule changes, specifically for the clerical and appraiser positions.

Sheet 09 Bay
A1: 2021 Michigan Equalization Department Salary Survey
A2: COUNTY OF | D2: BAY | K2: CLICK HERE TO RETURN TO DIRECTOR SUMMARY PAGE
A4: Director | C4: Kelly Rifenbark | J4: Private Phone: | L4: (989) 895-4080 | R4: E-mail: | S4: rifenbarkk@baycounty.net
A5: Alternate: | J5: Private Phone: | R5: E-mail:
A8: General County Information | J8: Additional Duties and Responsibilities | R8: General Office Information
B10: Dept. Established: | F10: % General Fund | J10: X | K10: Apportionment | N10: X | O10: Tax Bills | R10: Business Hrs: | T10: 8am - 5pm | X10: Office Fax #: | Z10: (989) 895-4078
A11: 5 | B11: No. of Cities: | F11: Auto Allowance | J11: X | K11: Property Desc. | O11: Addressing | R11: Office Phone: | T11: (989) 895-4075 | X11: Website: | Z11: www.baycounty-mi.gov
A12: 14 | B12: No.of Townships: | E12: X | F12: Fringe Benefits | K12: Assessing Units | N12: X | O12: Website | R12: Address: | T12: 515 Center Ave, Ste. 212
A13: 0 | B13: No.of Villages: | E13: 2021 Budget | J13: X | K13: Data Processing | N13: X | O13: Mapping/GIS | T13: Bay City, MI 48708
A14: 40 | B14: No of hrs. per week | K14: Other | O14: Other | R14: Fax:
A15: 3 | B15: No. of Staff (FTEE) | E15: 2021 Revenue(s) | J15: (detail:)
T18: Fringe Benefits
A19: Valuation Information | G19: CURRENT SOFTWARE | L19: BS & A
T20: LEAVE POLICY:
G21: No. of | I21: Assessed | M21: % of | O21: Taxable | T21: X | U21: Vacation Days | X21: X | Y21: Sick Days
G22: Parcels | I22: Valuations | M22: Total | O22: Valuations | T22: X | U22: Personal Days | X22: X | Y22: Other | Z22: Holidays
B23: Real Property | G23: 50894 | I23: 3363365964 | M23: 0.9235 | O23: 2673906826 | U23: (detail:)
B24: Personal Property | G24: 3520 | I24: 278470111 | M24: 0.0765 | O24: 272246781
B25: Total | G25: 54414 | I25: 3641836075 | M25: 1 | O25: 2946153607
B26: Exempt | T26: PENSION:
U27: Mers | Y27: 401K
A28: Director, Management & Supervision | U28: Defined Contr | X28: X | Y28: Other | Z28: Defined Benefit
U29: (detail:)
A30: Position | C30: No of years in: | G30: S.T.C. Level | K30: Personal | M30: No. in | O30: 2120
C31: Position | E31: Assmt Adm | G31: Required | I31: Held | K31: Prop. Exmnr | M31: Position | O31: Salary Range
A32: Director | C32: 2 | E32: 30 | G32: Waiver | I32: MAAO | K32: Yes | M32: 15 | O32: 72404 | Q32: 75088 | T32: LONGEVITY:
A33: Deputy/Asst. | T33: N/A | U33: (detail:)
T36: HEALTH:
A37: Staff | T37: X | U37: BC/BS Type | X37: X | Y37: Dental
A38: Appraiser III | G38: MAAO | I38: MAAO | K38: Yes | M38: 1 | O38: 50544 | Q38: 51563 | U38: HMO | X38: X | Y38: Vision
A39: Appraiser II | U39: Cafeteria | Y39: Other
A40: Appraiser I | U40: (detail:)
A41: P/P Auditor
A42: GIS/Mapping | I42: MCAO | M42: 1 | O42: 42972 | Q42: 43825
A43: Clerical | T43: LIFE INSURANCE:
T47: OTHER:
A49: *Additional Comments:
A50: Waiver needed due to having a small portion of the City of Midland within Bay County.
A52: Tempory Changes Due To COVID-19:
A53: No Face-to-face meetings for appraisal studies, strictly drive-by and aerial review.

Sheet 10 Benzie
A1: 2019 Michigan Equalization Department Salary Survey
A2: COUNTY OF | D2: BENZIE | K2: CLICK HERE TO RETURN TO DIRECTOR SUMMARY PAGE
A4: Director | C4: Thomas N. Longanbach | J4: Private Phone: | L4: 231-882-0015 | R4: E-mail: | S4: tlonganbach@benzieco.net
A5: Alternate: | C5: Brianne Lindsay | J5: Private Phone: | L5: 231-882-0160 | R5: E-mail: | S5: blindsay@benzieco.net
A8: General County Information | J8: Additional Duties and Responsibilities | R8: General Office Information
B10: Dept. Established: | F10: % General Fund | J10: Y | K10: Apportionment | N10: N | O10: Tax Bills | R10: Business Hrs: | T10: 8:00 AM TO 5:00 PM | X10: Office Fax #:
A11: 1 | B11: No. of Cities: | E11: 0.58 | F11: Auto Allowance | J11: Y | K11: Property Desc. | N11: Y | O11: Addressing | R11: Office Phone: | T11: 231-882-0013 | X11: Website: | Z11: WWW.BENZIECO.NET
A12: 12 | B12: No.of Townships: | E12: Y | F12: Fringe Benefits | J12: N | K12: Assessing Units | N12: Y | O12: Website | R12: Address: | T12: 448 COURT PLACE
A13: 6 | B13: No.of Villages: | E13: 2019 Budget | J13: Y | K13: Data Processing | N13: Y | O13: Mapping/GIS | T13: BEULAH, MI 49617
A14: 40 | B14: No of hrs. per week | E14: 149553 | K14: Other | O14: Other | R14: Fax: | T14: 231-882-0033
A15: 3 | B15: No. of Staff (FTEE) | E15: 2019 Revenue(s) | J15: (detail:)
E16: 1600
T18: Fringe Benefits
A19: Valuation Information | G19: CURRENT SOFTWARE | L19: BS & A
T20: LEAVE POLICY:
G21: No. of | I21: Assessed | M21: % of | O21: Taxable | T21: DETAIL | U21: Vacation Days | X21: 9 | Y21: Sick Days
G22: Parcels | I22: Valuations | M22: Total | O22: Valuations | T22: 2 | U22: Personal Days | X22: 12 | Y22: Other | Z22: Holidays
B23: Real Property | G23: 18170 | I23: 1802370017 | M23: =O23/I23 -> 0.7042468555 | O23: 1269313417 | U23: (detail:) | V23: 1-4 yrs …………10 days 5-14 yrs……..15 days >15……..20 days
B24: Personal Property | G24: 880 | I24: 42119800 | M24: =O24/I24 -> 1 | O24: 42119800
B25: Total | G25: 19050 | I25: 1802370017 | M25: =O25/I25 -> 0.7276159749 | O25: 1311433217
B26: Exempt | G26: 1038 | T26: PENSION:
T27: Y | U27: Mers | Y27: 401K
A28: Director, Management & Supervision | T28: Y | U28: Defined Contr | Y28: Other | Z28: Defined Benefit
U29: (detail:)
A30: Position | C30: No of years in: | G30: S.T.C. Level | K30: Personal | M30: No. in | O30: 2016
C31: Position | E31: Assmt Adm | G31: Required | I31: Held | K31: Prop. Exmnr | M31: Position | O31: Salary Range
A32: Director | C32: 1 | E32: 27 | G32: MAAO | I32: MAAO | K32: NO | M32: 0 | Q32: 59088 | T32: LONGEVITY:
A33: Field Appraiser | C33: 1 | E33: 5 | G33: MCAO | I33: MCAO | K33: NO | M33: 0 | Q33: 33675 | T33: N/A | U33: (detail:) | V33: 5-7 yrs………….$300 >8 …...$500 >9…….$30/yr additional Grand Fathered not new hires
A34: Secretary | C34: 1 | E34: 0 | G34: N/A | K34: NO | M34: 0 | Q34: 26644
T36: HEALTH:
A37: Staff | T37: Y | U37: BC/BS Type | X37: Y | Y37: Dental
A38: Appraiser III | U38: HMO | X38: Y | Y38: Vision
A39: Appraiser II | G39: 1 | U39: Cafeteria | Y39: Other
A40: Appraiser I | U40: (detail:)
A41: P/P Auditor
A42: GIS/Mapping | G42: EQ DIRECTOR
A43: Clerical | G43: 1 | T43: LIFE INSURANCE:
V44: 25000
T47: OTHER:
V48: Short & Long term disablility
A49: *Additional Comments:
A52: Tempory Changes Due To COVID-19:

Sheet 11 Berrien
A1: 2021 Michigan Equalization Department Salary Survey
A2: COUNTY OF | D2: BERRIEN | K2: CLICK HERE TO RETURN TO DIRECTOR SUMMARY PAGE
A4: Director | C4: Warren Parrish | J4: Private Phone: | L4: 269-983-7111, ext. 8254 | R4: E-mail: | S4: wparrish@berriencounty.org
A5: Alternate: | C5: Katie Bauer | J5: Private Phone: | L5: 269-983-7111, ext. 8218 | R5: E-mail: | S5: kbauer@berriencounty.org
A8: General County Information | J8: Additional Duties and Responsibilities | R8: General Office Information
A10: 1967 | B10: Dept. Established: | E10: 0.0123 | F10: % General Fund | J10: 1 | K10: Apportionment | N10: 0 | O10: Tax Bills | R10: Business Hrs: | T10: 8:30-5:00 Mon.-Fri. | X10: Office Fax #: | Z10: 269-982-8666
A11: 8 | B11: No. of Cities: | E11: 0.575 | F11: Auto Allowance | J11: 0 | K11: Property Desc. | N11: 0 | O11: Addressing | R11: Office Phone: | T11: 269-983-7111, ext. 8215 | X11: Website: | Z11: www.berriencounty.org.
A12: 22 | B12: No.of Townships: | E12: 50-60% | F12: Fringe Benefits | J12: 0 | K12: Assessing Units | N12: 1 | O12: Website | R12: Address: | T12: 701 Main St.
A13: 9 | B13: No.of Villages: | E13: 2021 Budget | J13: 0 | K13: Data Processing | N13: 0 | O13: Mapping/GIS | T13: St. Joseph MI 49085
A14: 37.5 | B14: No of hrs. per week | E14: 548557 | J14: 1 | K14: Other | O14: Other
A15: 7 | B15: No. of Staff (FTEE) | E15: 2021 Revenue(s) | J15: (detail:) | K15: Print and mail personal property statements
E16: 2050
T18: Fringe Benefits
A19: Valuation Information | H19: CURRENT SOFTWARE | K19: BS&A Equalizer
T20: LEAVE POLICY:
G21: No. of | I21: Assessed | M21: % of | O21: Taxable | T21: X | U21: Vacation Days | X21: X | Y21: Sick Days
G22: Parcels | I22: Valuations | M22: Total | O22: Valuations | T22: X | U22: Personal Days | Y22: Other
B23: Real Property | G23: 87326 | I23: 9929120811 | M23: =SUM(I23/I25) -> 0.9483214888 | O23: 7958418915 | U23: (detail:) | V23: Vacation: Non-union: 1-4yrs=15days; 5-19yrs=20days; 20+yrs=25days; Union: 1-4yrs=10days; 5-12yrs=15days; 13-20yrs=20days; 21+yrs=25days; Personal Days=2/yr(1 from accum. sick leave & 1 free; Sick Days: earn 3.8hrs/bi-weekly=13 days/yr. Can bank up to 1125 hrs. Not paid out upon resignation/termination; but if retire, can roll over up to 6 months(900 hrs into pension for extra cred./srvs.
B24: Personal Property | G24: 5471 | I24: 541084629 | M24: =SUM(I24/I25) -> 0.05167851119 | O24: 538991427
B25: Total | G25: =SUM(G23:H24) -> 92797 | I25: =SUM(I23:L24) -> 10470205440 | M25: =SUM(M23:N24) -> 1 | O25: =SUM(O23:R24) -> 8497410342
T27: PENSION:
A28: Director, Management & Supervision | U28: Mers | Y28: 401K
U29: Defined Contr | X29: X | Y29: Other | Z29: Defined Benefit County Ordinance pension plan.
A30: Position | C30: No of years in: | G30: S.A.B. Level | K30: Personal | M30: No. in | O30: 2020 | U30: (detail:) | V30: 2.2% multiplier; Employee contributes 5% of pre-tax earnings(Union employees contribute 6.89%); 10 yr. vesting; no retiree health care for hires after 1/1/12 for non-union & 1/1/14 for union.
C31: Position | E31: Assmt Adm | G31: Required | I31: Held | K31: Prop. Exmnr | M31: Position | O31: Salary Range
A32: Director | C32: 1 | E32: 8 | G32: MMAO | I32: MMAO | K32: Y | M32: 1 | O32: 94894 | Q32: 127167
A33: Deputy/Asst. | C33: 1 | E33: 20 | G33: MAAO | I33: MAAO | K33: Y | M33: 1 | O33: 68057 | Q33: 91204 | T33: LONGEVITY: | V33: none
U34: (detail:)
A37: Staff | T37: HEALTH:
A38: Appraiser III | G38: MAAO | I38: MAAO | K38: Y | M38: 1 | O38: 41265 | Q38: 53778 | T38: X | U38: BC/BS Type(of MI) | X38: X | Y38: Dental
A39: Appraiser II | G39: MCAO | I39: MCAO | K39: Y | M39: 3 | O39: 34100 | Q39: 44445 | U39: HMO | X39: X | Y39: Vision
A40: Appraiser I | G40: MCAT | I40: None | K40: N | M40: 1 | O40: 28184 | Q40: 36731 | U40: Cafeteria | Y40: Other
A41: P/P Auditor | U41: (detail:) | V41: Comprehensive major medical plan; 90/10 plan; deductibles $250/$500; Out of pocket max $1250/$2500; RX=$15 for generic & $30 for non-generic; Employees contribute 20% of premium for health. Dental and Vision costs additional.
A42: GIS/Mapping
A43: Clerical
T44: LIFE INSURANCE:
U45: (detail:) | V45: $50,000 fully paid for by County. Additional Optional life if employee elects and fully funds.
T48: OTHER:
A49: *Additional Comments: | U49: (detail:)
A52: Tempory Changes Due To COVID-19:

Sheet 12 Branch
A1: 2017 Michigan Equalization Department Salary Survey
A2: COUNTY OF | D2: Branch | K2: CLICK HERE TO RETURN TO DIRECTOR SUMMARY PAGE
A4: Director | C4: Jody Connell, Interim Director | J4: Private Phone: | L4: 517-279-6487 | R4: E-mail: | S4: jconnell@countyofbranch.com
A5: Alternate: | C5: Katlyn Eichler, Assessment Tech | J5: Private Phone: | L5: 517-279-6489 | R5: E-mail: | S5: kjeichler@countyofbranch.com
A8: General County Information | J8: Additional Duties and Responsibilities | R8: General Office Information
A10: 1969 | B10: Dept. Established: | F10: % General Fund | J10: x | K10: Apportionment | O10: Tax Bills | R10: Business Hrs: | T10: 8:00am - 5:00pm | X10: Office Fax #: | Z10: 517-279-6494
A11: 2 | B11: No. of Cities: | E11: 0.05 | F11: Auto Allowance | K11: Property Desc. | O11: Addressing | R11: Office Phone: | T11: 517-279-4312 | X11: Website: | Z11: www.countyofbranch.com
A12: 16 | B12: No.of Townships: | F12: Fringe Benefits | K12: Assessing Units | N12: x | O12: Website | R12: Address: | T12: 23 E Pearl St
A13: 3 | B13: No.of Villages: | E13: 2017 Budget | K13: Data Processing | O13: Mapping/GIS | T13: Coldwater, MI 49036
A14: 40 | B14: No of hrs. per week | E14: 190759 | K14: Other | O14: Other | R14: Fax: | T14: 517-279-6494
A15: 2 | B15: No. of Staff (FTEE) | E15: 2017 Revenue(s) | J15: (detail:)
E16: 3000
T18: Fringe Benefits
A19: Valuation Information | G19: CURRENT SOFTWARE | L19: BS & A
T20: LEAVE POLICY:
G21: No. of | I21: Assessed | M21: % of | O21: Taxable | T21: x | U21: Vacation Days | X21: x | Y21: Sick Days
G22: Parcels | I22: Valuations | M22: Total | O22: Valuations | T22: x | U22: Personal Days | X22: x | Y22: Other | Z22: Holidays
B23: Real Property | G23: 26933 | I23: 1765766745 | M23: =G23/G25 -> 0.9369303555 | O23: 1212061983 | U23: (detail:)
B24: Personal Property | G24: 1813 | I24: 146663676 | M24: =G24/G25 -> 0.06306964447 | O24: 146663676
B25: Total | G25: =SUM(G23:G24) -> 28746 | I25: =SUM(I23:I24) -> 1912430421 | O25: =SUM(O23:O24) -> 1358725659
B26: Exempt | G26: 718 | T26: PENSION:
T27: x | U27: Mers | X27: x | Y27: 401K
A28: Director, Management & Supervision | T28: x | U28: Defined Contr | Y28: Other | Z28: Defined Benefit
U29: (detail:)
A30: Position | C30: No of years in: | G30: S.T.C. Level | K30: Personal | M30: No. in | O30: 2016
C31: Position | E31: Assmt Adm | G31: Required | I31: Held | K31: Prop. Exmnr | M31: Position | O31: Salary Range
A32: Director | C32: 4 | E32: 23 | G32: 3 | I32: 3 | K32: Yes | M32: 1 | Q32: 55100 | T32: LONGEVITY:
A33: Deputy/Asst. | T33: N/A | U33: (detail:)
T36: HEALTH:
A37: Staff | T37: x | U37: BC/BS Type | X37: x | Y37: Dental
A38: Appraiser III | G38: 2 | M38: 1 | Q38: Contracted | U38: HMO | X38: x | Y38: Vision
A39: Appraiser II | U39: Cafeteria | Y39: Other
A40: Appraiser I | U40: (detail:)
A41: P/P Auditor
A42: GIS/Mapping
A43: Clerical | G43: none | I43: none | K43: no | M43: 1 | O43: 24066 | Q43: 30098 | T43: LIFE INSURANCE:
T47: OTHER:
A49: *Additional Comments:
A52: Tempory Changes Due To COVID-19:

Sheet 13 Calhoun
A1: 2022 Michigan Equalization Department Salary Survey
A2: COUNTY OF | D2: CALHOUN | K2: CLICK HERE TO RETURN TO DIRECTOR SUMMARY PAGE
A4: Director | C4: Mathew Hansen (Contractual) | J4: Private Phone: | L4: 269-781-0747 | R4: E-mail: | S4: hansenlakelodge@gmail.com
A5: Alternate: | C5: Tom Scott (Deputy) | J5: Private Phone: | L5: 269-781-0747 | R5: E-mail: | S5: tscott@calhouncountymi.gov
A8: General County Information | J8: Additional Duties and Responsibilities | R8: General Office Information
A10: 1961 | B10: Dept. Established: | F10: % General Fund | J10: x | K10: Apportionment | O10: Tax Bills | R10: Business Hrs: | T10: M-T 7am to 5:30pm | X10: Office Fax #: | Z10: 269-781-0647
A11: 4 | B11: No. of Cities: | E11: No | F11: Auto Allowance | K11: Property Desc. | O11: Addressing | R11: Office Phone: | T11: 269-781-0745 | X11: Website: | Z11: www.calhouncountymi.gov
A12: 19 | B12: No.of Townships: | E12: Yes | F12: Fringe Benefits | K12: Assessing Units | N12: x | O12: Website | R12: Address: | T12: 315 W Green St
A13: 5 | B13: No.of Villages: | E13: 2022 Budget | K13: Data Processing | O13: Mapping/GIS | T13: Marshall, MI 49068
A14: 40 | B14: No of hrs. per week | E14: 461732 | K14: Other | O14: Other
A15: 4 | B15: No. of Staff (FTEE) | E15: 2022 Revenue(s) | J15: (detail:) | K15: s
E16: 7975
T18: Fringe Benefits
A19: Valuation Information | G19: CURRENT SOFTWARE | L19: BS&A Dot.Net
T20: LEAVE POLICY:
G21: No. of | I21: Assessed | M21: % of | O21: Taxable | U21: Vacation Days | Y21: Sick Days
G22: Parcels | I22: Valuations | M22: Total | O22: Valuations | T22: X | U22: Personal Days | Y22: Other
B23: Real Property | G23: 61461 | I23: 4678741529 | M23: =SUM(I23/I25) -> 0.9026830419 | O23: 3552546800 | U23: (detail:)
B24: Personal Property | G24: 4918 | I24: 504408383 | M24: =SUM(I24/I25) -> 0.09731695814 | O24: 503987414
B25: Total | G25: =G23+G24 -> 66379 | I25: 5183149912 | M25: =SUM(M23:N24) -> 1 | O25: 3849650854
T26: PENSION:
T27: X | U27: Mers | Y27: 401K
A28: Director, Management & Supervision | T28: X | U28: Defined Contr | X28: X | Y28: Other | Z28: Defined Benefit
U29: (detail:)
A30: Position | C30: No of years in: | G30: S.T.C. Level | K30: Personal | M30: No. in | O30: 2022
C31: Position | E31: Assmt Adm | G31: Required | I31: Held | K31: Prop. Exmnr | M31: Position | O31: Salary Range
A32: Director | C32: 4 | G32: 4 | I32: 4 | K32: Y | M32: 1 | O32: Contractual | Q32: Contractual | T32: LONGEVITY:
A33: Deputy | C33: 3 | G33: 3 | I33: 3 | K33: Y | M33: 1 | O33: 66382 | Q33: 80602.34 | U33: (detail:)
T36: HEALTH:
A37: Staff | T37: X | U37: BC/BS Type | X37: X | Y37: Dental
A38: Appraiser III | G38: 3 | I38: 0 | K38: Y | M38: 0 | Q38: =O38 -> 0 | T38: X | U38: HMO | X38: X | Y38: Vision
A39: Appraiser II | G39: 2 | I39: 0 | K39: Y | M39: 0 | Q39: =O39 -> 0 | U39: Cafeteria | Y39: Other
A40: Appraiser I | U40: (detail:)
A41: P/P Auditor
A42: GIS/Mapping | Q42: =O42 -> 0
A43: Clerical | G43: N/A | I43: N/A | K43: N/A | M43: 1 | O43: 54092 | Q43: 55182.92 | T43: LIFE INSURANCE:
A44: Equalization Clerk | G44: N/A | I44: N/A | K44: N/A | M44: 1 | O44: 31937.36 | Q44: 31937 | U44: (detail:)
T47: OTHER:
U48: (detail:)
A49: *Additional Comments:
A52: Tempory Changes Due To COVID-19:

Sheet 14 Cass
A1: 2022 Michigan Equalization Department Salary Survey
A2: COUNTY OF | D2: CASS | K2: CLICK HERE TO RETURN TO DIRECTOR SUMMARY PAGE
A4: Director | C4: Tami Stewart | J4: Private Phone: | L4: 269-445-4440 | R4: E-mail: | S4: tamis@cassco.org
A5: Alternate: | J5: Private Phone: | R5: E-mail:
A8: General County Information | J8: Additional Duties and Responsibilities | R8: General Office Information
A10: 1961 | B10: Dept. Established: | E10: 0.02 | F10: % General Fund | J10: x | K10: Apportionment | N10: x | O10: Tax Bills | R10: Business Hrs: | T10: M-F 8am to 5pm | X10: Office Fax #: | Z10: 269-445-4495
A11: 2 | B11: No. of Cities: | E11: 0.0625 | F11: Auto Allowance | K11: Property Desc. | O11: Addressing | R11: Office Phone: | T11: 269-445-4442 | X11: Website: | Z11: www.casscountymi.org
A12: 15 | B12: No.of Townships: | E12: *yes | F12: Fringe Benefits | K12: Assessing Units | O12: Website | R12: Address: | T12: 120 N Broadway
A13: 4 | B13: No.of Villages: | E13: 2022 Budget | J13: x | K13: Data Processing | O13: Mapping/GIS | T13: Suite 111
A14: 40 | B14: No of hrs. per week | E14: 270730 | J14: x | K14: Other | O14: Other | T14: Cassopolis MI 49031
A15: 2 | B15: No. of Staff (FTEE) | E15: 2022 Revenue(s) | J15: (detail:) | K15: County processes all sales, name and address changes for local units. All tax bills and assessment changes notices are processed and printed for local units as well.
E16: 129130
T18: Fringe Benefits
A19: Valuation Information
T20: LEAVE POLICY:
G21: No. of | I21: Assessed | M21: % of | O21: Taxable | T21: x | U21: Vacation Days | Y21: Sick Days
G22: Parcels | I22: Valuations | M22: Total | O22: Valuations | T22: x | U22: Personal Days | Y22: Other
B23: Real Property | G23: 35680 | I23: 3333480566 | M23: =SUM(I23/I25) -> 0.9170050363 | O23: 2289289036 | U23: (detail:)
B24: Personal Property | G24: 1313 | I24: 301701831 | M24: =SUM(I24/I25) -> 0.08299496368 | O24: 301641706
B25: Total | G25: =SUM(G23:H24) -> 36993 | I25: =SUM(I23:L24) -> 3635182397 | M25: =SUM(M23:N24) -> 1 | O25: =SUM(O23:R24) -> 2590930742
T26: PENSION:
T27: x | U27: Mers | Y27: 401K
A28: Director, Management & Supervision | T28: x | U28: Defined Contr | Y28: Other
U29: (detail:)
A30: Position | C30: No of years in: | G30: S.A.B. Level | K30: Personal | M30: No. in | O30: 2022
C31: Position | E31: Assmt Adm | G31: Required | I31: Held | K31: Prop. Exmnr | M31: Position | O31: Salary Range
A32: Director | C32: 6 | E32: 9 | G32: MAAO | I32: MAAO | M32: 1 | O32: 67421 | Q32: 87647 | T32: LONGEVITY:
U33: (detail:)
T36: HEALTH:
A37: Staff | T37: x | U37: BC/BS Type | X37: x | Y37: Dental
A38: Appraiser III | U38: HMO | X38: x | Y38: Vision
A39: Appraiser II | U39: Cafeteria | Y39: Other
A40: Appraiser I | U40: (detail:)
A41: P/P Auditor
A42: GIS/Mapping
A43: Clerical | M43: 1 | O43: 43864 | Q43: 57023 | T43: LIFE INSURANCE:
U44: (detail:)
T47: OTHER:
U48: (detail:)
A49: *Additional Comments:
A50: Field work is now done by Assessing Solutions. We no longer have an in-house appraiser.
A52: Tempory Changes Due To COVID-19:

Sheet 15 Charlevoix
A1: 2021 Michigan Equalization Department Salary Survey
A2: COUNTY OF | D2: Charlevoix | K2: CLICK HERE TO RETURN TO DIRECTOR SUMMARY PAGE
A4: Director | C4: Emily Selph | J4: Private Phone: | L4: 231 547-7230 | R4: E-mail: | S4: selphe@charlevoixcounty.org
A5: Alternate: | J5: Private Phone: | R5: E-mail:
A8: General County Information | J8: Additional Duties and Responsibilities | R8: General Office Information
A10: 1965 | B10: Dept. Established: | E10: 0.04 | F10: % General Fund | J10: x | K10: Apportionment | O10: Tax Bills | R10: Business Hrs: | T10: 8am - 5pm Mon-Fri | X10: Office Fax #: | Z10: 231 547-7232
A11: 3 | B11: No. of Cities: | F11: Auto Allowance | J11: x | K11: Property Desc. | N11: x | O11: Addressing | R11: Office Phone: | T11: 231 -547-7230 | X11: Website: | Z11: www.charlevoixcounty.org
A12: 15 | B12: No.of Townships: | F12: Fringe Benefits | K12: Assessing Units | N12: x | O12: Website | R12: Address: | T12: Charlevoix County Equalization
A13: 1 | B13: No.of Villages: | E13: 2020-21 Budget | J13: x | K13: Data Processing | N13: x | O13: Mapping/GIS | T13: 301 State St.
A14: 40 | B14: No of hrs. per week | E14: 439113 | K14: Other | O14: Other | T14: Charlevoix, MI 49720
A15: 5 | B15: No. of Staff (FTEE) | E15: 2019-20 Revenue(s) | J15: (detail:) | K15: our office is also responcible for 911 addressing duties.
E16: 17650
T18: Fringe Benefits
A19: Valuation Information | G19: CURRENT SOFTWARE | L19: BS&A .net
T20: LEAVE POLICY:
G21: No. of | I21: Assessed | M21: % of | O21: Taxable | T21: 0-20 | U21: Vacation Days | X21: 13 | Y21: Sick Days
G22: Parcels | I22: Valuations | M22: Total | O22: Valuations | T22: 2 | U22: Personal Days | Y22: Other
B23: Real Property | G23: 27524 | I23: 3073667314 | M23: =I23/I25 -> 0.9743798238 | O23: 2284736093 | U23: (detail:) | V23: vacation time is earned through years of service maxing out at 4 weeks.
B24: Personal Property | G24: 1250 | I24: 80818482 | M24: =I24/I25 -> 0.02562017623 | O24: 80818482
B25: Total | G25: 28774 | I25: 3154485796 | M25: 1 | O25: 2365554575
T26: PENSION:
T27: x | U27: Mers | Y27: 401K
A28: Director, Management & Supervision | U28: Defined Contr | Y28: Other | Z28: Defined Benefit
U29: (detail:)
A30: Position | C30: No of years in: | G30: S.T.C. Level | K30: Personal | M30: No. in | O30: 2021
C31: Position | E31: Assmt Adm | G31: Required | I31: Held | K31: Prop. Exmnr | M31: Position | O31: Salary Range
A32: Director | C32: 2.5 | E32: 5.5 | G32: MAAO | I32: MAAO | K32: Yes | M32: 1 | O32: 55000 | Q32: 70000 | T32: LONGEVITY:
A33: Deputy/Asst. | U33: (detail:)
T36: HEALTH:
A37: Staff | U37: BC/BS Type | X37: x | Y37: Dental
A38: Appraiser III | G38: MAAO | I38: MAAO | M38: 1 | O38: 41000 | Q38: 50000 | T38: X | U38: HMO | X38: Optional | Y38: Vision
A39: Appraiser II | G39: MCAO | I39: MCAO | M39: 1 | O39: 36600 | Q39: 44000 | U39: Cafeteria | X39: X | Y39: Other
A40: Appraiser I | U40: (detail:) | V40: Priority Health HAS
A41: P/P Auditor
A42: GIS/Mapping | G42: None | I42: MCAO | M42: 1 | O42: 32600 | Q42: 45000
A43: Clerical | G43: None | I43: None | M43: 1 | O43: 32600 | Q43: 40000 | T43: LIFE INSURANCE:
A44: Summer Intern | G44: None | I44: None | M44: 1 | O44: $12/hr | Q44: $12/hr | U44: (detail:)
T47: OTHER:
U48: (detail:)
A49: *Additional Comments:
A52: Tempory Changes Due To COVID-19:
A53: None

Sheet 16 Cheboygan
A1: 2022 Michigan Equalization Department Salary Survey
A2: COUNTY OF | D2: Cheboygan | K2: CLICK HERE TO RETURN TO DIRECTOR SUMMARY PAGE
A4: Director | C4: Elizabeth Zabik | J4: Private Phone: | L4: 231-627-8828 | R4: E-mail: | S4: ezabik@cheboygancounty.net
A5: Alternate: | J5: Private Phone: | R5: E-mail:
A8: General County Information | J8: Additional Duties and Responsibilities | R8: General Office Information
A10: 1971 | B10: Dept. Established: | F10: % General Fund | J10: x | K10: Apportionment | N10: x | O10: Tax Bills | R10: Business Hrs: | T10: Monday - Friday 8-4 | X10: Office Fax #: | Z10: 231-627-8403
A11: 1 | B11: No. of Cities: | F11: Auto Allowance | J11: x | K11: Property Desc. | N11: x | O11: Addressing | R11: Office Phone: | T11: 231-627-8810 | X11: Website: | Z11: www.cheboygancounty.net
A12: 19 | B12: No.of Townships: | F12: Fringe Benefits | K12: Assessing Units | N12: x | O12: Website | R12: Address: | T12: 870 S Main St
A13: 2 | B13: No.of Villages: | E13: 2022 Budget | J13: x | K13: Data Processing | N13: x | O13: Mapping/GIS | T13: Cheboygan, MI 49721
A14: 40 | B14: No of hrs. per week | E14: 287727 | J14: x | K14: Other | O14: Other
A15: 4 | B15: No. of Staff (FTEE) | E15: 2022 Revenue(s) | J15: (detail:) | K15: Cheboygan County's Designated Assessor beginning 2021.
E16: 18500
T18: Fringe Benefits
A19: Valuation Information | G19: CURRENT SOFTWARE | L19: BSA.NET
T20: LEAVE POLICY:
G21: No. of | I21: Assessed | M21: % of | O21: Taxable | T21: x | U21: Vacation Days | X21: x | Y21: Sick Days
G22: Parcels | I22: Valuations | M22: Total | O22: Valuations | T22: x | U22: Personal Days | Y22: Other
B23: Real Property | G23: 28607 | I23: 2050098769 | M23: =I23/I25 -> 0.9650735752 | O23: 1553540890 | U23: (detail:)
B24: Personal Property | G24: 1385 | I24: 74193950 | M24: =I24/I25 -> 0.03492642485 | O24: 73928317
B25: Total | G25: 29992 | I25: 2124292719 | M25: 1 | O25: 1627469207
T26: PENSION:
T27: x | U27: Mers | Y27: 401K | Z27: Defined Benefit
A28: Director, Management & Supervision | U28: Defined Contr | Y28: Other
U29: (detail:)
A30: Position | C30: No of years in: | G30: S.T.C. Level | K30: Personal | M30: No. in | O30: 2022
C31: Position | E31: Assmt Adm | G31: Required | I31: Held | K31: Prop. Exmnr | M31: Position | O31: Salary Range
A32: Director | C32: 5 | E32: 17 | G32: 3 | I32: 3 | K32: yes | M32: 1 | Q32: 72156 | S32: *** | T32: LONGEVITY:
A33: Deputy/Asst.
T36: HEALTH:
A37: Staff | U37: BC/BS Type | X37: x | Y37: Dental
A38: Appraiser III | I38: MAAO | M38: 1 (40 hr) | Q38: 43831 | T38: x | U38: HMO | X38: x | Y38: Vision
A39: Appraiser II | I39: MCAO | M39: 1 (40 hr) | Q39: 43831 | U39: Cafeteria | Y39: Other
A40: Appraiser I | U40: (detail:)
A41: P/P Auditor
A42: GIS/Mapping | I42: MCAO | M42: 1 (40 hr) | Q42: 45199
A43: Clerical | T43: LIFE INSURANCE:
U44: (detail:)
T47: OTHER:
U48: (detail:)
A49: *Additional Comments:
A52: Tempory Changes Due To COVID-19:
A53: All staff back working 40 hours/week and in the office.

Sheet 17 Chippewa
A1: 2022 Michigan Equalization Department Salary Survey
A2: COUNTY OF | D2: CHIPPEWA | K2: CLICK HERE TO RETURN TO DIRECTOR SUMMARY PAGE
A4: Director | C4: DULCEE RANTA | J4: Private Phone: | L4: 906-250-2613 | R4: E-mail: | S4: dulceeranta@gmail.com
A5: Alternate: | C5: NONE | J5: Private Phone: | R5: E-mail:
A8: General County Information | J8: Additional Duties and Responsibilities | R8: General Office Information
A10: 1969 | B10: Dept. Established: | E10: unk | F10: % General Fund | J10: x | K10: Apportionment | N10: x | O10: Tax Bills | R10: Business Hrs: | T10: 8:00 - 5:00 | X10: Office Fax #: | Z10: 906-635-6372
A11: 1 | B11: No. of Cities: | F11: Auto Allowance | J11: x | K11: Property Desc. | N11: x | O11: Addressing | R11: Office Phone: | T11: 9066356304 | X11: Website: | Z11: www.chippewacountymi.gov
A12: 16 | B12: No.of Townships: | E12: yes | F12: Fringe Benefits | K12: Assessing Units | N12: x | O12: Website | R12: Address: | T12: 319 Court St
A13: 1 | B13: No.of Villages: | E13: 2022 Budget | J13: x | K13: Data Processing | N13: x | O13: Mapping/GIS | T13: Sault Ste Marie, MI 49783
A14: 40 | B14: No of hrs. per week | E14: 283860 | K14: Other | O14: Other
A15: 3 | B15: No. of Staff (FTEE) | E15: 2022 Revenue(s) | J15: (detail:)
E16: 6800
T18: Fringe Benefits
A19: Valuation Information | G19: CURRENT SOFTWARE | L19: MANATRON
T20: LEAVE POLICY:
G21: No. of | I21: Assessed | M21: % of | O21: Taxable | T21: x | U21: Vacation Days | X21: x | Y21: Sick Days
G22: Parcels | I22: Valuations | M22: Total | O22: Valuations | T22: x | U22: Personal Days | X22: x | Y22: Other | Z22: funeral
B23: Real Property | G23: 29680 | I23: 1346020340 | M23: 0.9546 | O23: 1101244814 | U23: (detail:) | V23: Sick; 1.25 per month, cap at 168 hours. Vacation: afer 1yr, 5days; afer 2yrs, 10days; after 5yrs 15days; after 12yrs, 20days. Some vac days may be sold back at end of yr.
B24: Personal Property | G24: 880 | I24: 77797800 | M24: 0.0454 | O24: 77797800
B25: Total | G25: =SUM(G23:H24) -> 30560 | I25: =SUM(I23:L24) -> 1423818140 | O25: =SUM(O23:R24) -> 1179042614
T26: PENSION:
T27: x | U27: Mers | Y27: 401K
A28: Director, Management & Supervision | T28: x | U28: Defined Contr | Y28: Other | Z28: Defined Benefit
U29: (detail:) | V29: mers b-3 plan
A30: Position | C30: No of years in: | G30: S.T.C. Level | K30: Personal | M30: No. in | O30: 2022
C31: Position | E31: Assmt Adm | G31: Required | I31: Held | K31: Prop. Exmnr | M31: Position | O31: Salary Range
A32: Director | C32: 27 | E32: 35 | G32: 3 | I32: 3 | K32: yes | M32: 1 | O32: 71000 | S32: *** | T32: LONGEVITY:
A33: Deputy/Asst. | U33: (detail:) | V33: 4-7yrs .05per hr; 8-11yrs .10per hr; 11-19yrs .15per hr; 20plus yrs .25per hr.
T36: HEALTH:
A37: Staff | T37: x | U37: BC/BS Type | X37: x | Y37: Dental
A38: Appraiser III | U38: HMO | X38: x | Y38: Vision
A39: Appraiser II | G39: 2 | M39: 2 | O39: 37400 | Q39: 44700 | U39: Cafeteria | Y39: Other
A40: Appraiser I | U40: (detail:)
A41: P/P Auditor
A42: GIS/Mapping
A43: Clerical | G43: 1 | M43: 1 | O43: 33200 | Q43: 39500 | T43: LIFE INSURANCE:
U44: (detail:) | V44: $30,000 term ins.
T47: OTHER:
U48: (detail:)
A49: *Additional Comments:
A52: Tempory Changes Due To COVID-19:

Sheet 18 Clare
A1: 2017 Michigan Equalization Department Salary Survey
A2: COUNTY OF | D2: CLARE | K2: CLICK HERE TO RETURN TO DIRECTOR SUMMARY PAGE
A4: Director | C4: Preston Community Services LLC | J4: Private Phone: | L4: 989-539-7894 | R4: E-mail:
A5: Alternate: | J5: Private Phone: | R5: E-mail:
A8: General County Information | J8: Additional Duties and Responsibilities | R8: General Office Information
A10: 1967 | B10: Dept. Established: | F10: % General Fund | J10: x | K10: Apportionment | N10: x | O10: Tax Bills | R10: Business Hrs: | T10: 8:00 AM TO 4:30 PM | X10: Office Fax #: | Z10: 989-539-7208
A11: 2 | B11: No. of Cities: | E11: 0.575 | F11: Auto Allowance | J11: x | K11: Property Desc. | O11: Addressing | R11: Office Phone: | T11: 989-539-7894 | X11: Website: | Z11: CLARECO.NET
A12: 16 | B12: No.of Townships: | F12: Fringe Benefits | K12: Assessing Units | O12: Website | R12: Address: | T12: EQUALIZATION DEPT
A13: 1 | B13: No.of Villages: | E13: 2017 Budget | J13: x | K13: Data Processing | N13: x | O13: Mapping/GIS | T13: 225 W. MAIN ST
A14: 37.5 | B14: No of hrs. per week | E14: 178845 | K14: Other | O14: Other | T14: HARRISON, MI 48625
A15: 2 | B15: No. of Staff (FTEE) | E15: 2017 Revenue(s) | J15: (detail:)
E16: 70000
T18: Fringe Benefits
A19: Valuation Information | G19: CURRENT SOFTWARE | L19: BS&A .NET ASSESSING/EQUALIZATION AND TAXES
T20: LEAVE POLICY:
G21: No. of | I21: Assessed | M21: % of | O21: Taxable | T21: 18 | U21: Vacation Days | X21: 12 | Y21: Sick Days
G22: Parcels | I22: Valuations | M22: Total | O22: Valuations | T22: 3 | U22: Personal Days | Y22: Other
B23: Real Property | G23: 34121 | I23: 1087377446 | M23: =SUM(I23/I25) -> 0.9113547199 | O23: 904153199 | U23: (detail:) | V23: Vacation: after 6 Months, 3 days, after 1 yr, 3 days; 2 yrs, 12 days; 5 yrs, 18 days 22 yrs. 20 days. Sick: 1 day per month up to 70 then paid 65% of wage. Personal: 3 days.
B24: Personal Property | G24: 1112 | I24: 105766587 | M24: =SUM(I24/I25) -> 0.0886452801 | O24: 105706849
B25: Total | G25: =G23+G24 -> 35233 | I25: =SUM(I23:L24) -> 1193144033 | M25: =SUM(M23:N24) -> 1 | O25: =SUM(O23:R24) -> 1009860048
T26: PENSION:
T27: x | U27: Mers | Y27: 401K
A28: Director, Management & Supervision | U28: Defined Contr | Y28: Other
U29: (detail:) | V29: MERSB-3
A30: Position | C30: No of years in: | G30: S.A.B. Level | K30: Personal | M30: No. in | O30: 2015
C31: Position | E31: Assmt Adm | G31: Required | I31: Held | K31: Prop. Exmnr | M31: Position | O31: Salary Range
A32: Director | C32: 18 | E32: 28 | G32: MAAO | I32: MAAO | K32: YES | M32: 1 | Q32: 50360 | T32: LONGEVITY:
A33: Deputy/Asst. | U33: (detail:) | V33: None.
T36: HEALTH:
A37: Staff | T37: X | U37: BC/BS Type | X37: X | Y37: Dental
A38: MAAO | T38: X | U38: HMO | X38: X | Y38: Vision
A39: MACO | M39: 1 | O39: 29708.25 | Q39: 35949.16 | T39: X | U39: Cafeteria | X39: X | Y39: Other
U40: (detail:) | V40: BC/BS Community Blue PPO Plan 2. BC/BS 50-50 Dental; BC/BS Vision A Plan-80%; BC/BS Drug $10 Generic AND $20 Brand Name. After Reimbursment. MEBS - BENNY CARD
A41: P/P Auditor
A42: GIS/Mapping | M42: 1 | O42: 28137.77 | Q42: 330242.75
A43: Clerical | O43: 26214.8 | Q43: 31119.56 | T43: LIFE INSURANCE:
U44: (detail:) | V44: $20,000 Life; $30,000 Accidental.
T47: OTHER:
U48: (detail:) | V48: 13 paid holidays and Funeral Leave.
A49: *Additional Comments:
A52: Tempory Changes Due To COVID-19:

Sheet 19 Clinton
A1: 2017 Michigan Equalization Department Salary Survey
A2: COUNTY OF | D2: Clinton | K2: CLICK HERE TO RETURN TO DIRECTOR SUMMARY PAGE
A4: Director | C4: Barbara J. Moss | J4: Private Phone: | L4: 989-224-5172 | R4: E-mail: | S4: mossb@clinton-county.org
A5: Alternate: | C5: Eric Harger | J5: Private Phone: | L5: 989-224-5173 | R5: E-mail: | S5: hargere@clinton-county.org
A8: General County Information | J8: Additional Duties and Responsibilities | R8: General Office Information
A10: 1966 | B10: Dept. Established: | E10: 0.012 | F10: % General Fund | J10: X | K10: Apportionment | O10: Tax Bills | R10: Business Hrs: | T10: 8:00 am to 5:00 pm | X10: Office Fax #: | Z10: 989-227-6497
A11: 6 | B11: No. of Cities: | E11: N/A | F11: Auto Allowance | K11: Property Desc. | N11: X | O11: Addressing | R11: Office Phone: | T11: 989-224-5170 | X11: Website: | Z11: www.clinton-county.org
A12: 16 | B12: No.of Townships: | E12: N/A | F12: Fringe Benefits | J12: X | K12: Assessing Units | O12: Website | R12: Address: | T12: 100 E State Street, Suite 1200
A13: 6 | B13: No.of Villages: | E13: 2017 Budget | J13: X | K13: Data Processing | O13: Mapping/GIS | T13: Saint Johns, MI 48879
A14: 40 | B14: No of hrs. per week | E14: 250000 | K14: Other | O14: Other | R14: Fax: | T14: 989-227-6497
A15: 3 | B15: No. of Staff (FTEE) | E15: 2017 Revenue(s) | J15: (detail:)
E16: Estimated at $3,000
T18: Fringe Benefits
A19: Valuation Information | G19: CURRENT SOFTWARE | L19: BS & A
T20: LEAVE POLICY:
G21: No. of | I21: Assessed | M21: % of | O21: Taxable | T21: Yes | U21: Vacation Days | X21: 13 | Y21: Sick Days
C22: 2016 | G22: Parcels | I22: Valuations | M22: Total | O22: Valuations | T22: 3 | U22: Personal Days | X22: 12 | Y22: Other | Z22: Holidays
B23: Real Property | G23: 34356 | I23: 3236783057 | M23: 0.9458 | O23: 2450809332 | U23: (detail:)
B24: Personal Property | G24: 2044 | I24: 140428573 | M24: 0.0542 | O24: 140422407
B25: Total | G25: 36400 | I25: 3377211630 | M25: 1 | O25: 2547727561
B26: Exempt | H26: 1311 | T26: PENSION:
T27: Yes | U27: Mers | Y27: 401K
A28: Director, Management & Supervision | T28: 2 | U28: Defined Contr | X28: 1 | Y28: Other | Z28: Defined Benefit
U29: (detail:)
A30: Position | C30: No of years in: | G30: S.T.C. Level | K30: Personal | M30: No. in | O30: 2016
C31: Position | E31: Assmt Adm | G31: Required | I31: Held | K31: Prop. Exmnr | M31: Position | O31: Salary Range
A32: Director | C32: 22 | E32: 30 | G32: 4 | I32: 4 | K32: Yes | M32: 1 | Q32: 80425 | T32: LONGEVITY:
A33: Deputy/Asst. | T33: N/A | U33: (detail:)
T36: HEALTH:
A37: Staff | T37: X | U37: BC/BS Type | X37: X | Y37: Dental
A38: Appraiser III | G38: N/A | I38: MCAO | K38: No | M38: 1 | Q38: 48605 | U38: HMO | X38: Optional | Y38: Vision
A39: Appraiser II | U39: Cafeteria | Y39: Other
A40: Appraiser I | U40: (detail:)
A41: P/P Auditor
A42: GIS/Mapping
A43: Clerical | G43: N/A | I43: MCAO | K43: No | M43: 1 | Q43: 41242 | T43: LIFE INSURANCE:
U44: 20000
T47: OTHER:
U48: (detail:)
A49: *Additional Comments:
A50: Contract assistance for 50% of the Commercial and Industrial Study
A52: Tempory Changes Due To COVID-19:

Sheet 20 Crawford
A1: 2017 Michigan Equalization Department Salary Survey
A2: COUNTY OF | D2: Crawford | K2: CLICK HERE TO RETURN TO DIRECTOR SUMMARY PAGE
A4: Director | C4: William Kerr | J4: Private Phone: | L4: 989-344-3234 | R4: E-mail: | S4: bkerr@crawfordco.org
A5: Alternate: | C5: Bob Englebrecht | J5: Private Phone: | L5: 989-344-3234 | R5: E-mail: | S5: renglebrecht@gmail.com
A8: General County Information | J8: Additional Duties and Responsibilities | R8: General Office Information
A10: 1965 | B10: Dept. Established: | E10: 0.035 | F10: % General Fund | J10: X | K10: Apportionment | O10: Tax Bills | R10: Business Hrs: | T10: 8:30 AM TO 4:30 PM | X10: Office Fax #:
A11: 1 | B11: No. of Cities: | E11: NONE | F11: Auto Allowance | K11: Property Desc. | O11: Addressing | R11: Office Phone: | T11: 989-344-3235 | X11: Website: | Z11: crawfordco.org
A12: 6 | B12: No.of Townships: | E12: YES | F12: Fringe Benefits | K12: Assessing Units | O12: Website | R12: Address: | T12: 200 W MICHIGAN AVE
B13: No.of Villages: | E13: 2017 Budget | J13: X | K13: Data Processing | N13: X | O13: Mapping/GIS | T13: GRAYLING MI 49738
B14: No of hrs. per week | E14: 192501 | K14: Other | O14: Other | R14: Fax:
A15: 2 | B15: No. of Staff (FTEE) | E15: 2017 Revenue(s) | J15: (detail:)
E16: 3500
H17: 187965
T18: Fringe Benefits
A19: Valuation Information | G19: CURRENT SOFTWARE | L19: BS&A -- MAPINFO
T20: LEAVE POLICY:
G21: No. of | I21: Assessed | M21: % of | O21: Taxable | T21: x | U21: Vacation Days | X21: x | Y21: Sick Days
G22: Parcels | I22: Valuations | M22: Total | O22: Valuations | T22: x | U22: Personal Days | Y22: Other | Z22: Holidays
B23: Real Property | G23: 16701 | I23: 597637500 | M23: 0.9279 | O23: 488204805 | U23: (detail:)
B24: Personal Property | G24: 701 | I24: 46443450 | M24: 0.0721 | O24: 46443450
B25: Total | G25: 17402 | I25: 644080950 | O25: 534648255
B26: Exempt | T26: PENSION:
T27: X | U27: Mers | Y27: 401K
A28: Director, Management & Supervision | U28: Defined Contr | Y28: Other | Z28: Defined Benefit
U29: (detail:)
A30: Position | C30: No of years in: | G30: S.T.C. Level | K30: Personal | M30: No. in | O30: 2017
C31: Position | E31: Assmt Adm | G31: Required | I31: Held | K31: Prop. Exmnr | M31: Position | O31: Salary Range
A32: Director | C32: 1+yrs | E32: 40 | G32: MAAO | I32: MMAO | O32: CONTRACTED | T32: LONGEVITY:
A33: Deputy/Asst. | C33: 1+yrs | E33: 20 | I33: MMAO | O33: CONTRACTED | T33: N/A | U33: (detail:)
T36: HEALTH:
A37: Staff | U37: BC/BS Type | X37: X | Y37: Dental
A38: Appraiser III | T38: X | U38: PPO | X38: X | Y38: Vision
A39: Appraiser II | G39: MCAO | I39: MCAO | O39: 14.75 | Q39: 19.62 | U39: Cafeteria | Y39: Other
A40: Appraiser I | U40: (detail:)
A41: P/P Auditor
A42: GIS/Mapping
A43: Clerical | I43: MCAT | O43: 12.91 | Q43: 17.33 | T43: LIFE INSURANCE:
T47: OTHER:
A49: *Additional Comments:
A52: Tempory Changes Due To COVID-19:

Sheet 21 Delta
A1: 2021 Michigan Equalization Department Salary Survey
A2: COUNTY OF | D2: Delta | K2: CLICK HERE TO RETURN TO DIRECTOR SUMMARY PAGE
A4: Director | C4: Anthony Meyaard | J4: Private Phone: | L4: 906-789-51090 | R4: E-mail: | S4: tony@assessingsolutions.com
A5: Alternate: | C5: Lee Anne Strand | J5: Private Phone: | L5: 906-789-5109 | R5: E-mail: | S5: lstrand@deltacountymi.org
A8: General County Information | J8: Additional Duties and Responsibilities | R8: General Office Information
A10: 1958 | B10: Dept. Established: | F10: % General Fund | J10: x | K10: Apportionment | N10: x | O10: Tax Bills | R10: Business Hrs: | T10: 8 am - 4 pm | X10: Office Fax #: | Z10: 906-789-5188
A11: 2 | B11: No. of Cities: | E11: 0.53.5 | F11: Auto Allowance | J11: x | K11: Property Desc. | N11: x | O11: Addressing | R11: Office Phone: | T11: 906-789-5109 | X11: Website:
A12: 14 | B12: No.of Townships: | F12: Fringe Benefits | K12: Assessing Units | O12: Website | R12: Address: | T12: 310 Ludington St.
A13: 1 | B13: No.of Villages: | E13: 2021 Budget | J13: x | K13: Data Processing | N13: x | O13: Mapping/GIS | T13: Escanaba MI 49829
A14: 35 | B14: No of hrs. per week | E14: 55398 | K14: Other | O14: Other | R14: Fax:
A15: 1 | B15: No. of Staff (FTEE) | E15: 2021 Revenue(s) | J15: (detail:)
T18: Fringe Benefits
A19: Valuation Information | G19: CURRENT SOFTWARE | L19: BS & A
T20: LEAVE POLICY:
G21: No. of | I21: Assessed | M21: % of | O21: Taxable | T21: x | U21: Vacation Days | X21: x | Y21: Sick Days
G22: Parcels | I22: Valuations | M22: Total | O22: Valuations | T22: x | U22: Personal Days | Y22: Other | Z22: Holidays
B23: Real Property | G23: 29235 | I23: 1235906257 | M23: 0.912 | O23: 1017477411 | U23: (detail:)
B24: Personal Property | G24: 1365 | I24: 119155476 | M24: 0.088 | O24: 118884631
B25: Total | G25: 30600 | I25: 1355061733 | M25: 1 | O25: 1136362042
B26: Exempt | G26: 1594 | T26: PENSION:
T27: x | U27: Mers | X27: x | Y27: 401K
A28: Director, Management & Supervision | U28: Defined Contr | Y28: Other | Z28: Defined Benefit
U29: (detail:)
A30: Position | C30: No of years in: | G30: S.T.C. Level | K30: Personal | M30: No. in | O30: 2021
C31: Position | E31: Assmt Adm | G31: Required | I31: Held | K31: Prop. Exmnr | M31: Position | O31: Salary Range
A32: Director | C32: 4 | E32: 34 | G32: MMAO(4) | I32: MMAO(4) | M32: 1 | O32: 90000 | Q32: 90000 | T32: LONGEVITY:
A33: Deputy/Asst. | C33: 5 | E33: 5 | G33: MCAO | I33: MCAO | M33: 1 | O33: 31208 | Q33: 33004 | T33: N/A | U33: (detail:)
T36: HEALTH:
A37: Staff | T37: x | U37: BC/BS Type | X37: x | Y37: Dental
A38: Appraiser III | M38: 1 | O38: CONTRACTED | U38: HMO | X38: x | Y38: Vision
A39: Appraiser II | U39: Cafeteria | Y39: Other
A40: Appraiser I | U40: (detail:)
A41: P/P Auditor
A42: GIS/Mapping
A43: Clerical | T43: LIFE INSURANCE:
U44: 20000
T47: OTHER:
A49: *Additional Comments:
A52: Tempory Changes Due To COVID-19:

Sheet 22 Dickinson
A1: 2022 Michigan Equalization Department Salary Survey
A2: COUNTY OF | D2: Dickinson | K2: CLICK HERE TO RETURN TO DIRECTOR SUMMARY PAGE
A4: Director | C4: Matthew Baumgartner | J4: Private Phone: | L4: 906-774-2515 | R4: E-mail: | S4: equalmatt@dickinsoncountymi.gov
A5: Alternate: | C5: Lori Gregory | J5: Private Phone: | L5: 906-774-2515 | R5: E-mail: | S5: lgregory@dickinsoncountymi.gov
A8: General County Information | J8: Additional Duties and Responsibilities | R8: General Office Information
A10: 1956 | B10: Dept. Established: | E10: 0.019 | F10: % General Fund | J10: x | K10: Apportionment | O10: Tax Bills | R10: Business Hrs: | T10: 8am to 4:30pm | X10: Office Fax #: | Z10: 906-774-3686
A11: 3 | B11: No. of Cities: | E11: .50/mile | F11: Auto Allowance | J11: x | K11: Property Desc. | N11: x | O11: Addressing | R11: Office Phone: | T11: 906-774-2515 | X11: Website: | Z11: dickinsoncountymi.gov
A12: 7 | B12: No.of Townships: | E12: 0.59 | F12: Fringe Benefits | K12: Assessing Units | N12: x | O12: Website | R12: Address: | T12: PO Box 609
B13: No.of Villages: | E13: 2022 Budget | K13: Data Processing | N13: x | O13: Mapping/GIS | T13: Iron Mountain, MI 49801
A14: 37.5 | B14: No of hrs. per week | E14: 203415 | K14: Other | O14: Other | R14: Fax:
A15: 2 | B15: No. of Staff (FTEE) | E15: 2022 Revenue(s) | J15: (detail:)
E16: 13500
T18: Fringe Benefits
A19: Valuation Information | G19: CURRENT SOFTWARE | L19: BSA
T20: LEAVE POLICY:
G21: No. of | I21: Assessed | M21: % of | O21: Taxable | T21: x | U21: Vacation Days | X21: 12/yr | Y21: Sick Days
G22: Parcels | I22: Valuations | M22: Total | O22: Valuations | T22: 5 | U22: Personal Days | X22: 10 | Y22: Other | Z22: Holidays
B23: Real Property | G23: 20351 | I23: 1034922374 | M23: 0.9 | O23: 874125133 | U23: (detail:) | V23: Vacation 1yr-5 days, 2yrs-10 days, 7 yrs-15 days, 12 yrs-20 days, 1 additional day for each year after 20 years of service up to maximum of 30 yrs.
B24: Personal Property | G24: 1049 | I24: 95173200 | M24: 0.1 | O24: 94667164
B25: Total | G25: 21400 | I25: 1130095574 | M25: 1 | O25: 968792297
B26: Exempt | G26: 704 | T26: PENSION:
T27: x | U27: Mers | Y27: 401K
A28: Director, Management & Supervision | T28: x | U28: Defined Contr | X28: x | Y28: Other | Z28: Defined Benefit
U29: (detail:) | V29: Employee's hired after 12/31/17 are in a Defined Contribution plan.
A30: Position | C30: No of years in: | G30: S.T.C. Level | K30: Personal | M30: No. in | O30: 2022
C31: Position | E31: Assmt Adm | G31: Required | I31: Held | K31: Prop. Exmnr | M31: Position | O31: Salary Range
A32: Director | C32: 1 | E32: 6 | G32: III | I32: III | M32: 1 | O32: 60738 | Q32: 74099 | T32: LONGEVITY:
A33: Deputy/Asst. | C33: 1 | E33: 11 | G33: II | I33: II | M33: 1 | O33: 42762 | Q33: 48229 | T33: N/A | U33: (detail:) | V33: $200 for every 5 yrs up to $1,200
T36: HEALTH:
A37: Staff | T37: x | U37: BC/BS Type | X37: x | Y37: Dental
A38: Appraiser III | U38: HMO | X38: x | Y38: Vision
A39: Appraiser II | U39: Cafeteria | X39: X | Y39: Other
A40: Appraiser I | U40: (detail:) | V40: HSA County contributes 1500 single 3000 family
A41: P/P Auditor
A42: GIS/Mapping
A43: Clerical | M43: 0.5 | Q43: 17768 | T43: LIFE INSURANCE:
V44: 10000
T47: OTHER:
V48: Funeral- 3 days
A49: *Additional Comments:
A52: Tempory Changes Due To COVID-19:

Sheet 23 Eaton
A1: 2021 Michigan Equalization Department Salary Survey
A2: COUNTY OF | D2: Eaton | K2: CLICK HERE TO RETURN TO DIRECTOR SUMMARY PAGE
A4: Director | C4: Timothy Vandermark | J4: Private Phone: | L4: 517-543-4101 | R4: E-mail: | S4: tvandermark@eatoncounty.org
A5: Alternate: | C5: Clayton Rider Jr. | J5: Private Phone: | L5: 517-543-7500 Ext 4116 | R5: E-mail: | S5: CRiderJr@eatoncounty.org
A8: General County Information | J8: Additional Duties and Responsibilities | R8: General Office Information
A10: 1966 | B10: Dept. Established: | E10: 0.013 | F10: % General Fund | J10: x | K10: Apportionment | N10: x | O10: Tax Bills | R10: Business Hrs: | T10: 8:00AM-5:00PM | X10: Office Fax #: | Z10: 517-543-7377
A11: 6 | B11: No. of Cities: | E11: 0.54 | F11: Auto Allowance | J11: x | K11: Property Desc. | N11: x | O11: Addressing | R11: Office Phone: | T11: 517-543-4104 | X11: Website: | Z11: www.eatoncounty.org
A12: 16 | B12: No.of Townships: | E12: 0.3 | F12: Fringe Benefits | K12: Assessing Units | N12: x | O12: Website | R12: Address: | T12: 1045 Independence Blvd
A13: 5 | B13: No.of Villages: | E13: 2021 Budget | J13: x | K13: Data Processing | N13: x | O13: Mapping/GIS | T13: Charlotte, MI 48813
A14: 40 | B14: No of hrs. per week | E14: 622000 | K14: Other | O14: Other
A15: 6 | B15: No. of Staff (FTEE) | E15: 2021 Revenue(s) | J15: (detail:) | K15: We assisst with calculating TIFA captured amounts, printing tax rolls, assessment rolls and notices. We do all the splits except for delta twp. Remonumentation Plan as well
E16: 105000
T18: Fringe Benefits
A19: Valuation Information | H19: CURRENT SOFTWARE | M19: BS & A dot net
T20: LEAVE POLICY:
G21: No. of | I21: Assessed | M21: % of | O21: Taxable | T21: 10-20 | U21: Vacation Days | X21: 10 | Y21: Sick Days
G22: Parcels | I22: Valuations | M22: Total | O22: Valuations | T22: 3 | U22: Personal Days | Y22: Other
B23: Real Property | G23: =46907+936 -> 47843 | I23: 4165070880 | M23: =I23/I25 -> 0.9275773438 | O23: 3550676586 | U23: (detail:) | V23: Sick- 3 hours per pay period. Payout after 500 hours. Vac- 0-4 yrs=3.1hrs per pay period, 5-9yrs=4.6hrs per pay period, 10+yrs=6.2hrs p/pay period. Vacation Max accum is 240 hours.
B24: Personal Property | G24: 3925 | I24: 325197137 | M24: =I24/I25 -> 0.07242265624 | O24: 325197137
B25: Total | G25: =SUM(G23:H24) -> 51768 | I25: =I23+I24 -> 4490268017 | M25: =SUM(M23:N24) -> 1 | O25: =O23+O24 -> 3875873723
T26: PENSION:
T27: x | U27: Mers | Y27: 401K
A28: Director, Management & Supervision | U28: Defined Contr | Y28: Other
U29: (detail:) | V29: Mers B-3 Employee Contribution 7.3% - Non-Admin. Mers B-3 Employee Contribution 7.3%-Administrative
A30: Position | C30: No of years in: | G30: S.A.B. Level | K30: Personal | M30: No. in | O30: 2019
C31: Position | E31: Assmt Adm | G31: Required | I31: Held | K31: Prop. Exmnr | M31: Position | O31: Salary Range
A32: Director | C32: 16 | E32: 22 | G32: 4 | I32: 4 | K32: yes | M32: 1 | O32: 81200 | Q32: 99052 | T32: LONGEVITY:
A33: Deputy/Asst. | C33: 13 | E33: 17 | G33: 3 | I33: 3 | K33: yes | M33: 1 | O33: 49755 | Q33: 65313 | U33: (detail:) | V33: Longevity Schedule: 5-9 yrs $200 , 10 to 14 yrs $500, 15-19 yrs $800, 20yrs +$1,100.
T36: HEALTH:
A37: Staff | T37: x | U37: BC/BS Type | X37: x | Y37: Dental
A38: Appraiser III | G38: 3 | I38: 3 | M38: 1 | O38: 42267 | Q38: 55272 | U38: HMO | X38: x | Y38: Vision
A39: Appraiser II | U39: Cafeteria | Y39: Other
A40: Appraiser I | U40: (detail:) | V40: Medical Benefits: BC/BS PPO - $20 Co-Pay Office Visit, $20 Per Specialist visit, $500 deductable per hospital visit & lab tests, 5% or $120 per month towards premiums.
A41: P/P Auditor
A42: GIS/Mapping | M42: 1 | O42: 34238 | Q42: 44515
A43: Clerical | M43: 1 | O43: 29142 | Q43: 38179 | T43: LIFE INSURANCE:
A44: Equal Aid | M44: 1 | O44: 30556 | Q44: 39600 | U44: (detail:) | V44: $20,000 Life & $20,000 A.D. & D
T47: OTHER:
U48: (detail:) | V48: Personal leave 3 days after 1 yr. Delta Dental 50/50 co-pay. Sick & accident 66 2/3 gross weekly earn over $425/wk. 1st day of accident 8th illness- 12 paid holidays.
A49: *Additional Comments:
A52: Tempory Changes Due To COVID-19:

Sheet 24 Emmet
A1: 2022 Michigan Equalization Department Salary Survey
A2: COUNTY OF | D2: Emmet | K2: CLICK HERE TO RETURN TO DIRECTOR SUMMARY PAGE
A4: Director | C4: Lynette Girard | J4: Private Phone: | L4: 2313481711 | R4: E-mail: | S4: lgirard@emmetcounty.org
A5: Alternate: | B5: Deputy | C5: Michael A. Larson | J5: Private Phone: | L5: 2313481733 | R5: E-mail: | S5: mlarson@emmetcounty.org
A8: General County Information | J8: Additional Duties and Responsibilities | R8: General Office Information
A10: 1968 | B10: Dept. Established: | E10: 0.029 | F10: % General Fund | J10: x | K10: Apportionment | O10: Tax Bills | R10: Business Hrs: | T10: 8:00 - 5:00 | X10: Office Fax #: | Z10: 2313481768
A11: 2 | B11: No. of Cities: | E11: 0.51 | F11: Auto Allowance | J11: x | K11: Property Desc. | N11: x | O11: Addressing | R11: Office Phone: | T11: 2313481708 | X11: Website: | Z11: www.emmetcounty.org/equalization
A12: 16 | B12: No.of Townships: | E12: 0.28 | F12: Fringe Benefits | K12: Assessing Units | N12: x | O12: Website | R12: Address: | T12: 200 Division St., Suite 180
A13: 3 | B13: No.of Villages: | E13: 2022 Budget | K13: Data Processing | N13: x | O13: Mapping/GIS | T13: Petoskey, MI 49770
A14: 40 | B14: No of hrs. per week | E14: 498000 | J14: x | K14: Assess. Notices | N14: x | O14: Other
A15: 5 | B15: No. of Staff (FTEE) | E15: 2022 Revenue(s) | J15: (detail:) | K15: Splits and Combinations
E16: 35000
T18: Fringe Benefits
A19: Valuation Information | G19: CURRENT SOFTWARE | L19: BS&A
T20: LEAVE POLICY:
G21: No. of | I21: Assessed | M21: % of | O21: Taxable | T21: x | U21: Vacation Days | X21: x | Y21: Sick Days
G22: Parcels | I22: Valuations | M22: Total | O22: Valuations | T22: x | U22: Personal Days | X22: x | Y22: Other
B23: Real Property | G23: 29209 | I23: 4548405631 | M23: =I23/I25 -> 0.969210165 | O23: 3330187559 | U23: (detail:) | V23: Sick: 12 days per yr with unused pd at end of yr; Vacatin: 1 yr=5days, 2 yrs=10days, 5-9 yrs=15days, 10-20 yrs=25days; Personal: 1day
B24: Personal Property | G24: 1683 | I24: 144493593 | M24: =I24/I25 -> 0.03078983505 | O24: 144389457
B25: Total | G25: =SUM(G23:H24) -> 30892 | I25: =SUM(I23:L24) -> 4692899224 | M25: =SUM(M23:N24) -> 1 | O25: =SUM(O23:R24) -> 3474577016
T26: PENSION:
U27: Mers | X27: x | Y27: 401K
A28: Director, Management & Supervision | T28: x | U28: Defined Contr | Y28: Other | Z28: Defined Benefit
U29: (detail:) | V29: 8% of salary contributed by county
A30: Position | C30: No of years in: | G30: S.T.C. Level | K30: Personal | M30: No. in | O30: 2010
C31: Position | E31: Assmt Adm | G31: Required | I31: Held | K31: Prop. Exmnr | M31: Position | O31: Salary Range
A32: Director Contracted | C32: 24 | E32: 39 | G32: 3 | I32: 4 | K32: n | M32: 1 | O32: 36000 | S32: *** | T32: LONGEVITY:
A33: Deputy/Asst. | C33: 12 | E33: 13 | G33: 3 | I33: 3 | K33: n | M33: 1 | O33: 70000 | U33: (detail:) | V33: not applicable
T36: HEALTH:
A37: Staff | U37: BC/BS Type | X37: x | Y37: Dental
A38: Appraiser III | U38: HMO | X38: x | Y38: Vision
A39: Appraiser II | T39: x | U39: Cafeteria | Y39: Other
A40: Appraiser I | G40: 2 | I40: 1 | K40: N | M40: 1 | O40: 44000 | U40: (detail:) | V40: Cafeteria plans are available with employee subsidy. Dental and Vision are inlcuded.
A41: P/P Auditor
A42: GIS/Mapping | M42: 2 | O42: 42000 | Q42: 50000
A43: Clerical | M43: 1 | O43: 38000 | T43: LIFE INSURANCE:
U44: (detail:) | V44: $20,000 per employee. Short term and Long term disability are also available.
T47: OTHER:
U48: (detail:) | V48: Funeral leave = 5days for immediate family; General Leave = 12 paid holidays which include 3 Floating holidays.
A49: *Additional Comments:
A50: The above appraisers position is supplemented by Sub Contracter for Commercial and Industrial Appraisals.
A52: Tempory Changes Due To COVID-19:

Sheet 25 Genesee
A1: 2022 Michigan Equalization Department Salary Survey
A2: COUNTY OF | D2: GENESEE | K2: CLICK HERE TO RETURN TO DIRECTOR SUMMARY PAGE
A4: Director | C4: Mellissa K. Hayduk | J4: Private Phone: | L4: (810) 257-2631 | R4: E-mail: | S4: mhayduk@geneseecountymi.gov
A5: Alternate: | J5: Private Phone: | L5: (810) 813-0909 | R5: E-mail:
A8: General County Information | J8: Additional Duties and Responsibilities | R8: General Office Information
A10: 1955 | B10: Dept. Established: | E10: 0.0102 | F10: % General Fund | J10: x | K10: Apportionment | O10: Tax Bills | R10: Business Hrs: | T10: 7:30 am - 5:00 pm | X10: Office Fax #: | Z10: (810) 768-7954
A11: 11 | B11: No. of Cities: | E11: No | F11: Auto Allowance | J11: x | K11: Property Desc. | O11: Addressing | R11: Office Phone: | T11: (810) 257-3017 | X11: Website: | Z11: http://www.geneseecountymi.gov/
A12: 17 | B12: No.of Townships: | E12: 0.42 | F12: Fringe Benefits | J12: 0 | K12: Assessing Units | N12: x | O12: Website | R12: Address: | T12: 1101 Beach Street; Suite 206
A13: 5 | B13: No.of Villages: | E13: 2022/23 Budget | K13: Data Processing | N13: x | O13: Mapping/GIS | T13: Flint, Michigan 48502-1468
A14: 40 | B14: No of hrs. per week | E14: 960738 | K14: Other | O14: Other
A15: 6 | B15: No. of Staff (FTEE) | E15: 2022/23 Revenue(s) | J15: (detail:)
E16: 1000
T18: Fringe Benefits
A19: Valuation Information
T20: LEAVE POLICY:
G21: No. of | I21: Assessed | M21: % of | O21: Taxable | T21: x | U21: Vacation Days | X21: x | Y21: Sick Days
G22: Parcels | I22: Valuations | M22: Total | O22: Valuations | T22: x | U22: Personal Days | Y22: Other
B23: Real Property | G23: 190790 | I23: =14414180143-I24 -> 13571101343 | M23: =+I23/I25 -> 0.9415104576 | O23: =11143607810-O24 -> 10305252281 | U23: (detail:) | V23: Vacation: 1-5 yrs, 11 days; 5-10 yrs. 16 days; 10-15 yrs. 21 days; 15 plus yrs, 25 days. Personal: 64 hrs yrly (union employees only) ; Personal days and sick days are the same. Director receives only vacation days.
B24: Personal Property | G24: 12240 | I24: 843078800 | M24: =+I24/I25 -> 0.05848954236 | O24: 838355529
B25: Total | G25: =+SUM(G23:H24) -> 203030 | I25: =+SUM(I23:L24) -> 14414180143 | M25: =+SUM(M23:N24) -> 1 | O25: =+SUM(O23:R24) -> 11143607810
T26: PENSION:
U27: Mers | Y27: 401K
A28: Director, Management & Supervision | T28: x | U28: Defined Contr | X28: x | Y28: Other
U29: (detail:) | V29: Defined Contribution & Defined Benefit
A30: Position | C30: No of years in: | G30: S.A.B. Level | K30: Personal | M30: No. in | O30: 2022
C31: Position | E31: Assmt Adm | G31: Required | I31: Held | K31: Prop. Exmnr | M31: Position | O31: Salary Range
A32: Director | C32: 3 | E32: 21 | G32: 4 | I32: 4 | K32: Y | M32: 1 | Q32: 107608.8 | T32: LONGEVITY:
U33: (detail:) | V33: 7 yrs. 2%; 10 yrs. 4%; 13 yrs, 6%; 16 yrs. 8%; 19 plus yrs. 10% of annual base. New employees do not receive longevity.
T36: HEALTH:
A37: Staff | T37: x | U37: BC/BS Type | X37: x | Y37: Dental
A38: Examiner | G38: 2 or 3 | I38: 3 | M38: 3 | O38: 57579 | Q38: 71045 | T38: x | U38: HMO | X38: x | Y38: Vision
A39: Chief Examiner | G39: 3 | I39: 3 | M39: 1 | O39: 61245 | Q39: 75372 | U39: Cafeteria | X39: x | Y39: Other
U40: (detail:) | V40: County pays for HAP HMO. Employees can choose to upgrade to HAP PPO or BC/BS PPO with a portion paid by them. County also provides short and long term disability.
A41: P/P Auditor | G41: 3 | M41: 0
A42: Mapping Technician | M42: 1 | O42: 44516 | Q42: 59021
A43: Equalization Coordinator | G43: 3 | I43: 3 | M43: 1 | O43: 60753 | Q43: 71498 | T43: LIFE INSURANCE:
U44: (detail:) | V44: $50,000 Term Life Insurance
T47: OTHER:
U48: (detail:) | V48: 14 paid holidays
A49: *Additional Comments:
A50: Lost one Mapping Technician due to retirement and budget constraints did not allow for a replacement.
A52: Tempory Changes Due To COVID-19:

Sheet 26 Gladwin
A1: 2017 Michigan Equalization Department Salary Survey
A2: COUNTY OF | D2: Gladwin | K2: CLICK HERE TO RETURN TO DIRECTOR SUMMARY PAGE
A4: Director | C4: Kimberly K. Halis | J4: Private Phone: | L4: 989-426-9327 | R4: E-mail: | S4: khalis@gladwinco.com
A5: Alternate: | C5: Janine Marchington | J5: Private Phone: | R5: E-mail: | S5: Janine.Marchington@gladwinco.com
A8: General County Information | J8: Additional Duties and Responsibilities | R8: General Office Information
A10: 1968 | B10: Dept. Established: | E10: 0.02 | F10: % General Fund | J10: X | K10: Apportionment | O10: Tax Bills | R10: Business Hrs: | T10: 8:30-4:30 Mon thru Fri | X10: Office Fax #: | Z10: 989-426-6919
A11: 2 | B11: No. of Cities: | E11: 0.5 | F11: Auto Allowance | J11: X | K11: Property Desc. | O11: Addressing | R11: Office Phone: | T11: 989-426-9327 | X11: Website: | Z11: gladwincounty-mi.gov
A12: 15 | B12: No.of Townships: | E12: 0.3 | F12: Fringe Benefits | K12: Assessing Units | O12: Website | R12: Address: | T12: 555 W Cedar, Ste C
B13: No.of Villages: | E13: 2017 Budget | J13: X | K13: Data Processing | N13: X | O13: Mapping/GIS | T13: Gladwin, MI 48624
A14: 35 | B14: No of hrs. per week | E14: 129588 | K14: Other | O14: Other
A15: 1 | B15: No. of Staff (FTEE) | E15: 2017 Revenue(s) | J15: (detail:)
E16: 3846
T18: Fringe Benefits
A19: Valuation Information | G19: CURRENT SOFTWARE | L19: BS&A
T20: LEAVE POLICY:
G21: No. of | I21: Assessed | M21: % of | O21: Taxable | T21: X | U21: Vacation Days | X21: X | Y21: Sick Days
G22: Parcels | I22: Valuations | M22: Total | O22: Valuations | T22: X | U22: Personal Days | Y22: Other
B23: Real Property | G23: 26825 | I23: 1057362388 | M23: =I23/I25 -> 0.9595416793 | O23: 901146797 | U23: (detail:)
B24: Personal Property | G24: 789 | I24: 44582854 | M24: =I24/I25 -> 0.0404583207 | O24: 44582854
B25: Total | G25: =SUM(G23:H24) -> 27614 | I25: =SUM(I23:L24) -> 1101945242 | M25: =SUM(M23:N24) -> 1 | O25: =SUM(O23:R24) -> 945729651
T26: PENSION:
T27: x | U27: Mers | Y27: 401K
A28: Director, Management & Supervision | T28: x | U28: Defined Contr | Y28: Other | Z28: Defined Benefit
U29: (detail:) | V29: Deferred comp. MERS B3, F55/20, FAC 3 B-10M, E2 straight 3.8% employee contribution
A30: Position | C30: No of years in: | G30: S.T.C. Level | K30: Personal | M30: No. in | O30: 2013 - 2015
C31: Position | E31: Assmt Adm | G31: Required | I31: Held | K31: Prop. Exmnr | M31: Position | O31: Salary Range
A32: Director - Contractual | C32: 1 | E32: 30 | G32: 3 | I32: 3 | K32: YES | M32: 1 | Q32: 65000 | S32: *** | T32: LONGEVITY:
U33: (detail:)
T36: HEALTH:
A37: Staff - UAW Local1974 | T37: x | U37: BC/BS Type | Y37: Dental
A38: Appraiser III | U38: HMO | X38: X | Y38: Vision
A39: Appraiser II | U39: Cafeteria | Y39: Other
A40: Appraiser I | U40: (detail:) | V40: Blue Care Network - HRA reimbursement partial funding by county.
A41: P/P Auditor
A42: GIS/Mapping
A43: Clerical | M43: 1 | Q43: 28532 | T43: LIFE INSURANCE:
U44: (detail:) | V44: 10000
T47: OTHER:
U48: (detail:)
A49: *Additional Comments:

Sheet 27 Gogebic
A1: 2021 Michigan Equalization Department Salary Survey
A2: COUNTY OF | D2: Gogebic | K2: CLICK HERE TO RETURN TO DIRECTOR SUMMARY PAGE
A4: Director | C4: Kathy Jo Koval | J4: Private Phone: | L4: 906-663-1275 | R4: E-mail: | S4: kkoval@gogebiccountymi.gov
A5: Alternate: | C5: Tina Romosz | J5: Private Phone: | L5: 906-663-4414 | R5: E-mail: | S5: tromosz@gogebiccountymi.gov
A8: General County Information | J8: Additional Duties and Responsibilities | R8: General Office Information
B10: Dept. Established: | F10: % General Fund | J10: X | K10: Apportionment | O10: Tax Bills | R10: Business Hrs: | T10: 8:30 - 4:30 cdt | X10: Office Fax #: | Z10: 906-663-4105
A11: 3 | B11: No. of Cities: | F11: Auto Allowance | J11: X | K11: Property Desc. | N11: X | O11: Addressing | R11: Office Phone: | T11: 906-663-4414 | X11: Website: | Z11: www.gogebiccountymi.gov
A12: 6 | B12: No.of Townships: | F12: Fringe Benefits | K12: Assessing Units | N12: X | O12: Website | R12: Address: | T12: 200 N Moore St
A13: 0 | B13: No.of Villages: | E13: 2021 Budget | J13: X | K13: Data Processing | N13: X | O13: Mapping/GIS | T13: Bessemer, MI 49911
A14: 35 | B14: No of hrs. per week | J14: X | K14: Other | O14: Other | R14: Fax:
A15: 2 | B15: No. of Staff (FTEE) | E15: 2021 Revenue(s) | J15: (detail:) | K15: L-4029
T18: Fringe Benefits
A19: Valuation Information | G19: CURRENT SOFTWARE | L19: BS & A
T20: LEAVE POLICY:
G21: No. of | I21: Assessed | M21: % of | O21: Taxable | T21: 14 | U21: Vacation Days | X21: X | Y21: Sick Days | AA21: 1 per month
G22: Parcels | I22: Valuations | M22: Total | O22: Valuations | T22: 3 | U22: Personal Days | X22: 9 | Y22: Other | Z22: Holidays
B23: Real Property | G23: 16507 | I23: 612711394 | O23: 487389880 | U23: (detail:)
B24: Personal Property | G24: 770 | I24: 87397549 | O24: 85415887
B25: Total | G25: 19995 | I25: 700108943 | O25: 572805767
B26: Exempt | G26: 2718 | T26: PENSION:
U27: Mers | Y27: 401K
A28: Director, Management & Supervision | T28: X | U28: Defined Contr | Y28: Other | Z28: Defined Benefit
U29: (detail:)
A30: Position | C30: No of years in: | G30: S.T.C. Level | K30: Personal | M30: No. in | O30: 2021
C31: Position | E31: Assmt Adm | G31: Required | I31: Held | K31: Prop. Exmnr | M31: Position | O31: Salary Range
A32: Director | C32: 4 | E32: 9 | G32: MAAO | I32: MAAO | M32: 1 | O32: 52700 | T32: LONGEVITY:
A33: Deputy/Asst. | C33: 4 | E33: 4 | G33: MCAO | M33: 1 | O33: 38000 | T33: N/A | U33: (detail:)
T36: HEALTH:
A37: Staff | T37: X | U37: BC/BS Type | Y37: Dental
A38: Appraiser III | U38: HMO | X38: X | Y38: Vision
A39: Appraiser II | U39: Cafeteria | Y39: Other
A40: Appraiser I | U40: (detail:)
A41: P/P Auditor
A42: GIS/Mapping
A43: Clerical | T43: LIFE INSURANCE:
V44: 10000
T47: OTHER:
A49: *Additional Comments:
A52: Tempory Changes Due To COVID-19:

Sheet 28 Grand Traverse
A1: 2021 Michigan Equalization Department Salary Survey
A2: COUNTY OF | D2: GRAND TRAVERSE | K2: CLICK HERE TO RETURN TO DIRECTOR SUMMARY PAGE
A4: Director | C4: James D. Baker | J4: Private Phone: | L4: 2319224773 | R4: E-mail: | S4: jbaker@gtcountymi.gov
A5: Alternate: | C5: Chris Fieldhouse (Deputy) | J5: Private Phone: | L5: 231-922-4755 | R5: E-mail: | S5: cfieldhouse@gtcountymi.gov
A8: General County Information | J8: Additional Duties and Responsibilities | R8: General Office Information
A10: 1961 | B10: Dept. Established: | E10: 0.0196 | F10: % General Fund | J10: x | K10: Apportionment | O10: Tax Bills | R10: Business Hrs: | T10: 8:00 - 5:00 | X10: Office Fax #: | Z10: 2319224447
A11: 1 | B11: No. of Cities: | E11: 0.58 | F11: Auto Allowance | K11: Property Desc. | N11: x | O11: Addressing | R11: Office Phone: | T11: 2319224772 | X11: Website: | Z11: www.co.grand-traverse.mi.us
A12: 13 | B12: No.of Townships: | E12: 0.41 | F12: Fringe Benefits | H12: ** % of | J12: 1 | K12: Assessing Units | N12: x | O12: Website | R12: Address: | T12: 400 Boardman Ave
A13: 2 | B13: No.of Villages: | E13: 2019 Budget Expendature | H13: Salary | K13: Data Processing | N13: x | O13: Mapping/GIS | T13: Traverse City, MI 49684 | Z13: www.taar.com
A14: 40 | B14: No of hrs. per week | E14: 821362 | K14: Other | O14: Other
A15: 8 | B15: No. of Staff (FTEE) | E15: 2019 Budget Revenue(s) | J15: (detail:) | K15: Director and Deputy work 40 hour weeks. GIS was seperated into their own department in 2012, and then combined back into Equalization for 2016.
E16: 231547
T18: Fringe Benefits
A19: Valuation Information | G19: Current Software - BS&A .NET, ArcMap, LexisNexis, TAAR
T20: LEAVE POLICY:
G21: No. of | I21: Assessed | M21: % of | O21: Taxable | T21: x | U21: Vacation Days | Y21: Sick Days
G22: Parcels | I22: Valuations | M22: Total | O22: Valuations | T22: x | U22: Personal Days | Y22: Other
B23: Real Property | G23: 50746 | I23: 7516550506 | M23: 0.9645654122 | O23: 5625691753 | U23: (detail:) | V23: Personal: 8days yrly. Vacation: 1-3yrs, 10days; 3-5yrs, 12days; 5-10yrs, 15days; 10-15yrs, 17days; 15-25yrs, 20days; 25yrs, 25days.
B24: Personal Property | G24: 5340 | I24: 276130437 | M24: 0.03543458779 | O24: 275868236
B25: Total | G25: 58057 | I25: 7792680943 | M25: 1 | O25: 5901559989
B26: Exempt | H26: 1971 | T26: PENSION:
U27: Mers Def. Benefit | Y27: 401K
A28: Director, Management & Supervision | T28: x | U28: Defined Contr | Y28: Other
U29: (detail:) | V29: MERS DC plan county 6% employer match with 3% employee contribution.
A30: Position | C30: No of years in: | G30: S.A.B. Level | K30: Personal | M30: No. in | O30: 2016
C31: Position | E31: Assmt Adm | G31: Required | I31: Held | K31: Prop. Exmnr | M31: Position | O31: Salary Range
A32: Director | C32: 8.5 | E32: 36 | G32: MMAO | I32: MMAO | K32: Y | M32: 1 | O32: 85291 | Q32: 106631 | T32: LONGEVITY:
A33: Deputy/Asst. | C33: 4 | G33: MAAO | I33: MAAO | K33: Y | M33: 1 | O33: 50014 | Q33: 62484 | U33: (detail:) | V33: Pre Jan 1985: 5% after 10yrs; 10% after 15yrs. Post Jan 1985: $50/yr after 5yrs. No Cap.No longevity for new hires after 4/01/07.
T36: HEALTH:
A37: Staff | U37: BC/BS Type | X37: x | Y37: Dental
A38: Appraiser III doing assessing | G38: MAAO | I38: MAAO | K38: Y | M38: 2 | O38: 50294 | Q38: 63003 | T38: x | U38: HMO | X38: x | Y38: Vision
A39: Appraiser III | G39: MAAO | I39: MAAO | K39: Y | M39: 1 | O39: 45697 | Q39: 57262 | U39: Cafeteria | Y39: Other
A40: Appraiser II | G40: MCAO | I40: MCAO | K40: Y | M40: 1 | O40: 36171 | Q40: 45281 | U40: (detail:) | V40: Priority Health w/ Prescription;
A41: Appraiser I | G41: MCAT | I41: MCAT | M41: 0 | O41: 31720 | Q41: 39582
A42: GIS Analyst | M42: 1 | O42: 42841 | Q42: 53683
A43: GIS Tech | M43: 1 | O43: 36171 | Q43: 45281 | T43: LIFE INSURANCE:
U44: (detail:) | V44: $20,000 or 1 time annual salary, whichever is greater.
T47: OTHER:
A49: *Additional Comments:
U50: (detail:) | V50: 12 holidays; 2 floating holidays for Director & Deputy, 1 floating holiday all other staff.
A52: Tempory Changes Due To COVID-19:

Sheet 29 Gratiot
A1: 2020 Michigan Equalization Department Salary Survey
A2: COUNTY OF | D2: Gratiot | K2: CLICK HERE TO RETURN TO DIRECTOR SUMMARY PAGE
A4: Director | C4: Keegan Bengel | J4: Private Phone: | L4: 989-875-5204 | R4: E-mail: | S4: kbengel@gratiotmi.com
A5: Alternate: | J5: Private Phone: | R5: E-mail:
A8: General County Information | J8: Additional Duties and Responsibilities | R8: General Office Information
B10: Dept. Established: | F10: % General Fund | K10: Apportionment | O10: Tax Bills | R10: Business Hrs: | T10: 8:30-4:00 | X10: Office Fax #:
A11: 3 | B11: No. of Cities: | F11: Auto Allowance | K11: Property Desc. | O11: Addressing | R11: Office Phone: | T11: 989-875-5203 | X11: Website:
A12: 16 | B12: No.of Townships: | F12: Fringe Benefits | K12: Assessing Units | O12: Website | R12: Address: | T12: 214 E Center St.
B13: No.of Villages: | E13: 2020 Budget | K13: Data Processing | O13: Mapping/GIS | T13: Ithaca, MI 48847
A14: 40 | B14: No of hrs. per week | K14: Other | O14: Other | R14: Fax:
A15: 3 | B15: No. of Staff (FTEE) | E15: 2020 Revenue(s) | J15: (detail:)
T18: Fringe Benefits
A19: Valuation Information | G19: CURRENT SOFTWARE | L19: BS & A
T20: LEAVE POLICY:
G21: No. of | I21: Assessed | M21: % of | O21: Taxable | U21: Vacation Days | Y21: Sick Days
G22: Parcels | I22: Valuations | M22: Total | O22: Valuations | U22: Personal Days | Y22: Other | Z22: Holidays
B23: Real Property | G23: 21782 | I23: 1742947512 | M23: 0.88 | O23: 1000064578 | U23: (detail:)
B24: Personal Property | G24: 2003 | I24: 479285843 | M24: 0.08 | O24: 479274843
B25: Total | G25: 24820 | I25: 2222233355 | M25: 1 | O25: 1479339421
B26: Exempt | G26: 1035 | M26: 0.04 | T26: PENSION:
U27: Mers | Y27: 401K
A28: Director, Management & Supervision | U28: Defined Contr | Y28: Other | Z28: Defined Benefit
U29: (detail:)
A30: Position | C30: No of years in: | G30: S.T.C. Level | K30: Personal | M30: No. in | O30: 2020
C31: Position | E31: Assmt Adm | G31: Required | I31: Held | K31: Prop. Exmnr | M31: Position | O31: Salary Range
A32: Director | C32: 1 | E32: 5 | G32: MAAO | I32: MAAO | K32: Yes | M32: 1 | O32: 58864 | Q32: 71617 | T32: LONGEVITY:
A33: Deputy/Asst. | T33: N/A | U33: (detail:)
T36: HEALTH:
A37: Staff | U37: BC/BS Type | Y37: Dental
A38: Appraiser III | U38: HMO | Y38: Vision
A39: Appraiser II | U39: Cafeteria | Y39: Other
A40: Appraiser I | U40: (detail:)
A41: P/P Auditor
A42: GIS/Mapping
A43: Clerical | I43: MCAT | M43: 1 | O43: 31818 | Q43: 38699 | T43: LIFE INSURANCE:
A44: Clerical | I44: None | M44: 1 | O44: 29266 | Q44: 35607
T47: OTHER:
A49: *Additional Comments:
A52: Tempory Changes Due To COVID-19:

Sheet 30 Hillsdale
A1: 2022 Michigan Equalization Department Salary Survey
A2: COUNTY OF | D2: Hillsdale | K2: CLICK HERE TO RETURN TO DIRECTOR SUMMARY PAGE
A4: Director: | C4: Nicolas Wheeler | J4: Private Phone: | L4: 517-437-7758 x 132 | R4: E-mail: | S4: nwheeler@co.hillsdale.mi.us
A5: Alternate: | C5: Lisa Bernath | J5: Private Phone: | L5: 517-437-7758x 131 | R5: E-mail: | S5: lbernath@co.hillsdale.mi.us
A8: General County Information | J8: Additional Duties and Responsibilities | R8: General Office Information
A10: 1970 | B10: Dept. Established: | E10: 0.02 | F10: % General Fund | J10: x | K10: Apportionment | N10: x | O10: Tax Bills | R10: Business Hrs: | T10: 8:30 am-5:00 pm | X10: Office Fax #:
A11: 4 | B11: No. of Cities: | E11: 0.625 | F11: Auto Allowance | J11: x | K11: Property Desc. | N11: x | O11: Addressing | R11: Office Phone: | T11: 517-439-9166 | X11: Website:
A12: 18 | B12: No.of Townships: | E12: X | F12: Fringe Benefits | J12: 0 | K12: Assessing Units | N12: x | O12: Website | R12: Address: | T12: Hillsdale County Equalization & | Y12: http://co.hillsdale.mi.us
A13: 5 | B13: No.of Villages: | E13: 2022 Budget | J13: x | K13: Data Processing | N13: x | O13: Mapping/GIS | T13: Land Information | Y13: http://gis.hillsdale.us
A14: 37.5 | B14: No of hrs. per week | E14: 278520 | K14: Other | O14: Other | T14: 33 McCollum St Ste 223
A15: 5 | B15: No. of Staff (FTEE) | E15: 2022 Revenue(s) | J15: (detail:) | K15: The Equalization Dept maintains the Equalization page on the County website & maintains the GIS subscription website. | T15: Hillsdale, MI 49242
E16: 100000
T18: Fringe Benefits
A19: Valuation Information | G19: CURRENT SOFTWARE | L19: BS&A (.Net), ArcMap, APEX
T20: LEAVE POLICY:
G21: No. of | I21: Assessed | M21: % of | O21: Taxable | T21: X | U21: Vacation Days | X21: X | Y21: Sick Days
G22: Parcels | I22: Valuations | M22: Total | O22: Valuations | T22: X | U22: Personal Days | Y22: Other
B23: Real Property | G23: 33362 | I23: 2190746043 | M23: =I23/I25 -> 0.9110221735 | O23: 1455034733 | U23: (detail:) | V23: Vacation: 5 days after 1 year, 10 days after 2 years, 15 days after 5 years, 20 days after 10 years. Sick leave: 1 day per month accumulated up to 30 total. Up to 4 days of sick can be used as personal.
B24: Personal Property | G24: 1563 | I24: 213966056 | M24: =I24/I25 -> 0.08897782653 | O24: 213966056
B25: Total | G25: =SUM(G23:H24) -> 34925 | I25: =SUM(I23:L24) -> 2404712099 | M25: =SUM(M23:N24) -> 1 | O25: =SUM(O23:R24) -> 1669000789
T26: PENSION:
U27: Mers | X27: X | Y27: 401K
A28: Director, Management & Supervision | U28: Defined Contr | Y28: Other | Z28: Defined Benefit
U29: (detail:) | V29: 2% minimum employee contribution. Employer contributes 6.5%
A30: Position | C30: No of years in: | G30: S.T.C. Level | K30: Personal | M30: No. in | O30: 2022
C31: Position | E31: Assmt Adm | G31: Required | I31: Held | K31: Prop. Exmnr | M31: Position | O31: Salary Range
A32: Director | C32: 20 | E32: 30 | G32: MAAO | I32: MAAO | K32: Yes | M32: 1 | Q32: 64395 | T32: LONGEVITY:
A33: Deputy/Asst. | C33: 8 | E33: 21 | G33: MCAO | I33: MAAO | K33: Yes | M33: 1 | O33: 38000 | Q33: 49945 | U33: (detail:) | V33: Eliminated with new wage scale
T36: HEALTH:
A37: Staff | T37: X | U37: BC/BS Type | X37: X | Y37: Dental
A38: Appraiser III | U38: HMO | X38: X | Y38: Vision
A39: Appraiser II | G39: MCAO | I39: MCAO | K39: Yes | M39: 1 | O39: 31595 | Q39: 39910 | U39: Cafeteria | Y39: Other
A40: Appraiser I | G40: MCAT | I40: N/A | K40: N/A | M40: Vacant | O40: 29453 | Q40: 37520 | U40: (detail:) | V40: HSA option available with County contributing $1,400 annualy. AFLAC available at employee's expense, Dental available at employee's expense.
A41: P/P Auditor
A42: GIS/Mapping | G42: N/A | I42: N/A | K42: N/A | M42: Vacant | O42: 29453 | Q42: 37520
A43: Clerical | G43: MCAT | I43: MCAO | K43: N/A | M43: 1 | O43: 27893 | Q43: 34924 | T43: LIFE INSURANCE:
U44: (detail:) | V44: Available at employee's exepnse
T47: OTHER:
U48: (detail:) | V48: 12 paid holidays, educational exepnses paid, county vehicle available
A49: *Additional Comments:
A50: Other than Equalization Director the "Required" level is per County job descriptions. Mileage is only reimbursed if a County provided vehicle is unavailable.
A52: Tempory Changes Due To COVID-19:

Sheet 31 Houghton
A1: 2021 Michigan Equalization Department Salary Survey
A2: COUNTY OF | D2: HOUGHTON | K2: CLICK HERE TO RETURN TO DIRECTOR SUMMARY PAGE
A4: Director | C4: Cheryl M Patrick | J4: Private Phone: | L4: 906-482-0250 | R4: E-mail: | S4: cpatrick@houghtoncounty.net
A5: Alternate: | C5: Jaikob Djerf | J5: Private Phone: | L5: 906-482-0250 | R5: E-mail: | S5: jaikob@houghtoncounty.net
A8: General County Information | J8: Additional Duties and Responsibilities | R8: General Office Information
A10: 1948 | B10: Dept. Established: | E10: 0.0341 | F10: % General Fund | J10: X | K10: Apportionment | N10: X | O10: Tax Bills | R10: Business Hrs: | T10: 8:00-4:30 | X10: Office Fax #: | Z10: 906-482-7238
A11: 2 | B11: No. of Cities: | E11: 0.56 | F11: Auto Allowance | J11: X | K11: Property Desc. | N11: X | O11: Addressing | R11: Office Phone: | T11: 906-482-0250 | X11: Website: | Z11: houghtoncounty.net
A12: 14 | B12: No.of Townships: | F12: Fringe Benefits | K12: Assessing Units | N12: X | O12: Website | R12: Address: | T12: 401 E Houghton Avenue
A13: 5 | B13: No.of Villages: | E13: 2021 budget | J13: X | K13: Data Processing | N13: X | O13: Mapping/GIS | T13: County Courthouse
A14: 37.5 | B14: No of hrs. per week | E14: 208907 | K14: Other | O14: Other | T14: Houghton, MI 49931
A15: 4 | B15: No. of Staff (FTEE) | E15: 2021 revenues | J15: (detail:)
E16: 58000
T18: Fringe Benefits
A19: Valuation Information
T20: LEAVE POLICY:
G21: No. of | I21: Assessed | M21: % of | O21: Taxable | T21: X | U21: Vacation Days | X21: X | Y21: Sick Days
G22: Parcels | I22: Valuations | M22: Total | O22: Valuations | T22: X | U22: Personal Days | Y22: Other
B23: Real Property | G23: 28873 | I23: 1277890742 | M23: =SUM(I23/I25) -> 0.9465424505 | O23: 937658824 | U23: (detail:) | V23: Sick: 1 day per month: Vacation: 1 yr-5days: 2 yrs 10 days: 5 yrs, 15 days: 10 yrs, 20 days: 3 personal days per year.
B24: Personal Property | G24: 1215 | I24: 72170992 | M24: =SUM(I24/I25) -> 0.05345754952 | O24: 72170992
B25: Total | G25: 30088 | I25: 1350061734 | M25: =SUM(M23:N24) -> 1 | O25: 1009829816
T26: PENSION:
T27: X | U27: Mers | Y27: 401K
A28: Director, Management & Supervision | U28: Defined Contr | Y28: Other
U29: (detail:) | V29: MERS: B-4, with F55/15 rider.
A30: Position | C30: No of years in: | G30: S.A.B. Level | K30: Personal | M30: No. in | O30: 2021
C31: Position | E31: Assmt Adm | G31: Required | I31: Held | K31: Prop. Exmnr | M31: Position | O31: Salary Range
A32: Director | C32: 4 | E32: 38 | G32: 3 | I32: 3 | K32: X | M32: 1 | O32: 55000 | Q32: 75000 | T32: LONGEVITY:
A33: Deputy/Asst. | C33: 2 | E33: 2 | G33: 1 | I33: 1 | K33: X | M33: 1 | O33: 32000 | Q33: 45000 | U33: (detail:) | V33: 5 years, $200: 10 years, $350: 15 years, $500: 20 years, $600.
T36: HEALTH:
A37: Staff | T37: X | U37: BC/BS Type | X37: X | Y37: Dental
U38: HMO | X38: X | Y38: Vision
A39: Appraiser ll | G39: 1 | I39: 1 | M39: 1 | O39: 40000 | Q39: 50000 | T39: X | U39: Cafeteria | Y39: Other
A40: Appraiser I | U40: (detail:) | V40: BC/BS Community Blue-PPO: Drugs with co-pay.
A41: P/P Auditor
A42: GIS/Mapping
A43: Clerical | M43: 1 | O43: 32000 | Q43: 36000 | T43: LIFE INSURANCE:
U44: (detail:) | V44: Term Life Policy with a maxium of $50,000.
T47: OTHER:
U48: (detail:) | V48: Funeral Leave: Immediate Family, 5 days: Other Family, 2 days. 14 Paid Holidays per year.
A49: *Additional Comments:
A52: Tempory Changes Due To COVID-19:

Sheet 32 Huron
A1: 2017 Michigan Equalization Department Salary Survey
A2: COUNTY OF | D2: HURON | K2: CLICK HERE TO RETURN TO DIRECTOR SUMMARY PAGE
A4: Director | C4: Wendy Maikrzek, Deputy | J4: Private Phone: | L4: 989-269-6497 | R4: E-mail: | S4: maikrzew@co.huron.mi.us
A5: Alternate: | C5: Lori White, Admin. Assisstant | J5: Private Phone: | L5: 989-269-6497 | R5: E-mail: | S5: whitel@co.huron.mi.us
A8: General County Information | J8: Additional Duties and Responsibilities | R8: General Office Information
B10: Dept. Established: | E10: 0.0132 | F10: % General Fund | J10: X | K10: Apportionment | N10: X | O10: Tax Bills | R10: Business Hrs: | T10: 8:30am - 5:00pm | X10: Office Fax #: | Z10: 989-269-2836
A11: 3 | B11: No. of Cities: | F11: Auto Allowance | J11: X | K11: Property Desc. | N11: X | O11: Addressing | R11: Office Phone: | T11: 989-269-6497 | X11: Website: | Z11: www.co.huron.mi.us
A12: 28 | B12: No.of Townships: | F12: Fringe Benefits | J12: X | K12: Assessing Units | O12: Website | R12: Address: | T12: 250 East Huron Avenue
A13: 10 | B13: No.of Villages: | E13: 2017 Budget | J13: X | K13: Data Processing | N13: X | O13: Mapping/GIS | T13: Room 309
A14: 37.5 | B14: No of hrs. per week | E14: 324565 | K14: Other | O14: Other | T14: Bad Axe, MI 48413
A15: 3 | B15: No. of Staff (FTEE) | E15: 2017 Revenue(s) | J15: (detail:)
T18: Fringe Benefits
A19: Valuation Information | G19: CURRENT SOFTWARE | L19: BS & A .NET
T20: LEAVE POLICY:
G21: No. of | I21: Assessed | M21: % of | O21: Taxable | T21: X | U21: Vacation Days | X21: X | Y21: Sick Days
G22: Parcels | I22: Valuations | M22: Total | O22: Valuations | T22: X | U22: Personal Days | Y22: Other
B23: Real Property | G23: 31903 | I23: 2934584345 | M23: =I23/I25 -> 0.8371883852 | O23: 1592750542 | U23: (detail:)
B24: Personal Property | G24: 2301 | I24: 570701200 | M24: =1-M23 -> 0.1628116148 | O24: 568423029
B25: Total | G25: =G23+G24 -> 34204 | I25: =I23+I24 -> 3505285545 | M25: =M23+M24 -> 1 | O25: 2161173571
T26: PENSION:
T27: X | U27: Mers | Y27: 401K
A28: Director, Management & Supervision | U28: Defined Contr | Y28: Other | Z28: Defined Benefit
U29: (detail:)
A30: Position | C30: No of years in: | G30: S.T.C. Level | K30: Personal | M30: No. in | O30: 2016
C31: Position | E31: Assmt Adm | G31: Required | I31: Held | K31: Prop. Exmnr | M31: Position | O31: Salary Range
A32: Director | G32: 3 | I32: 3 | M32: 1 | O32: contracted | S32: *** | T32: LONGEVITY:
A33: Deputy Director | C33: 6 | E33: 8 | G33: 2 | I33: 2 | M33: 1 | O33: 36491 | U33: (detail:) | V33: After 10 years - $275, 15 years - $ 400, 20 years - $550
A34: GIS Manager | C34: 4 | E34: 27 | G34: N/A | I34: N/A | M34: 1 | O34: 52314
A35: Deputy/Asst | G35: N/A | I35: N/A | M35: 1 | O35: 34343
T36: HEALTH:
A37: Staff | T37: X | U37: BC/BS Type | X37: X | Y37: Dental
A38: Appraiser III | U38: HMO | X38: X | Y38: Vision
A39: Appraiser II | U39: Cafeteria | Y39: Other
A40: Appraiser I | U40: (detail:)
A41: P/P Auditor
A42: GIS/Mapping
A43: Clerical | G43: N/A | I43: N/A | K43: N/A | M43: 0 | O43: 0 | T43: LIFE INSURANCE:
U44: (detail:) | V44: 10000
T47: OTHER:
U48: (detail:)
A49: *Additional Comments:
A52: Tempory Changes Due To COVID-19:

Sheet 33 Ingham
A1: 2020 Michigan Equalization Department Salary Survey
A2: COUNTY OF | D2: INGHAM | K2: CLICK HERE TO RETURN TO DIRECTOR SUMMARY PAGE
A4: Director | C4: William E. Fowler | J4: Private Phone: | L4: 517-676-7212 | R4: E-mail: | S4: wfowler@ingham.org
A5: Alternate: | J5: Private Phone: | R5: E-mail:
A8: General County Information | J8: Additional Duties and Responsibilities | R8: General Office Information
A10: 1965 | B10: Dept. Established: | E10: 0.01 | F10: % General Fund | J10: x | K10: Apportionment | O10: Tax Bills | R10: Business Hrs: | T10: 8:00-5:00 | X10: Office Fax #: | Z10: 517-676-7272
A11: 5 | B11: No. of Cities: | E11: 0.58 | F11: Auto Allowance | J11: x | K11: Property Desc. | O11: Addressing | R11: Office Phone: | T11: 517-676-7212 | X11: Website: | Z11: https://eq.ingham.org
A12: 16 | B12: No.of Townships: | F12: Fringe Benefits | K12: Assessing Units | N12: x | O12: Website | R12: Address: | T12: Ingham County Courthouse
A13: 3 | B13: No.of Villages: | E13: 2020 Budget | K13: Data Processing | N13: x | O13: Mapping/GIS | T13: P.O. Box 319
A14: 40 | B14: No of hrs. per week | E14: 765751 | K14: Other | O14: Other | T14: Mason, MI 48854
A15: 6 | B15: No. of Staff (FTEE) | E15: 2020 Revenue(s) | J15: (detail:)
E16: 10100
T18: Fringe Benefits
A19: Valuation Information
T20: LEAVE POLICY:
G21: No. of | I21: Assessed | M21: % of | O21: Taxable | T21: x | U21: Vacation Days | X21: x | Y21: Sick Days
G22: Parcels | I22: Valuations | M22: Total | O22: Valuations | T22: x | U22: Personal Days | Y22: Other
B23: Real Property | G23: 98584 | I23: 9605728966 | M23: =I23/I25 -> 0.9349504649 | O23: 7777964407 | T23: Vacation 1year, 11 days; 2 years, 12 days; 3 years, 13 days; 4-8 years, 16 days; 9 years, 17 days; 10-14 years, 19 days; 15-19 years, 21 days; 20 plus years, 22 days. Sick Days: 4.5 days per pay period, 117 hours per year, 3.5 personal days.
B24: Personal Property | G24: 9521 | I24: 668322256 | M24: =I24/I25 -> 0.06504953514 | O24: 668322256
B25: Total | G25: 108105 | I25: =SUM(I23:L24) -> 10274051222 | M25: =SUM(M23:N24) -> 1 | O25: =SUM(O23:R24) -> 8446286663
T26: PENSION:
T27: x | U27: Mers | Y27: 401K
A28: Director, Management & Supervision | T28: x | U28: Defined Contr | Y28: Other
T29: Varies according to union or classification. Mgrs: MERS B-plus F55; Other: MERS b-3 plus F55. Ret. Opt partially funded.
A30: Position | C30: No of years in: | G30: S.A.B. Level | K30: Personal | M30: No. in | O30: 2020
C31: Position | E31: Assmt Adm | G31: Required | I31: Held | K31: Prop. Exmnr | M31: Position | O31: Salary Range
A32: Director | C32: 19 | E32: 44 | G32: MMAO | I32: MMAO | K32: Y | M32: 1 | O32: 84834.36 | Q32: 101825.79 | T32: LONGEVITY:
A33: Deputy | C33: 6 | E33: Vacant | G33: MAAO | I33: MAAO | K33: Y | M33: 1 | O33: 57981.36 | Q33: 69605.2 | T33: 4-7 years, 3%; 8-100 years, 5%, 12-15 years, 7%; 16 years and up 9% (percentage of annual salary, $20,000 cap)
T36: HEALTH:
A37: Staff | T37: X | U37: PHP | X37: X | Y37: Dental
A38: Appraiser | G38: MAAO | I38: MAAO | K38: Y | M38: 1 | O38: 53158.82 | Q38: 63815.36 | U38: HMO | X38: x | Y38: Vision
A39: GIS Analyst | M39: 1 | O39: 53159.82 | Q39: 63815.36 | T39: X | U39: Cafeteria | X39: x | Y39: Other
A40: GIS Tech | M40: 1 | O40: 48571.1 | Q40: 58307.73 | U40: (detail:)
A41: Clerical | G41: MCAT | I41: MCAT | M41: 1 | O41: 37205.8 | Q41: 44338.87
T43: LIFE INSURANCE:
T44: Mgrs, $50,000, Professionals, $40,000 and UAW/TOPS, $30,000
T47: OTHER:
A49: *Additional Comments:
A52: Temporary Changes Due To COVID-19:

Sheet 34 Ionia
A1: 2020 Michigan Equalization Department Salary Survey
A2: COUNTY OF | D2: IONIA | K2: CLICK HERE TO RETURN TO DIRECTOR SUMMARY PAGE
A4: Director | C4: Anthony E. Meyaard | J4: Private Phone: | L4: 616-836-6720 | R4: E-mail: | S4: ameyaard@ioniacounty.org
A5: Alternate: | J5: Private Phone: | R5: E-mail:
A8: General County Information | J8: Additional Duties and Responsibilities | R8: General Office Information
A10: 1969 | B10: Dept. Established: | F10: % General Fund | J10: x | K10: Apportionment | O10: Tax Bills | R10: Business Hrs: | T10: 8:00 - 5:00 | X10: Office Fax #: | Z10: 616.527.5323
A11: 3 | B11: No. of Cities: | F11: Auto Allowance | K11: Property Desc. | N11: x | O11: Addressing | R11: Office Phone: | T11: 616.527.5376 | X11: Website: | Z11: ioniacounty.org
A12: 16 | B12: No.of Townships: | F12: Fringe Benefits | K12: Assessing Units | N12: x | O12: Website | R12: Address: | T12: County Courthouse
A13: 7 | B13: No.of Villages: | E13: 2020 Budget | K13: Data Processing | O13: Mapping/GIS | T13: 100 W Main St
A14: 40 | B14: No of hrs. per week | E14: 174738.57 | K14: Other | O14: Other | T14: Ionia, MI 48846
A15: 1 | B15: No. of Staff (FTEE) | E15: 2020 Revenue(s) | J15: (detail:) | K15: Print Assessment Notices, Personal Property Statements and work with Treasurers Office printing tax bills.
E16: 4000
T18: Fringe Benefits
A19: Valuation Information | G19: CURRENT SOFTWARE | L19: BS&A
T20: LEAVE POLICY:
G21: No. of | I21: Assessed | M21: % of | O21: Taxable | T21: 14 | U21: Vacation Days | Y21: Sick Days
G22: Parcels | I22: Valuations | M22: Total | O22: Valuations | T22: 12 | U22: Personal Days | Y22: Other
B23: Real Property | G23: 30313 | I23: 2409863011 | M23: =I23/I25 -> 0.9501039341 | O23: 1641924441 | U23: (detail:)
B24: Personal Property | G24: 1954 | I24: 126557400 | M24: =M25-M23 -> 0.04989606591 | O24: 126557400
B25: Total | I25: =I23+I24 -> 2536420411 | M25: 1 | O25: =O23+O24 -> 1768481841
T26: PENSION:
U27: Mers | Y27: 401K
A28: Director, Management & Supervision | T28: x | U28: Defined Contr | Y28: Other
U29: (detail:) | V29: EMPLOYEE CONT. = 6% EMPLOYER CONT. = 3%
A30: Position | C30: No of years in: | G30: S.T.C. Level | K30: Personal | M30: No. in | O30: 2020
C31: Position | E31: Assmt Adm | G31: Required | I31: Held | K31: Prop. Exmnr | M31: Position | O31: Salary Range
A32: Director | C32: 5 | E32: 21 | G32: MAAO | I32: MMAO | K32: Y | M32: CONTRACTED | O32: 45000 | Q32: 45000 | T32: LONGEVITY:
A33: Deputy/Asst. | U33: (detail:)
T36: HEALTH:
A37: Staff | T37: x | U37: BC/BS Type | X37: x | Y37: Dental
A38: Appraiser III | M38: CONTRACTED | O38: 65000 | Q38: 65000 | U38: HMO | X38: x | Y38: Vision
A39: Appraiser II | U39: Cafeteria | Y39: Other
A40: Appraiser I | U40: (detail:)
A41: P/P Auditor
A42: GIS/Mapping
A43: Clerical | M43: 1 | O43: 34632 | Q43: 42588 | T43: LIFE INSURANCE:
U44: (detail:) | V44: 10000
T47: OTHER:
U48: (detail:)
A49: *Additional Comments:
A52: Tempory Changes Due To COVID-19:

Sheet 35 Iosco
A1: 2017 Michigan Equalization Department Salary Survey
A2: COUNTY OF | D2: Iosco | K2: CLICK HERE TO RETURN TO DIRECTOR SUMMARY PAGE
A4: Director | C4: Doreen M. Dewald | J4: Private Phone: | L4: 989-984-1028 | R4: E-mail: | S4: doreendewald@ioscocounty.org
A5: Alternate: | J5: Private Phone: | R5: E-mail:
A8: General County Information | J8: Additional Duties and Responsibilities | R8: General Office Information
A10: 1980's | B10: Dept. Established: | F10: % General Fund | J10: x | K10: Apportionment | O10: Tax Bills | R10: Business Hrs: | T10: 8:30-4:30 M-F | X10: Office Fax #: | Z10: 989-984-1122
A11: 3 | B11: No. of Cities: | E11: 0.54 | F11: Auto Allowance/per mile | J11: x | K11: Property Desc. | O11: Addressing | R11: Office Phone: | T11: 989-984-1111 | X11: Website: | Z11: www.iosco.m33access.com
A12: 11 | B12: No.of Townships: | E12: Y | F12: Fringe Benefits | K12: Assessing Units | O12: Website | R12: Address: | T12: P O Box 327
B13: No.of Villages: | E13: 2017 Budget | K13: Data Processing | N13: x | O13: Mapping/GIS | T13: Tawas City, MI 48764
A14: 35 | B14: No of hrs. per week | E14: 125456 | K14: Other | O14: Other
A15: 2 | B15: No. of Staff (FTEE) | E15: 2017 Revenue(s) | J15: (detail:) | K15: Section maps for the county No GIS system
E16: 5400
T18: Fringe Benefits
A19: Valuation Information | G19: CURRENT SOFTWARE | L19: AS 400 system 36/BS & A appriasal/Apex
T20: LEAVE POLICY:
G21: No. of | I21: Assessed | M21: % of | O21: Taxable | T21: Y | U21: Vacation Days | X21: Y | Y21: Sick Days
G22: Parcels | I22: Valuations | M22: Total | O22: Valuations | T22: Y | U22: Personal Days | Y22: Other
B23: Real Property | G23: 31796 | I23: 1147295400 | M23: =SUM(I23/I25) -> 0.9258336339 | O23: 1024569340 | U23: (detail:) | V23: 63 hours sick each year, short term diability,, 60% of pay for 25 weeks after elimination period of 7 days, Long term disability up to 2 years (No acculation of sick days) Vacation 1 week after 1 year, 2 weeks 2-5 yrs, 3 weeks 6-10yrs, 11 plus yrs 3 weeks, pl,us 1 day for each year over,
B24: Personal Property | G24: 1655 | I24: 91907150 | M24: =SUM(I24/I25) -> 0.0741663661 | O24: 91907150
B25: Total | G25: =SUM(G23:G24) -> 33451 | I25: =SUM(I23:I24) -> 1239202550 | M25: =SUM(M23:N24) -> 1 | O25: =SUM(O23:O24) -> 1116476490
T26: PENSION:
T27: Y | U27: Mers | Y27: 401K
A28: Director, Management & Supervision | T28: Y | U28: Defined Contr | Y28: Other
U29: (detail:) | V29: Staff, Mers Defined contribution County contributes 7% of employee's base each year/ After 1/1/06 employee contributes 3% county will contribute addition 1%. Director MERS B-4 Plan with F55/20, F50 25, Vest 8 years and FAC 3/w contribution rate of .94%,
A30: Position | C30: No of years in: | G30: S.A.B. Level | K30: Personal | M30: No. in | O30: 2016
C31: Position | E31: Assmt Adm | G31: Required | I31: Held | K31: Prop. Exmnr | M31: Position | O31: Salary Range
A32: Director | C32: 9.5 | E32: 21 | G32: 3 | I32: 3 | K32: Y | M32: 1 | O32: 45016 | Q32: 45016 | T32: LONGEVITY:
A33: Deputy/Asst. | U33: (detail:) | V33: After completion of 5 years through 9 years $300; After 10 years through 14 years $470.; After 15 year through 19 years $620.; After 20 years $800.
T36: HEALTH:
A37: Staff | T37: X | U37: BC/BS Type | W37: PPO2 | X37: Y | Y37: Dental
A38: Appraiser III | U38: HMO | X38: Y | Y38: Vision
A39: Appraiser II | U39: Cafeteria | Y39: Other
A40: Appraiser I | G40: 1 | I40: 1 | M40: 1 | O40: 27008 | Q40: 32104 | U40: (detail:) | V40: PPO Option II (Generic $20, Brand $50 drug co-pay, MOPD $20 Generic, $50 Brand for 35-90 day supply; Office Visit $30.00; Dental Ins: BC/BS comprehensive perferred, CR 100-75-50 MBL $2,000 or equivalent; 100% of cost of such plan shall be borne by the Employee. Flexible Spending account available up to $2500 per year with $500.00 carryover.
A41: P/P Auditor
A42: GIS/Mapping
A43: Clerical | G43: 1 | I43: 1 | M43: 1 | O43: 27008 | Q43: 32104
T44: LIFE INSURANCE:
U45: (detail:) | V45: $30,000 group term life insurance
T47: OTHER:
U48: (detail:)
A49: *Additional Comments:
A52: Tempory Changes Due To COVID-19:

Sheet 36 Iron
A1: 2021 Michigan Equalization Department Salary Survey
A2: COUNTY OF | D2: Iron | K2: CLICK HERE TO RETURN TO DIRECTOR SUMMARY PAGE
A4: Director | C4: Amy K. Marinoff | J4: Private Phone: | L4: 906-367-2686 | R4: E-mail: | S4: amarinoff@ironmi.org
A5: Alternate: | C5: Julie Harp | J5: Private Phone: | R5: E-mail: | S5: jharp@ironmi.org
A8: General County Information | J8: Additional Duties and Responsibilities | R8: General Office Information
A10: 1966 | B10: Dept. Established: | E10: 0.0278 | F10: % General Fund | J10: x | K10: Apportionment | N10: x | O10: Tax Bills | R10: Business Hrs: | T10: 8:00am - 4:00pm | X10: Office Fax #: | Z10: 906-875-3459
A11: 4 | B11: No. of Cities: | E11: 0.56 | F11: Auto Allowance | J11: x | K11: Property Desc. | N11: x | O11: Addressing | R11: Office Phone: | T11: 906.875.6502 | X11: Website: | Z11: www.ironmi.org
A12: 7 | B12: No.of Townships: | E12: 0.0278 | F12: Fringe Benefits | K12: Assessing Units | N12: x | O12: Website | R12: Address: | T12: 2 South 6th Street
A13: 1 | B13: No.of Villages: | E13: 2020 Budget | J13: x | K13: Data Processing | N13: x | O13: Mapping/GIS | T13: Suite 13
A14: 37.5 | B14: No of hrs. per week | E14: 165566 | K14: Other | O14: Other | T14: Crystal Falls, MI 49920-1413
A15: 2 | B15: No. of Staff (FTEE) | E15: 2020 Revenue(s) | J15: (detail:)
E16: 30000
T18: Fringe Benefits
A19: Valuation Information
T20: LEAVE POLICY:
G21: No. of | I21: Assessed | M21: % of | O21: Taxable | U21: Vacation Days | Y21: Sick Days
G22: Parcels | I22: Valuations | M22: Total | O22: Valuations | U22: Personal Days | X22: X | Y22: Other
B23: Real Property | G23: 15890 | I23: 675017585 | M23: 0.9139 | O23: 492608782 | U23: (detail:) | V23: PTO earned by all employees based on years worked. Accumulation Rate varies from 0.10/hr to 0.15/hr.Union max 285 hours, Department Head max 320 hours
B24: Personal Property | G24: 479 | I24: 63600969 | M24: 0.0861 | O24: 62347420
B25: Total | G25: 16369 | I25: 738618554 | M25: =SUM(M23:M24) -> 1 | O25: 554956202
T26: PENSION:
T27: x | U27: Mers | Y27: 401K
A28: Director, Management & Supervision | U28: Defined Contr | Y28: Other
U29: (detail:) | V29: B-3 with F55/15
A30: Position | C30: No of years in: | G30: S.A.B. Level | K30: Personal | M30: No. in | O30: 2021
C31: Position | E31: Assmt Adm | G31: Required | I31: Held | K31: Prop. Exmnr | M31: Position | O31: Salary Range
A32: Director | C32: 6.5 | E32: 19 | G32: MAAO | I32: MAAO | K32: 1 | M32: 1 | Q32: 55823 | T32: LONGEVITY:
A33: Deputy/Asst. | C33: 5.5 | E33: 5 | I33: MCAO | M33: 1 | Q33: 38000 | U33: (detail:) | V33: Union only: After 3 years $50/year; Hired after 12/94 $25/year
T36: HEALTH:
A37: Staff | T37: x | U37: BC/BS Type | X37: x | Y37: Dental
A38: Appraiser III | U38: HMO | X38: x | Y38: Vision
A39: Appraiser II | U39: Cafeteria | Y39: Other
A40: Appraiser I | U40: (detail:) | V40: 1/1/16 Employees pay 20%
A41: P/P Auditor
A42: GIS/Mapping
A43: Clerical | T43: LIFE INSURANCE:
U44: (detail:) | V44: 15000
T47: OTHER:
U48: (detail:) | V48: 12 Paid Holidays & 3 Funeral - immediate family
A49: *Additional Comments:
A52: Tempory Changes Due To COVID-19:

Sheet 37 Isabella
A1: 2020 Michigan Equalization Department Salary Survey
A2: COUNTY OF | D2: Isabella County | K2: CLICK HERE TO RETURN TO DIRECTOR SUMMARY PAGE
A4: Director | C4: Scott Cunningham (Contracted) | J4: Private Phone: | R4: E-mail:
A5: Alternate: | C5: Preston Community Services LLC | J5: Private Phone: | L5: 989-317-4075 | R5: E-mail: | S5: eqdirector@isabellacounty.org
A8: General County Information | J8: Additional Duties and Responsibilities | R8: General Office Information
A10: 1968 | B10: Dept. Established: | E10: 0.0153 | F10: % General Fund | J10: X | K10: Apportionment | N10: X | O10: Tax Bills | R10: Business Hrs: | T10: 8:00 am - 4:30 pm | X10: Office Fax #: | Z10: 989-779-9102
A11: 2 | B11: No. of Cities: | E11: 0.575 | F11: Auto Allowance | J11: review | K11: Property Desc. | O11: Addressing | R11: Office Phone: | T11: 989-317-4074 | X11: Website: | Z11: www.isabellacounty. Org
A12: 16 | B12: No.of Townships: | E12: 0.43 | F12: Fringe Benefits | K12: Assessing Units | N12: X | O12: Website | R12: Address: | T12: 200 N. Main Street
A13: 3 | B13: No.of Villages: | E13: 2020 Budget | J13: X | K13: Data Processing | O13: Mapping/GIS | T13: Mt. Pleasant, MI 48858
A14: 37.5 | B14: No of hrs. per week | E14: 323345 | K14: Other | O14: Other
A15: 2 | B15: No. of Staff (FTEE) | E15: 2020 Revenue(s) | J15: (detail:)
E16: 9600
T18: Fringe Benefits
A19: Valuation Information | G19: CURRENT SOFTWARE | L19: BS&A .NET
T20: LEAVE POLICY:
G21: No. of | I21: Assessed | M21: % of | O21: Taxable | T21: x | U21: Vacation Days | X21: x | Y21: Sick Days
G22: Parcels | I22: Valuations | M22: Total | O22: Valuations | T22: x | U22: Personal Days | X22: x | Y22: Other
B23: Real Property | G23: =28947+1192 -> 30139 | I23: 2333365069 | M23: =+I23/I25 -> 0.9162089372 | O23: 1763004377 | U23: (detail:) | V23: PTO (Sick & Vacation & Personal Combined): 1 yr, 97.5hrs, 1-4yrs, 150hrs; 4-9yrs, 187hrs; 9plusyrs, 225hrs; Exempt employees: 1yr, 112hrs; 1-4yrs, 165hrs; 4-9yrs, 202 hrs; 9plus yrs 240hrs. Family & Medical Leave Available
B24: Personal Property | G24: 2355 | I24: 213395800 | M24: =+I24/I25 -> 0.08379106283 | O24: 213392843
B25: Total | G25: =SUM(G23:H24) -> 32494 | I25: =SUM(I23:L24) -> 2546760869 | M25: =SUM(M23:N24) -> 1 | O25: =SUM(O23:R24) -> 1976397220
T26: PENSION:
T27: x | U27: Mers | Y27: 401K
A28: Director, Management & Supervision | T28: x | U28: Defined Contr | Y28: Other | Z28: Defined Benefit
U29: (detail:) | V29: New Hires: MERS Defined Contribution 5% County ( option: 2% Employee 7% County ) with 5 year full vesting.
A30: Position | C30: No of years in: | G30: S.T.C. Level | K30: Personal | M30: No. in | O30: 2020
C31: Position | E31: Assmt Adm | G31: Required | I31: Held | K31: Prop. Exmnr | M31: Position | O31: Salary Range
A32: Director | C32: 3 | E32: 36 | G32: 3 | I32: 4 | M32: 1 | T32: LONGEVITY:
A33: Manager | C33: 6 | E33: 12 | I33: 3 | M33: 1 | Q33: 138000 | U33: (detail:)
T36: HEALTH:
A37: Staff | T37: x | U37: BC/BS Type | X37: x | Y37: Dental
A38: Appraiser III | U38: HMO | X38: x | Y38: Vision
A39: Appraiser II | U39: Cafeteria | Y39: Other
A40: Appraiser I | G40: 2 | I40: 3 | M40: 1 | O40: 41285 | Q40: 51031 | U40: (detail:) | V40: BC/BS Community Blues W/Dental & W/Optical. 3 Plans Available - 1 paid by County - 2 upgrade options with Employee contribution.
A41: P/P Auditor
A42: GIS/Mapping
A43: Cler'l/DescTech | M43: 1 | O43: 32645 | Q43: 40350 | T43: LIFE INSURANCE:
A44: Clerical | U44: (detail:) | V44: $25,000 Term Life
T47: OTHER:
U48: (detail:) | V48: Bereavement Leave and 13 Paid Holidays
A49: *Additional Comments:
A52: Tempory Changes Due To COVID-19:

Sheet 38 Jackson
A1: 2020 Michigan Equalization Department Salary Survey
A2: COUNTY OF | D2: Jackson | K2: CLICK HERE TO RETURN TO DIRECTOR SUMMARY PAGE
A4: Director | C4: Ruth A. Scott | J4: Private Phone: | L4: 517-768-6649 | R4: E-mail: | S4: rscott@mijackson.org
A5: Alternate: | C5: Jessica Casler | J5: Private Phone: | L5: 517-768-6645 | R5: E-mail: | S5: jcasler@mijackson.org
A7: General County Information | J7: Additional Duties and Responsibilities | R7: General Office Information
A9: 1963 | B9: Dept. Established: | E9: 0.0143 | F9: % General Fund | J9: x | K9: Apportionment | O9: Tax Bills | R9: Business Hrs: | T9: 8 am - 5 pm Monday - Friday | X9: Office Fax #: | Z9: 517-768-6747
A10: 1 | B10: No. of Cities: | E10: * | F10: Auto Allowance | J10: x | K10: Property Desc. | O10: Addressing | R10: Office Phone: | T10: 517-788-4378 | X10: Website: | Z10: www.co.jackson.mi.us
A11: 19 | B11: No.of Townships: | F11: Fringe Benefits | J11: 5 | K11: Assessing Units | N11: x | O11: Website | R11: Address: | T11: 120 W. Michigan Ave
A12: 7 | B12: No.of Villages: | E12: 2020 Budget | K12: Data Processing | N12: x | O12: Mapping/GIS | T12: Jackson MI 49201
A13: 40 | B13: No of hrs. per week | E13: 767225 | K13: Other | O13: Other
A14: 9 | B14: No. of Staff (FTEE) | E14: 2020 Revenue(s) | J14: (detail:)
E15: 140000
E16: *EQ owns 2 vehicles
T17: Fringe Benefits
A18: Valuation Information | G18: CURRENT SOFTWARE | L18: BS&A; Assessing.Net
T19: LEAVE POLICY:
G20: No. of | I20: Assessed | M20: % of | O20: Taxable | U20: Vacation Days | Y20: Sick Days
G21: Parcels | I21: Valuations | M21: Total | O21: Valuations | T21: 5-37 | U21: Personal Days | X21: 10 | Y21: Holidays
B22: Real Property | G22: 79124 | I22: 5757089129 | M22: =I22/I24 -> 0.9147636845 | O22: 4362871425 | U22: (detail:) | V22: PTO days are determined by years of service; <1 year - 5; 1-6 years - 15; 7-11 years 20; 12-15 years 255; 16+ years - 30
B23: Personal Property | G23: 6749 | I23: 536436977 | M23: =I23/I24 -> 0.08523631554 | O23: 528925130
B24: Total | G24: =SUM(G22:H23) -> 85873 | I24: =SUM(I22:L23) -> 6293526106 | M24: 1 | O24: =SUM(O22:R23) -> 4891796555
T25: PENSION:
T26: X | U26: Mers | X26: x | Y26: 457
A27: Director, Management & Supervision | T27: x | U27: Defined Contr | X27: X | Y27: Other | Z27: Defined Benefit
U28: (detail:) | V28: Defined Benefit for employees hired prior to 2008 - Defined Contribution w/ 5% match for employess hired after 2007, 457 available.
A29: Position | C29: No of years in: | G29: S.T.C. Level | K29: Personal | M29: No. in | O29: 2020
C30: Position | E30: Assmt Adm | G30: Required | I30: Held | K30: Prop. Exmnr | M30: Position | O30: Salary Range
A31: Director | C31: 8 | E31: 18 | G31: MAAO | I31: MMAO | M31: 1 | O31: 86990 | Q31: 108755 | T31: LONGEVITY:
A32: Equalization Coordinator | C32: 4 | E32: 18 | G32: MAAO | I32: MAAO | M32: 1 | O32: 62500 | Q32: 65800 | U32: (detail:) | V32: phased out
T35: HEALTH:
A36: Staff | T36: X | U36: BC/BS Type with | X36: x | Y36: Dental
A37: Appraiser III | G37: MAAO | I37: MAAO | M37: 2 | O37: 52644 | Q37: 65800 | T37: X | U37: Cafeteria Plan | X37: X | Y37: Vision
A38: Appraiser II | G38: MCAO | I38: MCAO | M38: 2 | O38: 45559 | Q38: 56971 | T38: X | U38: High Deductible with | X38: x | Y38: Other
T39: X | U39: Health Spending Account
U40: (detail:)
A42: GIS Technician | I42: MCAT | M42: 1 | O42: 40372 | Q42: 50481
A43: Senior EQ Technician | G43: MCAT | I43: MCAO | M43: 1 | O43: 35780 | Q43: 44720 | T43: LIFE INSURANCE:
A44: EQ Technician | G44: MCAT | I44: MCAT | M44: 1 | O44: 34059 | Q44: 42601 | T44: X | U44: (detail:) | V44: $30,000 policy for all employees, & retirees. Optional to $300,000.
T47: OTHER:
T48: X | U48: (detail:) | V48: Complete Medical in retirement for those hired prior to 2012, Health Savings Account for those hired after, $1750 annually, County $1000, Employee $750
A49: *Additional Comments: | D49: Includes IFTs, CFT, Brownfields, NEZ, OPRA, Ren Zone, T&D Ren Zones. A wage study has just been completed. The wage study has only been implemented at the Directors level (non-union) at this time. The remainder will be implemented after contract negotiations in August,
A50: Includes IFTs, CFT, Brownfields, NEZ, OPRA, Ren Zone, T&D Ren Zones. A wage study has just been completed. The wage study has only been implemented at the Directors level (non-union) at this time. The remainder will be implemented after contract negotiations in August, | T50: X | V50: New in 2015: Unum Long Term Disability for senior management increase to 80 - 100% of current income.
A52: Tempory Changes Due To COVID-19:

Sheet 39 Kalamazoo
A1: 2021 Michigan Equalization Department Salary Survey
A2: COUNTY OF | D2: KALAMAZOO | K2: CLICK HERE TO RETURN TO DIRECTOR SUMMARY PAGE
A4: Director | C4: Mathew Hansen | J4: Private Phone: | L4: 269-383-8961 | R4: E-mail: | S4: mlhans@kalcounty.com
A5: Deputy | C5: Deyo Gregor | J5: Private Phone: | L5: 269-384-8147 | R5: E-mail: | S5: dagreg@kalcounty.com
A8: General County Information | J8: Additional Duties and Responsibilities | R8: General Office Information
A10: 1961 | B10: Dept. Established: | E10: 0.539 | F10: % General Fund | J10: x | K10: Apportionment | O10: Tax Bills | R10: Business Hrs: | T10: 8:00 - 5:00
A11: 4 | B11: No. of Cities: | E11: IRS | F11: Auto Allowance | K11: Property Desc. | O11: Addressing | R11: Office Phone: | T11: 2693838960
A12: 15 | B12: No.of Townships: | E12: X | F12: Fringe Benefits | K12: Assessing Units | N12: x | O12: Website | R12: Address: | T12: 201 W. Kalamazoo Ave., Suite 203
A13: 5 | B13: No.of Villages: | E13: 2021 Budget | K13: Data Processing | O13: Mapping/GIS | T13: Kalamazoo, MI 49007
A14: 40 | B14: No of hrs. per week | E14: 539900 | K14: Other | O14: Other | R14: Office Fax #: | T14: 2693838962
A15: 5 | B15: No. of Staff (FTEE) | E15: 2021 Revenue(s) | T15: www.kalcounty.com\equalization
E16: 2500
T18: Fringe Benefits
A19: Valuation Information | I19: CURRENT SOFTWARE: BSA.NET
T20: LEAVE POLICY:
G21: No. of | I21: Assessed | M21: % of | O21: Taxable | T21: x | U21: Vacation Days | X21: x | Y21: Sick Days
G22: Parcels | I22: Valuations | M22: Total | O22: Valuations | T22: x | U22: Personal Days | Y22: Other
B23: Real Property | G23: 96369 | I23: 11228852212 | M23: =I23/I25 -> 0.9459180097 | O23: 8845527545 | U23: (detail:) | V23: Sick: 40 hours per yr; Annual Time: 40 hrs at 1st of the year & 5.5hrs, per paypd; 5-9yrs, accrl extra 24 Hrs; 10-14yrs, extra 40 hrs; 15-19yrs, extra 56 hrs; 20plus yrs, extra 72 hrs.
B24: Personal Property | G24: 7464 | I24: 641999275 | M24: =I24/I25 -> 0.0540819903 | O24: 641890584
B25: Total | G25: 103833 | I25: =I23+I24 -> 11870851487 | M25: =M23+M24 -> 1 | O25: =O23+O24 -> 9487418129
T26: PENSION:
U27: Mers | Y27: 401K
A28: Director, Management & Supervision | U28: Defined Contr | X28: x | Y28: Other
U29: (detail:) | V29: Paid by the County - 8 years service for vesting.
A30: Position | C30: No of years in: | G30: S.A.B. Level | K30: Personal | M30: No. in | O30: 2021
C31: Position | E31: Assmt Adm | G31: Required | I31: Held | K31: Prop. Exmnr | M31: Position | O31: Salary Range
A32: Director | C32: 7 | E32: 32 | G32: 4 | I32: 4 | K32: Yes | M32: 1 | O32: 83990 | Q32: 103105 | T32: LONGEVITY:
A33: Deputy | C33: 7 | E33: 18 | G33: 3 | I33: 3 | K33: Yes | M33: 1 | O33: 60424 | Q33: 74152
T36: HEALTH:
A37: Staff | T37: x | U37: BC/BS Type | X37: x | Y37: Dental
A38: Appraiser III | G38: 3 | I38: 3 | K38: Y | M38: 2 | O38: 50419 | Q38: 61880 | U38: HMO | X38: x | Y38: Vision
A39: Appraiser II | T39: x | U39: Cafeteria | Y39: Other
A40: Appraiser I | U40: (detail:) | V40: Cafeteria style for medical, dental and vision.
A41: P/P Auditor
A42: GIS/Mapping
A43: Clerical | T43: LIFE INSURANCE:
A44: Assessment Support Specialist | G44: N/A | I44: 2 | K44: Y | M44: 1 | O44: 39436 | Q44: 48380 | U44: (detail:) | V44: Kalflex Life Insurance Coverage at $20,000. Additional coverage available at extra cost to employee.
T47: OTHER:
U48: (detail:) | V48: 75% tuition reimbursement/ $500 maximum payment per year. Eight paid holidays. Forty hours personal time. Deferred Comp.available.
A49: *Additional Comments:
A52: Tempory Changes Due To COVID-19:

Sheet 40 Kalkaska
A1: 2017 Michigan Equalization Department Salary Survey
A2: COUNTY OF | D2: Kalkaska | K2: CLICK HERE TO RETURN TO DIRECTOR SUMMARY PAGE
A4: Director | J4: Private Phone: | R4: E-mail:
A5: Alternate: | J5: Private Phone: | R5: E-mail:
A8: General County Information | J8: Additional Duties and Responsibilities | R8: General Office Information
B10: Dept. Established: | F10: % General Fund | K10: Apportionment | O10: Tax Bills | R10: Business Hrs: | X10: Office Fax #:
B11: No. of Cities: | F11: Auto Allowance | K11: Property Desc. | O11: Addressing | R11: Office Phone: | X11: Website:
B12: No.of Townships: | F12: Fringe Benefits | K12: Assessing Units | O12: Website | R12: Address:
B13: No.of Villages: | E13: 2017 Budget | K13: Data Processing | O13: Mapping/GIS
B14: No of hrs. per week | K14: Other | O14: Other | R14: Fax:
B15: No. of Staff (FTEE) | E15: 2017 Revenue(s) | J15: (detail:)
T18: Fringe Benefits
A19: Valuation Information | G19: CURRENT SOFTWARE | L19: BS & A
T20: LEAVE POLICY:
G21: No. of | I21: Assessed | M21: % of | O21: Taxable | U21: Vacation Days | Y21: Sick Days
G22: Parcels | I22: Valuations | M22: Total | O22: Valuations | U22: Personal Days | Y22: Other | Z22: Holidays
B23: Real Property | U23: (detail:)
B24: Personal Property
B25: Total
B26: Exempt | T26: PENSION:
U27: Mers | Y27: 401K
A28: Director, Management & Supervision | U28: Defined Contr | Y28: Other | Z28: Defined Benefit
U29: (detail:)
A30: Position | C30: No of years in: | G30: S.T.C. Level | K30: Personal | M30: No. in | O30: 2016
C31: Position | E31: Assmt Adm | G31: Required | I31: Held | K31: Prop. Exmnr | M31: Position | O31: Salary Range
A32: Director | T32: LONGEVITY:
A33: Deputy/Asst. | T33: N/A | U33: (detail:)
T36: HEALTH:
A37: Staff | U37: BC/BS Type | Y37: Dental
A38: Appraiser III | U38: HMO | Y38: Vision
A39: Appraiser II | U39: Cafeteria | Y39: Other
A40: Appraiser I | U40: (detail:)
A41: P/P Auditor
A42: GIS/Mapping
A43: Clerical | T43: LIFE INSURANCE:
T47: OTHER:
A49: *Additional Comments:
A52: Tempory Changes Due To COVID-19:

Sheet 41 Kent
A1: 2019 Michigan Equalization Department Salary Survey
A2: COUNTY OF | D2: KENT | K2: CLICK HERE TO RETURN TO DIRECTOR SUMMARY PAGE
A4: Director | C4: Matt Woolford | J4: Private Phone: | L4: 616-632-7544 | R4: E-mail: | S4: matt.woolford@kentcountymi.gov
A5: Alternate: | C5: Brenda Ritchie | J5: Private Phone: | L5: 616-632-7531 | R5: E-mail: | S5: brenda.ritchie@kentcountymi.gov
A8: General County Information | J8: Additional Duties and Responsibilities | R8: General Office Information
B10: Dept. Established: | F10: % General Fund | J10: x | K10: Apportionment | O10: Tax Bills | R10: Business Hrs: | T10: 8 a.m. to 5 p.m. | X10: Office Fax #: | Z10: 616-632-7525
A11: 9 | B11: No. of Cities: | E11: IRS Rate | F11: Auto Allowance | J11: x | K11: Property Desc. | N11: x | O11: Addressing | R11: Office Phone: | T11: 616-632-7520 | X11: Website: | Z11: www.accesskent.com
A12: 21 | B12: No.of Townships: | E12: x | F12: Fringe Benefits | K12: Assessing Units | N12: x | O12: Website | R12: Address: | T12: Kent County Equalization
A13: 5 | B13: No.of Villages: | E13: 2019 Budget | K13: Data Processing | N13: x | O13: Mapping/GIS | T13: 300 Monroe Ave NW
A14: 40 | B14: No of hrs. per week | E14: 1544785 | K14: Other | O14: Other | T14: Grand Rapids, MI 49503
A15: 14 | B15: No. of Staff (FTE) | E15: 2019 Revenue(s) | J15: (detail:) | K15: Reappraisal contracts for comm/industrial on time/materials basis. Also contract to do split paperwork for City of Grand Rapids.
E16: 112737
T18: Fringe Benefits
A19: Valuation Information | G19: CURRENT SOFTWARE | L19: BS&A Pervasive
T20: LEAVE POLICY:
G21: No. of | I21: Assessed | M21: % of | O21: Taxable | T21: x | U21: Vacation Days | Y21: Sick Days
G22: Parcels | I22: Valuations | M22: Total | O22: Valuations | T22: x | U22: Personal Days | Y22: Other
B23: Real Property | G23: 216748 | I23: 25511441621 | M23: =I23/$I$25 -> 0.9402725869 | O23: 21269414050 | U23: (detail:) | V23: 1 day per month sick time. Unused hours extend pension benefit. VAC: can accumulate up to 300 hrs with payout when leaving employment
B24: Personal Property | G24: 21815 | I24: 1620522000 | M24: =I24/$I$25 -> 0.05972741312 | O24: 1620002474
B25: Total | G25: =G23+G24 -> 238563 | I25: =I23+I24 -> 27131963621 | M25: =I25/$I$25 -> 1 | O25: =O23+O24 -> 22889416524
T26: PENSION:
U27: Mers | Y27: 401K
A28: Director, Management & Supervision | U28: Defined Contr | X28: x | Y28: Other | Z28: Defined Benefit
U29: (detail:) | V29: Kent County has a self funded defined benefit program
A30: Position | C30: No of years in: | G30: S.T.C. Level | K30: Personal | M30: No. in | O30: 2019 | S30: Grade
C31: Position | E31: Assmt Adm | G31: Required | I31: Held | K31: Prop. Exmnr | M31: Position | O31: Salary Range | S31: Non-U
A32: Director | C32: 11 | E32: 26 | G32: MMAO 4 | I32: MMAO 4 | K32: Yes | M32: 1 | O32: 89262 | Q32: 127035 | S32: E81 | T32: LONGEVITY:
A33: Deputy Director | C33: 2 | E33: 12 | G33: MAAO 3 | I33: MAAO 3 | K33: Yes | M33: 1 | O33: 73825 | Q33: 90942 | S33: D61 | U33: (detail:) | V33: For UAW employees
T36: HEALTH:
A37: Staff | S37: Union | T37: x | U37: BC/BS Type | X37: x | Y37: Dental
A38: Appraiser III | I38: MAAO 3 | M38: 4 | O38: 52124 | Q38: 75858 | S38: 26G | T38: x | U38: HMO | X38: X | Y38: Vision
U39: Cafeteria | Y39: Other
A40: Appraiser II | I40: MCAO 2 | M40: 1 | O40: 37835 | Q40: 54995 | S40: 19G | U40: (detail:) | V40: Each employee pays between 10%-15% of health care premiums
A41: Landbase Tech II | M41: 3 | O41: 45406 | Q41: 63190 | S41: 22E
A42: Landbase Tech I | M42: 2 | O42: 41537 | Q42: 57595 | S42: 20E
A43: Equalization Assistant | M43: 1 | O43: 41537 | Q43: 60466 | S43: 21 | T43: LIFE INSURANCE:
A44: Abstract Clerk | M44: 1 | O44: 37835 | Q44: 52520 | S44: 18E | U44: (detail:) | V44: Union: $15,000 Term Life w/ dbl indem; Non-union equiv to salary with $50,000 limit
T47: OTHER:
U48: (detail:)
A49: *Additional Comments: | D49: Kent County provided Equalization Director Services to Allegan County by contract. This in an intergovernmental agreement and is not an individual contract for the Director. The Kent Director salary receives an upward adjustment of $5,000 annually to provide leadership to the the two county operation. Allegan and Kent both provide Deputy Directors to support operations.
A50: Kent County provided Equalization Director Services to Allegan County by contract. This in an intergovernmental agreement and is not an individual contract for the Director. The Kent Director salary receives an upward adjustment of $5,000 annually to provide leadership to the the two county operation. Allegan and Kent both provide Deputy Directors to support operations.

Sheet 42 Keweenaw
A1: 2021 Michigan Equalization Department Salary Survey
A2: COUNTY OF | D2: Keweenaw | K2: CLICK HERE TO RETURN TO DIRECTOR SUMMARY PAGE
A4: Director | C4: Elizabeth Anderson | J4: Private Phone: | R4: E-mail: | S4: equalization@keweenawcountymi.gov
A5: Alternate: | J5: Private Phone: | R5: E-mail:
A8: General County Information | J8: Additional Duties and Responsibilities | R8: General Office Information
A10: 1971 | B10: Dept. Established: | F10: % General Fund | J10: x | K10: Apportionment | O10: Tax Bills | R10: Business Hrs: | T10: 9:00 - 4:00 T,W,F | X10: Office Fax #: | Z10: 906-337-2253
B11: No. of Cities: | E11: 0.54 | F11: Auto Allowance | K11: Property Desc. | N11: x | O11: Addressing | R11: Office Phone: | T11: 906-337-3471 | X11: Website: | Z11: keweenawcountyonline.org
A12: 5 | B12: No.of Townships: | F12: Fringe Benefits | K12: Assessing Units | N12: x | O12: Website | R12: Address: | T12: 5095 Fourth Street
A13: 1 | B13: No.of Villages: | E13: 2021 Budget | J13: x | K13: Data Processing | N13: x | O13: Mapping/GIS | T13: Eagle River, MI 49950
A14: 21 | B14: No of hrs. per week | K14: Other | O14: Other
A15: 1 | B15: No. of Staff (FTEE) | E15: 2020 Revenue(s) | J15: (detail:)
T18: Fringe Benefits
A19: Valuation Information
T20: LEAVE POLICY:
G21: No. of | I21: Assessed | M21: % of | O21: Taxable | T21: x | U21: Vacation Days | X21: x | Y21: Sick Days
G22: Parcels | I22: Valuations | M22: Total | O22: Valuations | U22: Personal Days | Y22: Other
B23: Real Property | G23: 3784 | I23: 236826414 | M23: =SUM(I23/I25) -> 0.9734156902 | O23: 157186448 | U23: (detail:) | V23: Sick: 4.2 hours per month: Vacation 1yr, 5days: 2 yrs, 10 days: 5 yrs, 15 days
B24: Personal Property | G24: 132 | I24: 6467809 | M24: =SUM(I24/I25) -> 0.02658430981 | O24: 6467809
B25: Total | G25: 3916 | I25: =SUM(I23:L24) -> 243294223 | M25: =SUM(M23:N24) -> 1 | O25: =SUM(O23:R24) -> 163654257
T26: PENSION:
T27: x | U27: Mers | Y27: 401K
A28: Director, Management & Supervision | U28: Defined Contr | Y28: Other
U29: (detail:)
A30: Position | C30: No of years in: | G30: S.A.B. Level | K30: Personal | M30: No. in | O30: 2021
C31: Position | E31: Assmt Adm | G31: Required | I31: Held | K31: Prop. Exmnr | M31: Position | O31: Salary Range
A32: Director | C32: 5yrs | E32: 9 | G32: 3 | I32: 3 | K32: Yes | M32: 1 | O32: 30000 | Q32: 30000 | T32: LONGEVITY:
U33: (detail:) | V33: None
T36: HEALTH:
A37: Staff | T37: x | U37: BC/BS Type | X37: x | Y37: Dental
A38: Appraiser III | U38: HMO | Y38: Vision
A39: Appraiser II | U39: Cafeteria | Y39: Other
A40: Appraiser I | U40: (detail:)
A41: P/P Auditor
A42: GIS/Mapping*
A43: Clerical* | T43: LIFE INSURANCE:
T44: X | U44: (detail:) | V44: $5,000 Life
T47: OTHER:
U48: (detail:)
A49: *Additional Comments:
A50: Due to budget issues I volunteered to work 3 days a week. With a loss of $20,000 from my salary. It as $50,000 at the start of 2020. Went part time 4/2020 This may be for one year only… STILL PART TIME FOR 2021
A52: Tempory Changes Due To COVID-19:

Sheet 43 Lake
A1: 2021 Michigan Equalization Department Salary Survey
A2: COUNTY OF | D2: Lake | K2: CLICK HERE TO RETURN TO DIRECTOR SUMMARY PAGE
A4: Director | C4: Casey Guthrie | J4: Private Phone: | L4: 2317456058 | R4: E-mail: | S4: cguthrie@co.lake.mi.us
A5: Alternate: | J5: Private Phone: | R5: E-mail:
A8: General County Information | J8: Additional Duties and Responsibilities | R8: General Office Information
A10: 1969 | B10: Dept. Established: | E10: 0.71 | F10: % General Fund | J10: x | K10: Apportionment | N10: x | O10: Tax Bills | R10: Business Hrs: | T10: 8:30AM to 5:00PM | X10: Office Fax #:
A11: 0 | B11: No. of Cities: | E11: 0.5 | F11: Auto Allowance | J11: x | K11: Property Desc. | N11: x | O11: Addressing | R11: Office Phone: | T11: 2317452723 | X11: Website: | Z11: www.lakecounty-michigan.com
A12: 15 | B12: No.of Townships: | E12: 0.28 | F12: Fringe Benefits | K12: Assessing Units | N12: x | O12: Website | R12: Address: | T12: 800 Tenth St., Suite 230
A13: 2 | B13: No.of Villages: | E13: 2020 Budget | K13: Data Processing | N13: x | O13: Mapping/GIS | T13: Baldwin, MI 49304
A14: 40 | B14: No of hrs. per week | E14: 301046 | K14: Other | O14: Other | R14: Fax: | T14: 2317452241
A15: 2 | B15: No. of Staff (FTEE) | E15: 2020 Revenue(s) | J15: (detail:)
A16: 1 | B16: P/T Employee
T18: Fringe Benefits
A19: Valuation Information | G19: CURRENT SOFTWARE | L19: BS & A
T20: LEAVE POLICY:
G21: No. of | I21: Assessed | M21: % of | O21: Taxable | T21: x | U21: Vacation Days | X21: x | Y21: Sick Days
G22: Parcels | I22: Valuations | M22: Total | O22: Valuations | T22: x | U22: Personal Days | X22: x | Y22: Other | Z22: Holidays
B23: Real Property | G23: 24565 | I23: 765067300 | M23: =SUM(I23/I25) -> 0.9494588561 | O23: 583574801 | U23: (detail:) | V23: Vaction days are prorated monthly based on years of employment. ALL Employees have Fourteen (14) Holidays. In addition each employee has Five (5)personal and Six (6)sick days yearly non accumlative.
B24: Personal Property | G24: 408 | I24: 40725700 | M24: =SUM(I24/I25) -> 0.05054114394 | O24: 35819610
B25: Total | G25: =SUM(G23:H24) -> 24973 | I25: =SUM(I23:L24) -> 805793000 | M25: =SUM(M23:N24) -> 1 | O25: =SUM(O23:R24) -> 619394411
B26: Exempt | G26: 3859 | T26: PENSION:
T27: x | U27: Mers | X27: x | Y27: 401K
A28: Director, Management & Supervision | T28: x | U28: Defined Contr | Y28: Other | Z28: Defined Benefit
U29: (detail:) | V29: Defined contribution is a secondary B3 pension. Employees are responsible for 100%. MERS is a F55/20 pr F60/10 program.
A30: Position | C30: No of years in: | G30: S.T.C. Level | K30: Personal | M30: No. in | O30: 2021
C31: Position | E31: Assmt Adm | G31: Required | I31: Held | K31: Prop. Exmnr | M31: Position | O31: Salary
A32: Director | C32: 1 | E32: 17 | G32: MAAO | I32: MAAO | K32: YES | M32: 1 | O32: 66000 | T32: LONGEVITY:
A33: Deputy/Asst. | T33: N/A | U33: (detail:) | V33: Based on number of years, first year able to receive is after Five (5) years of employment
T36: HEALTH:
A37: Staff | T37: x | U37: BC/BS Type | X37: x | Y37: Dental
A38: Appraiser III | T38: x | U38: HMO | X38: x | Y38: Vision
A39: Appraiser II | U39: Cafeteria | Y39: Other
A40: Appraiser I | M40: 1 | O40: 40617 | U40: (detail:) | V40: BC/BS PPO 15 is currently being offered to the employees.
A41: P/P Auditor
A42: GIS/Mapping | M42: 1 | O42: 40617
A43: Clerical | M43: 1 | O43: 8105 | T43: LIFE INSURANCE:
A44: Account Clerk | V44: 50,000/30,000 - life/ad&d
A45: Information Technology
T47: OTHER:
V48: Short term disability is also available to the employees
A49: *Additional Comments:
A50: No CERTIFIED Field Appraiser. We have an MCAT who is in the Appraiser position and attaending the MCAO course
A52: Tempory Changes Due To COVID-19:

Sheet 44 Lapeer
A1: 2020 Michigan Equalization Department Salary Survey
A2: COUNTY OF | D2: Lapeer | K2: CLICK HERE TO RETURN TO DIRECTOR SUMMARY PAGE
A4: Director | C4: Greg Hill, contract employee | J4: Private Phone: | L4: 810-989-6304 | R4: E-mail: | S4: ghill@lapeercounty.org
A5: Alternate: | C5: Raelene Birkle | J5: Private Phone: | L5: 810-245-4811 | R5: E-mail: | S5: rbirkle@lapeercounty.org
A8: General County Information | J8: Additional Duties and Responsibilities | R8: General Office Information
B10: Dept. Established: | F10: % General Fund | J10: x | K10: Apportionment | O10: Tax Bills | R10: Business Hrs: | T10: 8:00am - 5:00pm | X10: Office Fax #: | Z10: 810-966-2812
A11: 2 | B11: No. of Cities: | F11: Auto Allowance | K11: Property Desc. | O11: Addressing | R11: Office Phone: | T11: 810-667-0228 | X11: Website: | Z11: www.lapeercounty.org
A12: 18 | B12: No.of Townships: | F12: Fringe Benefits | K12: Assessing Units | O12: Website | R12: Address: | T12: 255 Clay Street
A13: 7 | B13: No.of Villages: | E13: 2020 Budget | K13: Data Processing | N13: x | O13: Mapping/GIS | T13: Lapeer MI. 48446
A14: 40 | B14: No of hrs. per week | E14: Small | K14: Other | O14: Other
A15: 1 | B15: No. of Staff (FTEE) | E15: 2020 Revenue(s) | J15: (detail:)
E16: 0
T18: Fringe Benefits
A19: Valuation Information | G19: CURRENT SOFTWARE | L19: BS&A Equalizer
T20: LEAVE POLICY:
G21: No. of | I21: Assessed | M21: % of | O21: Taxable | U21: Vacation Days | Y21: Sick Days
G22: Parcels | I22: Valuations | M22: Total | O22: Valuations | U22: Personal Days | Y22: Other
B23: Real Property | G23: 42949 | I23: 4040457620 | M23: =+I23/I25 -> 0.9455022412 | O23: 2951300250 | U23: (detail:)
B24: Personal Property | G24: 3050 | I24: 232887745 | M24: =+I24/I25 -> 0.05449775881 | O24: 227625157
B25: Total | G25: =SUM(G23:H24) -> 45999 | I25: =+I24+I23 -> 4273345365 | M25: =+I25/I25 -> 1 | O25: =+O24+O23 -> 3178925407
T26: PENSION:
U27: Mers | Y27: 401K
A28: Director, Management & Supervision | U28: Defined Contr | Y28: Other
U29: (detail:) | V29: Defined benefit 2.4% best 5 out of last 10 5% Employee Co-Pay
A30: Position | C30: No of years in: | G30: S.A.B. Level | K30: Personal | M30: No. in | O30: 2020
C31: Position | E31: Assmt Adm | G31: Required | I31: Held | K31: Prop. Exmnr | M31: Position | O31: Salary Range
A32: Director | C32: 17 | E32: 30+ | G32: MAAO | I32: MMAO | K32: X | M32: 1 | O32: Eq Services Contract | T32: LONGEVITY:
A33: Deputy/Asst. | U33: (detail:) | V33: Phased out post 1995
T36: HEALTH:
A37: Staff | U37: BC/BS Type | Y37: Dental
A38: Senior Appraiser III | U38: HMO | Y38: Vision
A39: Appraiser II | U39: Cafeteria | Y39: Other
A40: Appraiser I | G40: MCAO | I40: MCAO | M40: 1 | O40: 28000 | Q40: 38000 | U40: (detail:) | V40: PPO Blue Cross
A41: P/P Auditor
A42: GIS/Mapping
A43: Clerical | T43: LIFE INSURANCE:
U44: (detail:) | V44: Limited to 1 years salary
T47: OTHER:
U48: (detail:)
A49: *Additional Comments:
A50: Equalization services contracted with 3rd party vendor
A52: Tempory Changes Due To COVID-19:

Sheet 45 Leelanau
A1: 2022 Michigan Equalization Department Salary Survey
A2: COUNTY OF | D2: LEELANAU | K2: CLICK HERE TO RETURN TO DIRECTOR SUMMARY PAGE
A4: Director | C4: Andrew Giguere | J4: Private Phone: | L4: 231-256-9823 | R4: E-mail: | S4: agiguere@leelanau.gov
A5: Alternate: | J5: Private Phone: | R5: E-mail:
A8: General County Information | J8: Additional Duties and Responsibilities | R8: General Office Information
A10: 1970 | B10: Dept. Established: | E10: 0.03 | F10: % General Fund | J10: X | K10: Apportionment | N10: X | O10: Tax Bills | R10: Business Hrs: | T10: 9:00-5:00 | X10: Office Fax #: | Z10: 231-256-8159
A11: 1 | B11: No. of Cities: | E11: 0.575 | F11: Auto Allowance | J11: X | K11: Property Desc. | O11: Addressing | R11: Office Phone: | T11: 231-256-9823 | X11: Website: | Z11: www.leelanau.cc
A12: 11 | B12: No.of Townships: | E12: 0.35 | F12: Fringe Benefits | K12: Assessing Units | N12: X | O12: Website | R12: Address: | T12: Leelanau Co. Gov't Center
A13: 3 | B13: No.of Villages: | E13: 2022 Budget | J13: X | K13: Data Processing | N13: X | O13: Mapping/GIS | T13: 8527 E. Gov't Center Dr.
A14: 35 | B14: No of hrs. per week | E14: 461000 | J14: X | K14: Other | O14: Other | T14: Ste. 102
A15: 4 | B15: No. of Staff (FTEE) | E15: 2022 Revenue(s) | J15: (detail:) | K15: Damage Assessment, Census, 9-1-1 maintenance | T15: Suttons Bay, MI 49682
E16: 18000
T18: Fringe Benefits
A19: Valuation Information
T20: LEAVE POLICY:
G21: No. of | I21: Assessed | M21: % of | O21: Taxable | T21: X | U21: Vacation Days | Y21: Sick Days
G22: Parcels | I22: Valuations | M22: Total | O22: Valuations | T22: X | U22: Personal Days | X22: X | Y22: Other
B23: Real Property | G23: 23355 | I23: 4520870533 | M23: =I23/I25 -> 0.9851986992 | O23: 3249530216 | U23: (detail:) | V23: Vac. 1 yr - 6 days; 2 yrs-12 days; 5 yrs-18 days; 15 yrs-22 days; Personal days: 12/yr Paid Holidays: 11.5 days: Funeral Leave- 4 days immediate family
B24: Personal Property | G24: 1506 | I24: 67920070 | M24: =I24/I25 -> 0.01480130079 | O24: 67919070
B25: Total | G25: =SUM(G23:H24) -> 24861 | I25: =I24+I23 -> 4588790603 | M25: =M24+M23 -> 1 | O25: =O24+O23 -> 3317449286
T26: PENSION:
T27: x | U27: Mers | Y27: 401K
A28: Director, Management & Supervision | U28: Defined Contr | X28: x | Y28: Other
U29: (detail:) | V29: 401(a)
A30: Position | C30: No of years in: | G30: S.A.B. Level | K30: Personal | M30: No. in | O30: 2022
C31: Position | E31: Assmt Adm | G31: Required | I31: Held | K31: Prop. Exmnr | M31: Position | O31: Salary Range
A32: Director | C32: 1 | E32: 10 | G32: MMAO | I32: MMAO | K32: Y | M32: 1 | O32: 78487 | Q32: 87479 | T32: LONGEVITY:
U33: (detail:) | V33: 2-4 yrs -$300: 5-9 yrs-$600: 10-14 yrs-$800: 15+ yrs-$1,000
T36: HEALTH:
A37: Staff | T37: x | U37: BC/BS Type | X37: x | Y37: Dental
A38: Appraiser III | I38: MCAT | K38: Y | M38: 1 | O38: 39148 | Q38: 51051 | U38: HMO | X38: x | Y38: Vision
A39: Appraiser II | U39: Cafeteria | X39: x | Y39: Other
A40: Appraiser I | U40: (detail:)
A41: P/P Auditor
A42: GIS/Mapping | I42: MCAT | K42: Y | M42: 1 | O42: 39148 | Q42: 51051
A43: Eq. Technician | I43: MCAO | K43: Y | M43: 1 | O43: 28337 | Q43: 39439 | T43: LIFE INSURANCE:
U44: (detail:) | V44: $50,000 full time employee/$10,000 part time employees
T47: OTHER:
U48: (detail:) | V48: Long Term/Short Term Disability
A49: *Additional Comments:
A52: Tempory Changes Due To COVID-19:

Sheet 46 Lenawee
A1: 2020 Michigan Equalization Department Salary Survey
A2: COUNTY OF | D2: Lenawee | K2: CLICK HERE TO RETURN TO DIRECTOR SUMMARY PAGE
A4: Director | C4: Marchelle DeLong | J4: Private Phone: | L4: 517-264-4526 | R4: E-mail: | S4: shelly.delong@lenawee.mi.us
A5: Alternate: | J5: Private Phone: | R5: E-mail: | S5: shelly.delong@lenawee.mi.us
A8: General County Information | J8: Additional Duties and Responsibilities | R8: General Office Information
A10: 1967 | B10: Dept. Established: | E10: 0.0208 | F10: % General Fund | J10: X | K10: Apportionment | N10: X | O10: Tax Bills | R10: Business Hrs: | T10: 8:00 am to 4:30 pm | X10: Office Fax #: | Z10: 517-264-4529
A11: 4 | B11: No. of Cities: | E11: 0.54 | F11: Auto Allowance | J11: X | K11: Property Desc. | O11: Addressing | R11: Office Phone: | T11: 517-264-4522 | X11: Website: | Z11: www.lenawee.mi.us
A12: 22 | B12: No.of Townships: | E12: 0.35 | F12: Fringe Benefits | J12: 6a | K12: Assessing Units | O12: Website | R12: Address: | T12: 301 N Main St
A13: 8 | B13: No.of Villages: | E13: 2017 Budget | J13: X | K13: Data Processing | N13: X | O13: Mapping/GIS | T13: Adrian MI 49221
A14: 37.5 | B14: No of hrs. per week | E14: 1093112 | K14: Other | O14: Other
A15: 11 | B15: No. of Staff (FTEE) | E15: 2017 Revenue(s) | J15: (detail:) | K15: (a) Not General Fund
E16: 479633
T18: Fringe Benefits
A19: Valuation Information | G19: CURRENT SOFTWARE | L19: BS&A
T20: LEAVE POLICY:
G21: No. of | I21: Assessed | M21: % of | O21: Taxable | T21: X | U21: Vacation Days | Y21: Sick Days
G22: Parcels | I22: Valuations | M22: Total | O22: Valuations | U22: Personal Days | X22: X | Y22: Other
B23: Real Property | G23: 50033 | I23: 4392345683 | M23: 0.925 | O23: 3288846015 | U23: (detail:) | V23: Paid Leave: 1 yr=.6 days/2 wek 16 day max, 1-5 yrs=.8 days/2 wk 21 max, 6-10 yrs=.9 day/2 wk 24 day max, 10 yrs = 1 day/2 wk 26 max; 11.5 legal holidays
B24: Personal Property | G24: 3575 | I24: 355989625 | M24: 0.075 | O24: 355944925
B25: Total | G25: 53608 | I25: 4748335308 | M25: 1 | O25: 3644790940
T26: PENSION:
T27: X | U27: Defined Benefit | Y27: 401K
A28: Director, Management & Supervision | T28: X | U28: Defined Contr | Y28: Other
U29: (detail:) | V29: Prior to 2001 - Defined Benefit 2% multiplier 10 % employee contribution. Post 2001: Defined Contribution 5% by employer and employee.
A30: Position | C30: No of years in: | G30: S.T.C. Level | K30: Personal | M30: No. in | O30: 2010
C31: Position | E31: Assmt Adm | G31: Required | I31: Held | K31: Prop. Exmnr | M31: Position | O31: Salary Range
A32: Director | C32: 2 | E32: 30 | G32: MAAO | I32: MAAO | K32: yes | M32: 1 | O32: 70401 | Q32: 80919 | T32: LONGEVITY:
A33: Deputy/Asst. | O33: 49932 | Q33: 57225 | U33: (detail:) | V33: None
T36: HEALTH:
A37: Staff | T37: X | U37: BC/BS Type | X37: X | Y37: Dental
A38: Appraiser III | M38: 1.5 | O38: 39767 | Q38: 45644 | U38: HMO | X38: X | Y38: Vision
A39: Appraiser II | M39: 2 | O39: 36148 | Q39: 41708 | U39: Cafeteria | Y39: Other
A40: Appraiser I | U40: (detail:) | V40: Primarily High Deductible plan.
A41: P/P Auditor
A42: GIS/Mapping | M42: 1 | O42: 36148 | Q42: 41708
A43: Prop Tech | M43: 1 | O43: 36148 | Q43: 41708 | T43: LIFE INSURANCE:
A44: Appraisal Assistant - part time | M44: 1 | O44: 15800 | Q44: 18400 | U44: (detail:) | V44: 1 YEAR WAGE TO A MAX OF $50,000
A45: Appraisal Assistant - full time | O45: 29600 | Q45: 34515
T47: OTHER:
U48: (detail:)
A49: *Additional Comments:
A52: Tempory Changes Due To COVID-19:

Sheet 47 Livingston
A1: 2020 Michigan Equalization Department Salary Survey
A2: COUNTY OF | D2: Livingston | K2: CLICK HERE TO RETURN TO DIRECTOR SUMMARY PAGE
A4: Director | C4: Sue Bostwick | J4: Private Phone: | L4: 517-540-8775 | R4: E-mail: | S4: Sbostwick@livgov.com
A5: Alternate: | J5: Private Phone: | L5: 517-540-8778 | R5: E-mail:
A8: General County Information | J8: Additional Duties and Responsibilities | R8: General Office Information
B10: Dept. Established: | E10: 0.63 | F10: % General Fund | J10: X | K10: Apportionment | N10: X | O10: Tax Bills | R10: Business Hrs: | T10: 8:00 am - 5:00 pm | X10: Office Fax #: | Z10: 517-552-2322
A11: 2 | B11: No. of Cities: | F11: Auto Allowance | K11: Property Desc. | O11: Addressing | R11: Office Phone: | T11: 517-546-4182 | X11: Website: | Z11: Livingstonlive.org
A12: 16 | B12: No.of Townships: | F12: Fringe Benefits | K12: Assessing Units | N12: X | O12: Website | R12: Address: | T12: 304 E Grand River, Suite 102
A13: 2 | B13: No.of Villages: | E13: 2020 Budget | K13: Data Processing | O13: Mapping/GIS | T13: Howell Mi 48843
A14: 40 | B14: No of hrs. per week | E14: 510000 | K14: Other | O14: Other
A15: 4 | B15: No. of Staff (FTEE) | E15: 2020 Revenue(s) | J15: (detail:)
E16: 32000
T18: Fringe Benefits
A19: Valuation Information
T20: LEAVE POLICY:
G21: No. of | I21: Assessed | M21: % of | O21: Taxable | T21: 22 | U21: Vacation Days | X21: 5 | Y21: Sick Days
G22: Parcels | I22: Valuations | M22: Total | O22: Valuations | U22: Personal Days | Y22: Other
B23: Real Property | G23: 85179 | I23: 11636418745 | M23: 0.95 | O23: 8793778844 | U23: (detail:)
B24: Personal Property | G24: 5692 | I24: 562943965 | M24: 0.05 | O24: 562321690
B25: Total | G25: 90871 | I25: 11636418745 | M25: 1 | O25: 9356100534
T26: PENSION:
T27: X | U27: Mers | X27: X | Y27: 401K
A28: Director, Management & Supervision | U28: Defined Contr | Y28: Other | Z28: Defined Benefit
U29: (detail:)
A30: Position | C30: No of years in: | G30: S.A.B. Level | K30: Personal | M30: No. in | O30: 2020
C31: Position | E31: Assmt Adm | G31: Required | I31: Held | K31: Prop. Exmnr | M31: Position | O31: Salary Range
A32: Director | C32: 3 | E32: 25 | G32: 3 | I32: 3 | K32: yes | M32: 1 | O32: 89411 | Q32: 116234 | T32: LONGEVITY:
U33: (detail:)
T36: HEALTH:
A37: Staff | T37: X | U37: BC/BS Type | X37: x | Y37: Dental
A38: Appraiser III | G38: 1 | M38: 1 | O38: 51499 | Q38: 66948 | U38: HMO | X38: X | Y38: Vision
A39: Appraiser II | G39: 2 | M39: 2 | O39: 42561.37 | Q39: 55329 | T39: X | U39: Cafeteria | Y39: Other
A40: Appraiser I | U40: (detail:)
A41: P/P Auditor
A42: GIS/Mapping
A43: Clerical | T43: LIFE INSURANCE:
U44: (detail:) | V44: 1/2 annual salary paid by county. Additional coverage can be purchased at your own expense.
M46: Contract | O46: 41732
T47: OTHER:
U48: (detail:)
A49: *Additional Comments:
A52: Tempory Changes Due To COVID-19:

Sheet 48 Luce
A1: 2021 Michigan Equalization Department Salary Survey
A2: COUNTY OF | D2: Luce | K2: CLICK HERE TO RETURN TO DIRECTOR SUMMARY PAGE
A4: Director | C4: Michael Woolford | J4: Private Phone: | L4: 906-293-4263 | R4: E-mail: | S4: lucecoequaldirector@gmail.com
A5: Alternate: | J5: Private Phone: | R5: E-mail:
A8: General County Information | J8: Additional Duties and Responsibilities | R8: General Office Information
B10: Dept. Established: | F10: % General Fund | J10: x | K10: Apportionment | O10: Tax Bills | R10: Business Hrs: | T10: 8:00am to 4:00pm | X10: Office Fax #: | Z10: 906-293-4263
A11: 0 | B11: No. of Cities: | F11: Auto Allowance | K11: Property Desc. | O11: Addressing | R11: Office Phone: | X11: Website:
A12: 4 | B12: No.of Townships: | F12: Fringe Benefits | K12: Assessing Units | O12: Website | R12: Address:
A13: 1 | B13: No.of Villages: | E13: 2021 Budget | K13: Data Processing | N13: x | O13: Mapping/GIS
B14: No of hrs. per week | K14: Other | O14: Other | R14: Fax:
A15: 1 | B15: No. of Staff (FTEE) | E15: 2021 Revenue(s) | J15: (detail:)
T18: Fringe Benefits
A19: Valuation Information | G19: CURRENT SOFTWARE | L19: BS&A
T20: LEAVE POLICY:
G21: No. of | I21: Assessed | M21: % of | O21: Taxable | U21: Vacation Days | Y21: Sick Days
G22: Parcels | I22: Valuations | M22: Total | O22: Valuations | U22: Personal Days | Y22: Other | Z22: Holidays
B23: Real Property | G23: 7556 | I23: 232724100 | M23: =I23/I25 -> 0.959742806 | O23: 184945434 | U23: (detail:)
B24: Personal Property | G24: 266 | I24: 9761802 | M24: =I24/I25 -> 0.040257194 | O24: 9761802
B25: Total | G25: 7822 | I25: 242485902 | M25: =M23+M24 -> 1 | O25: =O23+O24 -> 194707236
B26: Exempt | G26: 1589 | T26: PENSION:
U27: Mers | Y27: 401K
A28: Director, Management & Supervision | U28: Defined Contr | Y28: Other | Z28: Defined Benefit
U29: (detail:)
A30: Position | C30: No of years in: | G30: S.T.C. Level | K30: Personal | M30: No. in | O30: 2021
C31: Position | E31: Assmt Adm | G31: Required | I31: Held | K31: Prop. Exmnr | M31: Position | O31: Salary Range
A32: Director | C32: 1 | E32: 28 | G32: MAAO | I32: MMAO | K32: X | M32: 1 | O32: 35000 | Q32: *** | T32: LONGEVITY:
A33: Deputy/Asst. | T33: N/A | U33: (detail:)
T36: HEALTH:
A37: Staff | U37: BC/BS Type | Y37: Dental
A38: Appraiser III | U38: HMO | Y38: Vision
A39: Appraiser II | U39: Cafeteria | Y39: Other
A40: Appraiser I | U40: (detail:)
A41: P/P Auditor
A42: GIS/Mapping
A43: Clerical | G43: None | I43: None | M43: 1 | O43: 30000 | T43: LIFE INSURANCE:
T47: OTHER:
A49: *Additional Comments:
A50: Current Director is a part time employee with a contract detailing work to be performed. No benefits
A52: Tempory Changes Due To COVID-19:

Sheet 49 Mackinac
A1: 2022 Michigan Equalization Department Salary Survey
A2: COUNTY OF | D2: Mackinac | K2: CLICK HERE TO RETURN TO DIRECTOR SUMMARY PAGE
A4: Director | C4: Michael D Gillett | J4: Private Phone: | L4: (906)643-7313 | R4: E-mail: | S4: mackcoequaldir@gmail.com
A5: Alternate: | J5: Private Phone: | R5: E-mail:
A8: General County Information | J8: Additional Duties and Responsibilities | R8: General Office Information
A10: 1965 | B10: Dept. Established: | F10: % General Fund | J10: x | K10: Apportionment | O10: Tax Bills | R10: Business Hrs: | T10: 8:30am - 4:30 pm | X10: Office Fax #: | Z10: (906)643-8123
A11: 2 | B11: No. of Cities: | E11: 0.625 | F11: Auto Allowance | J11: x | K11: Property Desc. | O11: Addressing | R11: Office Phone: | T11: (906)643-7310 | X11: Website: | Z11: www.mackinaccounty.net
A12: 11 | B12: No.of Townships: | F12: Fringe Benefits | K12: Assessing Units | N12: x | O12: Website | R12: Address: | T12: 100 Marley St.
A13: 0 | B13: No.of Villages: | E13: 2021 Budget | J13: x | K13: Data Processing | N13: x | O13: Mapping/GIS | T13: Room 115
A14: 35 | B14: No of hrs. per week | E14: 302349.26 | K14: Other | N14: X | O14: Land Division | T14: St. Ignace, MI 49781
A15: 3 | B15: No. of Staff (FTEE) | E15: 2021 Revenue(s) | J15: (detail:)
E16: 29906.29
T18: Fringe Benefits
A19: Valuation Information | G19: CURRENT SOFTWARE | L19: BS&A .NET
T20: LEAVE POLICY:
G21: No. of | I21: Assessed | M21: % of | O21: Taxable | T21: 20 | U21: Vacation Days | X21: 12 | Y21: Sick Days
G22: Parcels | I22: Valuations | M22: Total | O22: Valuations | T22: 4 | U22: Personal Days | Y22: Other
B23: Real Property | G23: 19886 | I23: 1306104967 | M23: 0.89 | O23: 1004667740 | U23: (detail:) | V23: increase with years with county
B24: Personal Property | G24: 1025 | I24: 166926290 | M24: 0.11 | O24: 165724431
B25: Total | G25: =SUM(G23:H24) -> 20911 | I25: =SUM(I23:L24) -> 1473031257 | M25: =SUM(M23:N24) -> 1 | O25: =SUM(O23:R24) -> 1170392171
T26: PENSION:
T27: x | U27: Mers | X27: x | Y27: 401K
A28: Director, Management & Supervision | T28: x | U28: Defined Contr | X28: x | Y28: Other | Z28: Defined Benefit
U29: (detail:)
A30: Position | C30: No of years in: | G30: S.T.C. Level | K30: Personal | M30: No. in | O30: 2021
C31: Position | E31: Assmt Adm | G31: Required | I31: Held | K31: Prop. Exmnr | M31: Position | O31: Salary Range
A32: Director | C32: 4 | E32: 35 | G32: MAAO | I32: MAAO | K32: x | M32: 1 | O32: 61703 | T32: LONGEVITY:
A33: Deputy/Asst. | E33: Open | U33: (detail:) | V33: $100 per year of service after 6 years. Max $2,000
T36: HEALTH:
A37: Staff | T37: x | U37: BC/BS Type | X37: x | Y37: Dental
A38: Appraiser III | U38: HMO | X38: X | Y38: Vision
A39: Appraiser II | G39: MAAO | I39: MAAO | M39: open | O39: 35089 | Q39: 41987 | U39: Cafeteria | Y39: Other
A40: Appraiser I | G40: MCAO | I40: MCAO | M40: 1 | O40: 37710 | Q40: 44699 | U40: (detail:)
A41: P/P Auditor
A42: GIS/Mapping | G42: MCAT | I42: MCAT | M42: 1 | O42: 32905 | Q42: 37546
A43: Clerical | G43: MCAT | I43: MCAT | M43: 1 | O43: 32905 | Q43: 37546 | T43: LIFE INSURANCE:
U44: (detail:) | V44: $60,000 per employee
T47: OTHER:
U48: (detail:)
A49: *Additional Comments:
A50: GIS/Clerk shared position with EIIP Regional Planning Development
A52: Tempory Changes Due To COVID-19:

Sheet 50 Macomb
A1: 2022 Michigan Equalization Department Salary Survey
A2: COUNTY OF | D2: MACOMB | K2: CLICK HERE TO RETURN TO DIRECTOR SUMMARY PAGE
A4: Director | C4: Kristen Sieloff | J4: Private Phone: | L4: 586-469-5470 | R4: E-mail: | S4: kristen.sieloff@macombgov.org
A5: Alternate: | C5: Sandra Birkenshaw | J5: Private Phone: | L5: 586-469-6932 | R5: E-mail: | S5: sandy.birkenshaw@macombgov.org
A8: General County Information | J8: Additional Duties and Responsibilities | R8: General Office Information
A10: 1965 | B10: Dept. Established: | E10: 0.017 | F10: % General Fund | J10: x | K10: Apportionment | O10: Tax Bills | R10: Business Hrs: | T10: 8:00am. - 4:30 pm. | X10: Office Fax #: | Z10: 586-469-5423
A11: 13 | B11: No. of Cities: | E11: 0.625 | F11: Auto Allowance | K11: Property Desc. | O11: Addressing | R11: Office Phone: | T11: 586-469-5260 | X11: Website: | Z11: macombcountymi.gov
A12: 11 | B12: No.of Townships: | E12: 0.5 | F12: Fringe Benefits | K12: Assessing Units | O12: Website | R12: Address: | T12: 1 S. Main - 6th Floor
A13: 3 | B13: No.of Villages: | E13: 2022 Budget | K13: Data Processing | O13: Mapping/GIS | T13: Mt. Clemens MI 48043
A14: 37.5 | B14: No of hrs. per week | E14: 1267500 | K14: Other | O14: Other
A15: 10 | B15: No. of Staff (FTEE) | E15: 2022 Revenue(s) | J15: (detail:)
E16: 7000
T18: Fringe Benefits
A19: Valuation Information | G19: CURRENT SOFTWARE | L19: B S & A
T20: LEAVE POLICY:
G21: No. of | I21: Assessed | M21: % of | O21: Taxable | T21: x | U21: Vacation Days | X21: 13 | Y21: Sick Days
G22: Parcels | I22: Valuations | M22: Total | O22: Valuations | T22: 2 | U22: Personal Days | Y22: Other
B23: Real Property | G23: 29285 | I23: 40966481994 | M23: =I23/I25 -> 0.9534529572 | O23: 30856391965 | U23: (detail:) | V23: Sick Policy: 1/2 day/2 wks may accum up to 180 days (50% paid upon ret); Vacation Policy: 1-5 yrs=10 days, 6-10 yrs=15 days, 11-13 yrs=17 days, 14-20 yrs=20 days, Over= 1 addl day @ yr up to 25 days; 14.5 Holidays & 13 sick days annually
B24: Personal Property | G24: 25809 | I24: 1999960856 | M24: =I24/I25 -> 0.04654704284 | O24: 1999884117
B25: Total | G25: =G23+G24 -> 55094 | I25: =SUM(I23:L24) -> 42966442850 | M25: =SUM(M23:N24) -> 1 | O25: =SUM(O23:R24) -> 32856276082
T26: PENSION:
U27: Mers | Y27: 401K
A28: Director, Management & Supervision | T28: x | U28: Defined Contr | X28: x | Y28: Other | Z28: Defined Benefit
U29: (detail:) | V29: Emp contr 3% of pay-Pension Mltplr is 2.4%/yr of serv to 26 yrs, 1%/yr after 26, 65% max-4 yr final avg cmp-15 yrs to vest, Jan 04-70 pt syst-Min age 50 -
A30: Position | C30: No of years in: | G30: S.T.C. Level | K30: Personal | M30: No. in
C31: Position | E31: Assmt Adm | G31: Required | I31: Held | K31: Prop. Exmnr | M31: Position | O31: Salary Range
A32: Director | C32: 5 | E32: 27 | G32: MMAO | I32: MMAO | K32: X | M32: 1 | O32: 77592 | Q32: 110438 | T32: LONGEVITY:
A33: Deputy/Asst. | U33: (detail:) | V33: withheld due to budget constraints - per union agreement/BOC order
A34: Pers Prop Mgr | C34: 3 | E34: 27 | G34: MAAO | I34: MAAO | K34: X | M34: 1 | O34: 62465 | Q34: 79220
A35: Real Prop Mgr | C35: 10 | E35: 29 | G35: MAAO | I35: MAAO | K35: X | M35: 1 | O35: =O34 -> 62465 | Q35: =Q34 -> 79220
A36: Com Ind Mgr | T36: HEALTH:
A37: Staff | T37: x | U37: BC/BS Type | X37: x | Y37: Dental
A38: Appraiser III | T38: x | U38: HMO | X38: x | Y38: Vision
A39: Appraiser II | G39: MCAO | I39: MCAO | K39: X | M39: 4 | O39: 57918 | Q39: 73454 | U39: Cafeteria | X39: x | Y39: Other
A40: Appraiser I | U40: (detail:) | V40: BC/BS PPO w/prescription with copayment by emp.or choice of several HMO - Dental-Optical - Long term disability available
A41: P/P Auditor
A42: GIS/Mapping
A43: Clerical | T43: LIFE INSURANCE:
A44: Sr Secretary | U44: (detail:) | V44: $50,000 Term Life
A45: Appraiser Technician | G45: MCAT | I45: MCAO | K45: X | M45: 3 | O45: 7625 | Q45: 47718
T47: OTHER:
U48: (detail:) | V48: 100% Employee Funded Defered comp
A49: *Additional Comments:
A52: Tempory Changes Due To COVID-19:
A53: Hybrid work schedule - mostly remote with some in-office time

Sheet 51 Manistee
A1: 2022 Michigan Equalization Department Salary Survey
A2: COUNTY OF | D2: MANISTEE | K2: CLICK HERE TO RETURN TO DIRECTOR SUMMARY PAGE
A4: Director | C4: HEATHER VASQUEZ | J4: Private Phone: | L4: 231.398.3533 | R4: E-mail: | S4: hvasquez@manisteecountymi.gov
A5: Alternate: | C5: LISA SENTERS | J5: Private Phone: | L5: 231.398.3530 | R5: E-mail: | S5: lasenters@manisteecountymi.gov
A8: General County Information | J8: Additional Duties and Responsibilities | R8: General Office Information
A10: 1965 | B10: Dept. Established: | E10: 0.0285 | F10: % General Fund | J10: X | K10: Apportionment | O10: Tax Bills | R10: Business Hrs: | T10: 8:30-5:00 | X10: Office Fax #: | Z10: 231-398-3531
A11: 1 | B11: No. of Cities: | E11: 0.54 | F11: Auto Allowance | J11: X | K11: Property Desc. | O11: Addressing | R11: Office Phone: | T11: 231-723-5957 | X11: Website: | Z11: www.manisteecountymi.gov
A12: 14 | B12: No.of Townships: | E12: 0.73 | F12: Fringe Benefits | J12: x | K12: Assessing Units | N12: X | O12: Website | R12: Address: | T12: 415 Third St
A13: 5 | B13: No.of Villages: | E13: 2021-22 Budget | J13: X | K13: Data Processing | N13: X | O13: Mapping/GIS | T13: Manistee, MI 49660
A14: 37.5 | B14: No of hrs. per week | E14: 336856 | K14: Other | O14: Other
A15: 4.5 | B15: No. of Staff (FTEE) | E15: 2021-22 Revenue | J15: (detail:)
E16: 5010
T18: Fringe Benefits
A19: Valuation Information | G19: CURRENT SOFTWARE | L19: BSA ASSESSING .NET
T20: LEAVE POLICY:
G21: No. of | I21: Assessed | M21: % of | O21: Taxable | T21: X | U21: Vacation Days | Y21: Sick Days
G22: Parcels | I22: Valuations | M22: Total | O22: Valuations | T22: X | U22: Personal Days | X22: X | Y22: Other
B23: Real Property | G23: 23081 | I23: 1378184750 | M23: 0.9387 | O23: 1069758800 | U23: (detail:) | V23: VAC: 1-5YRS=10 DAYS, 6-10YRS=15, 10+YRS=20, SHORT TERM DISABILITY, PERSONAL DAYS=6, 14 HOLIDAYS, FUNERAL LEAVE
B24: Personal Property | G24: 1835 | I24: 89939750 | M24: 0.0613 | O24: 89934750
B25: Total | G25: 24916 | I25: 1468124500 | M25: 1 | O25: 1159693550
T26: PENSION:
T27: X | U27: Mers | Y27: 401K
A28: Director, Management & Supervision | U28: Defined Contr | Y28: Other | Z28: Defined Benefit
U29: (detail:) | V29: MERS B-4, F55/20, FAC 5, V-8, Eff Jan 1, 2013 Employer's max total required employer contribution capped at 12% of payroll; All New Employees hired after Sept 30, 2011, MERS Hybrid Pension Program V-6, FAC-3, mult fixed 1.5% funded by Employer, Employee min 1% contribution Defined Contribution portion.
A30: Position | C30: No of years in: | G30: S.T.C. Level | K30: Personal | M30: No. in | O30: 2022
C31: Position | E31: Assmt Adm | G31: Required | I31: Held | K31: Prop. Exmnr | M31: Position | O31: Salary Range
A32: Director | C32: 4 | E32: 21 | G32: 3 | I32: 3 | K32: Yes | M32: 1 | O32: 52833 | Q32: 68686 | T32: LONGEVITY:
A33: Deputy/Asst. | C33: 4 | E33: 18 | G33: 3 | I33: 3 | K33: Yes | M33: 1 | O33: 35802 | Q33: 46566 | U33: (detail:)
T36: HEALTH:
A37: Staff | T37: X | U37: BC/BS Type | X37: X | Y37: Dental
A38: Appraiser III | U38: HMO | X38: Optional | Y38: Vision
A39: Appraiser II | I39: VACANT | K39: x | M39: 1 | O39: 31843 | Q39: 41398 | U39: Cafeteria | Y39: Other
A40: Appraiser I | U40: (detail:) | V40: Eff Oct 1, 2013 employee responsible for 9% of PPO 3 health plan premium deducted bi-weekly; Dental-Employer agrees to pay full premium for all employee and eligible depents for a 50/50/50 with $800 MBL Dental Program
A41: P/P Auditor
A42: GIS/Mapping | I42: 0 | K42: x | M42: 1 | O42: 31843 | Q42: 41398
A43: Clerical | I43: 1 | K43: x | M43: 0.5 | O43: 29350 | Q43: 38512 | T43: LIFE INSURANCE:
U44: (detail:) | V44: &10,000 Term Life
T47: OTHER:
U48: (detail:) | V48: Deferred Compensation
A49: *Additional Comments:
A52: Tempory Changes Due To COVID-19:

Sheet 52 Marquette
A1: 2017 Michigan Equalization Department Salary Survey
A2: COUNTY OF | D2: MARQUETTE | K2: CLICK HERE TO RETURN TO DIRECTOR SUMMARY PAGE
A4: Director | C4: RICK S LINDTRROM | J4: Private Phone: | L4: 906-399-4988 | R4: E-mail: | S4: rslindstrom@jamadots.com
A5: Alternate: | C5: JACKI M LYKINS | J5: Private Phone: | L5: 906-225-8411 | R5: E-mail: | S5: jlykins@mqtcty.org
A8: General County Information | J8: Additional Duties and Responsibilities | R8: General Office Information
B10: Dept. Established: | E10: 1 | F10: % General Fund | K10: Apportionment | N10: x | O10: Tax Bills | R10: Business Hrs: | T10: 8am - 5pm | X10: Office Fax #: | Z10: 906-228-1564
A11: 3 | B11: No. of Cities: | F11: Auto Allowance | J11: x | K11: Property Desc. | N11: x | O11: Addressing | R11: Office Phone: | T11: 906-225-8405 | X11: Website:
A12: 19 | B12: No.of Townships: | F12: Fringe Benefits | J12: X | K12: Assessing Units | O12: Website | R12: Address: | T12: 234 W Baraga Ave
B13: No.of Villages: | E13: 2017 Budget | J13: x | K13: Data Processing | N13: x | O13: Mapping/GIS | T13: Marquette, Mi 49855
A14: 40 | B14: No of hrs. per week | E14: 665798 | K14: Other | O14: Other
A15: 7 | B15: No. of Staff (FTEE) | E15: 2017 Revenue(s) | J15: (detail:)
E16: 225950
T18: Fringe Benefits
A19: Valuation Information | G19: CURRENT SOFTWARE | O19: BSA
T20: LEAVE POLICY:
G21: No. of | I21: Assessed | M21: % of | O21: Taxable | T21: varies | U21: Vacation Days | X21: 13 | Y21: Sick Days
G22: Parcels | I22: Valuations | M22: Total | O22: Valuations | T22: 40 hrs | U22: Personal Days | Y22: Other
B23: Real Property | G23: 39541 | I23: 2559405522 | O23: 1865164291 | U23: (detail:) | V23: Vacaion based pn years of service. I week forst year - up to five weeks after 10 years.
B24: Personal Property | G24: 2916 | I24: 138897831 | O24: 138847390
B25: Total | I25: 2698303353 | O25: 2004011684
T26: PENSION:
T27: x | U27: Mers | Y27: 401K
A28: Director, Management & Supervision | T28: x | U28: Defined Contr | Y28: Other | Z28: Defined Benefit
U29: (detail:) | V29: Newer employess have defined contribution, more senior have defined benefit.
A30: Position | C30: No of years in: | G30: S.T.C. Level | K30: Personal | M30: No. in | O30: 2010
C31: Position | E31: Assmt Adm | G31: Required | I31: Held | K31: Prop. Exmnr | M31: Position | O31: Salary Range
A32: Director | C32: 6 | E32: 36 | G32: 4 | I32: 4 | M32: 1 | O32: contract | Q32: 39922 | S32: *** | T32: LONGEVITY:
A33: Deputy Director | C33: 12 | E33: 39 | G33: 3 | I33: 3 | M33: 1 | O33: 24.26/hr | Q33: 29.52/hr | U33: (detail:) | V33: $100 after years of service. Additional 100/yr up to $500 max.
T36: HEALTH:
A37: Staff | T37: x | U37: BLUE CROSS | X37: x | Y37: Dental
A38: Lead Appraiser | G38: 3 | I38: 3 | K38: Yes | M38: 12 | O38: 20.26/hr | Q38: 25.03/hr | U38: HMO | X38: X | Y38: Vision | Z38: both
A39: Technology Specialist/Appraiser II | G39: 2 | I39: 2 | K39: No | M39: 9 | O39: 21.06/hr | Q39: 25.76nr | U39: Cafeteria | Y39: Other
A40: Appraiser I | U40: (detail:)
A41: P/P Auditor
A42: GIS/Mapping | G42: 2 | I42: 2 | K42: No | M42: 3 | O42: 20.26/hr | Q42: 25.04/hr
A43: Equalization Assistant | G43: 2 | I43: 2 | K43: No | M43: 9 | O43: 15.55/hr | Q43: 19.23/hr | T43: LIFE INSURANCE:
A44: Equalizaion Clerk | G44: MCAT | K44: NO | M44: 1 | O44: 14.51/hr | Q44: 17.75/hr | T44: x | U44: (detail:) | V44: 1.5 time annual salary
A45: Appraiser Aide - 2 pt time | M45: 2 | O45: 13.65 | Q45: 13.65
T47: OTHER:
U48: (detail:)
A49: *Additional Comments:
A52: Tempory Changes Due To COVID-19:

Sheet 53 Mason
A1: 2017 Michigan Equalization Department Salary Survey
A2: COUNTY OF | D2: Mason | K2: CLICK HERE TO RETURN TO DIRECTOR SUMMARY PAGE
A4: Director | C4: Tom Routhier | J4: Private Phone: | L4: 231 845-6288 | R4: E-mail: | S4: trouthier@masoncounty.net
A5: Alternate: | C5: Marilyn Bowman | J5: Private Phone: | L5: 231 584-6288 | R5: E-mail: | S5: mbowman@masoncounty.net
A8: General County Information | J8: Additional Duties and Responsibilities | R8: General Office Information
A10: 1968 | B10: Dept. Established: | E10: 0.027 | F10: % General Fund | J10: x | K10: Apportionment | N10: x | O10: Tax Bills | R10: Business Hrs: | T10: 8am until 5pm | X10: Office Fax #: | Z10: 231-845-6289
A11: 2 | B11: No. of Cities: | E11: 0.56 | F11: Auto Allowance | J11: x | K11: Property Desc. | N11: x | O11: Addressing | R11: Office Phone: | T11: 231-845-6288 | X11: Website: | Z11: masoncounty.net
A12: 15 | B12: No.of Townships: | E12: 0.0035 | F12: Fringe Benefits | K12: Assessing Units | N12: x | O12: Website | R12: Address: | T12: 304 E Ludington Ave
A13: 2 | B13: No.of Villages: | E13: 2017 Budget | J13: x | K13: Data Processing | N13: x | O13: Mapping/GIS | T13: Ludington Mi 49431
A14: 40 | B14: No of hrs. per week | E14: 342200 | K14: Other | O14: Other
A15: 4 | B15: No. of Staff (FTEE) | E15: 2017 Revenue(s) | J15: (detail:)
E16: 63000
T18: Fringe Benefits
A19: Valuation Information | G19: CURRENT SOFTWARE | L19: BSA
T20: LEAVE POLICY:
G21: No. of | I21: Assessed | M21: % of | O21: Taxable | T21: 20 | U21: Vacation Days | X21: 12 | Y21: Sick Days
G22: Parcels | I22: Valuations | M22: Total | O22: Valuations | T22: 2 | U22: Personal Days | Y22: Other
B23: Real Property | G23: 23511 | I23: 1858113600 | M23: 0.91 | O23: 1569524061 | U23: (detail:) | V23: Vacation starts at 12 day and then moves incrementally to 4 weeks over time. Sick days are one per month.
B24: Personal Property | G24: 1688 | I24: 183743100 | M24: 0.09 | O24: 181197595
B25: Total | G25: 26153 | I25: 2041856700 | M25: 1 | O25: 1750721656
T26: PENSION:
T27: B-4 | U27: Mers | Y27: 401K
A28: Director, Management & Supervision | U28: Defined Contr | Y28: Other | Z28: Defined Benefit
U29: (detail:)
A30: Position | C30: No of years in: | G30: S.T.C. Level | K30: Personal | M30: No. in | O30: 2012
C31: Position | E31: Assmt Adm | G31: Required | I31: Held | K31: Prop. Exmnr | M31: Position | O31: Salary Range
A32: Director | C32: 21 | E32: 27 | G32: 4 | I32: 3 | O32: 55000 | Q32: 62300 | S32: *** | T32: LONGEVITY:
A33: Deputy/Asst. | U33: (detail:)
T36: HEALTH:
A37: Staff | T37: x | U37: BCBS | V37: H.S.A. | X37: x | Y37: Dental
A38: Appraiser III | U38: HMO | X38: x | Y38: Vision
A39: Appraiser II | I39: 2 | M39: 1 | O39: 39208 | Q39: 46100 | U39: Cafeteria | Y39: Other
A40: Appraiser I | U40: (detail:) | V40: $1200 dollar allowance for optical and dental per year.
A41: P/P Auditor
A42: GIS/Mapping
A43: Clerical | I43: 2 | M43: 2 | O43: 31300 | Q43: 37980 | T43: LIFE INSURANCE:
U44: (detail:) | V44: 20000
V46: $
T47: OTHER:
U48: (detail:)
A49: *Additional Comments:
A52: Tempory Changes Due To COVID-19:

Sheet 54 Mecosta
A1: 2022 Michigan Equalization Department Salary Survey
A2: COUNTY OF | D2: Mecosta | K2: CLICK HERE TO RETURN TO DIRECTOR SUMMARY PAGE
A4: Director | C4: Shila Kiander | J4: Private Phone: | L4: 2315920110 | R4: E-mail: | S4: skiander@mecostacounty.org
A5: Alternate: | C5: Chris Jamieson | J5: Private Phone: | L5: 2315920111 | R5: E-mail: | S5: cjamieson@mecostacounty.org
A8: General County Information | J8: Additional Duties and Responsibilities | R8: General Office Information
A10: 1966 | B10: Dept. Established: | E10: 0.02 | F10: % General Fund | J10: x | K10: Apportionment | N10: x | O10: Tax Bills | R10: Business Hrs: | T10: 8:30am -5pm | X10: Office Fax #: | Z10: 2315920112
A11: 1 | B11: No. of Cities: | C11: 1 | E11: 0.585 | F11: Auto Allowance | J11: x | K11: Property Desc. | O11: Addressing | R11: Office Phone: | T11: 2315920108 | X11: Website: | Z11: http://www.mecostacounty.org/
A12: 16 | B12: No.of Townships: | C12: 16 | F12: Fringe Benefits | K12: Assessing Units | O12: Website | R12: Address: | T12: 400 Elm St, Room 135
A13: 4 | B13: No.of Villages: | C13: 4 | E13: 2022 Budget | J13: x | K13: Data Processing | N13: x | O13: Mapping/GIS | T13: Big Rapids, MI 49307
A14: 37.5 | B14: No of hrs. per week | C14: 37.5 | E14: 265927 | K14: Other | O14: Other
A15: 4 | B15: No. of Staff (FTEE) | C15: 4 | E15: 2021 Revenue(s) | J15: (detail:)
D16: General Fund | E16: 2000
D17: Township Contract & Gis | E17: 23000
D18: PRE | E18: 1000 | T18: Fringe Benefits
A19: Valuation Information | G19: CURRENT SOFTWARE | L19: BS&A
T20: LEAVE POLICY:
G21: No. of | I21: Assessed | M21: % of | O21: Taxable | T21: 12 | U21: Vacation Days | X21: 12 | Y21: Sick Days
G22: Parcels | I22: Valuations | M22: Total | O22: Valuations | T22: 1 | U22: Personal Days | Y22: Other
B23: Real Property | G23: 29215 | I23: 1927337570 | M23: =I23/I25 -> 0.9442800388 | O23: 1449378002 | U23: (detail:) | V23: Vacation: 1 day per mo up to 5 yrs 1 1/4 days after 5 y, 1 1/2 after 10 yr You can have unlimited accumulation of sick time You can have 30 days. accumulation of vacation time.
B24: Personal Property | G24: 1601 | I24: 113728100 | M24: =I24/I25 -> 0.05571996123 | O24: 113728100
B25: Total | G25: =G24+G23 -> 30816 | I25: =I24+I23 -> 2041065670 | O25: =O24+O23 -> 1563106102
T26: PENSION:
T27: x | U27: Mers | Y27: 401K
A28: Director, Management & Supervision | T28: x | U28: Defined Contr | Y28: Other | Z28: Defined Benefit
U29: (detail:)
A30: Position | C30: No of years in: | G30: S.T.C. Level | K30: Personal | M30: No. in | O30: 2021
C31: Position | E31: Assmt Adm | G31: Required | I31: Held | K31: Prop. Exmnr | M31: Position | O31: Salary Range
A32: Director | C32: 15 | E32: 32 | G32: MAAO | I32: MAAO | K32: yes | M32: 15 | O32: 60435 | Q32: 71468 | T32: LONGEVITY:
A33: Deputy/Asst. | C33: 20 | E33: 43 | I33: MACO | K33: yes | M33: 42 | O33: 43331 | Q33: 51243 | U33: (detail:) | V33: 5-9 year $460 and 10 or more years $720 Not available for new hires
T36: HEALTH:
A37: Staff | U37: BC/BS Type | X37: X | Y37: Dental
A38: Appraiser III | T38: X | U38: HMO | X38: X | Y38: Vision
A39: Appraiser II | U39: Cafeteria | Y39: Other
A40: Appraiser I | G40: 1 | I40: MCAO | K40: no | M40: 12 | O40: 32818 | Q40: 41028 | U40: (detail:) | V40: MERS Health Care Savings Program. BC/BS medical insurance employee choice of HMO or PPO. $5,000 annual payment in lieu of medical insurance.
A41: P/P Auditor
A42: GIS/Mapping | G42: 1 | I42: MCAO | K42: no | M42: 6 | O42: 32818 | Q42: 41028
A43: Clerical | T43: LIFE INSURANCE:
A44: Clerical | U44: (detail:) | V44: $10,000 per employee
T47: OTHER:
U48: (detail:)
A49: *Additional Comments:
A52: Tempory Changes Due To COVID-19:

Sheet 55 Menominee
A1: 2019 Michigan Equalization Department Salary Survey
A2: COUNTY OF | D2: MENOMINEE | K2: CLICK HERE TO RETURN TO DIRECTOR SUMMARY PAGE
A4: Director | C4: Kandace Curran | J4: Private Phone: | L4: 906-374-0900 | R4: E-mail: | S4: kcurran@menomineeco.com
A5: Alternate: | C5: Nikki Linder | J5: Private Phone: | L5: 906-397-6153 | R5: E-mail: | S5: nlinder@menomineeco.com
A8: General County Information | J8: Additional Duties and Responsibilities | R8: General Office Information
A10: 1969 | B10: Dept. Established: | E10: 0.66 | F10: % General Fund | J10: x | K10: Apportionment | O10: Tax Bills | R10: Business Hrs: | T10: 8 am to 4:30 pm | X10: Office Fax #: | Z10: (906) 863-8839
A11: 2 | B11: No. of Cities: | E11: 0.58 | F11: Auto Allowance | J11: x | K11: Property Desc. | N11: x | O11: Addressing | R11: Office Phone: | T11: (906) 863-2683 | X11: Website: | Z11: www.menomineecounty.com
A12: 14 | B12: No.of Townships: | F12: Fringe Benefits | J12: X | K12: Assessing Units | O12: Website | R12: Address: | T12: 839 Tenth St
A13: 3 | B13: No.of Villages: | E13: 2019 Budget | J13: x | K13: Data Processing | N13: x | O13: Mapping/GIS | T13: Menominee MI 49858
A14: 40 | B14: No of hrs. per week | E14: 135415
A15: 2 | B15: No. of Staff (FTEE) | E15: 2019 Revenue(s) | J15: (detail:)
E16: 1400
T18: Fringe Benefits
A19: Valuation Information | G19: CURRENT SOFTWARE | L19: BS&A
T20: LEAVE POLICY:
G21: No. of | I21: Assessed | M21: % of | O21: Taxable | T21: x | U21: Vacation Days | X21: x | Y21: Sick Days
G22: Parcels | I22: Valuations | M22: Total | O22: Valuations | T22: 4 | U22: Personal Days | Y22: Other
B23: Real Property | G23: 22325 | I23: 967256540 | M23: 0.93 | O23: 726600829 | U23: (detail:) | V23: Vacation - 10 days after 1 year of service; 1 day added each year thereafter to a maximum of 30 days. Sick days - one day per month to a maximum of 30 days. Upon separation, employee receives amount equal to half of accumulated sick leave.
B24: Personal Property | G24: 723 | I24: 73906570 | M24: 0.07 | O24: 73906570
B25: Total | G25: 23048 | I25: 1041163110 | M25: 1 | O25: 800507399
T27: PENSION:
A28: Director, Management & Supervision Survey | T28: x | U28: Mers | Y28: 401K
T29: x | U29: Defined Contr | Y29: Other | Z29: Defined Benefit
A30: Position | C30: No of years in: | G30: S.T.C. Level | K30: Personal | M30: No. in | O30: 2016 | U30: (detail:) | V30: MERS B-3 w/F55/25. FAC RIDER with E-2 rider. 10 year vesting. Employer/Employee 50% cost share
C31: Position | E31: Assmt Adm | G31: Required | I31: Held | K31: Prop. Exmnr | M31: Position | O31: Salary Range
A32: Director | C32: 1 | E32: 5 | G32: III | I32: III | K32: x | M32: 1 | O32: 60766 | Q32: 65267 | S32: ***
A33: Deputy/Asst. | T33: LONGEVITY:
U34: (detail:) | V34: $100 per year after 3 years of service; $25 yearly to a maximum benefit of $650.
A37: Staff Survey for 2011 | T37: HEALTH:
A38: Appraiser III | T38: x | U38: BC/BS Type | X38: x | Y38: Dental
A39: Appraiser II | U39: HMO | X39: Optional | Y39: Vision
A40: Appraiser I | U40: Cafeteria | X40: x | Y40: Other
A41: P/P Auditor | U41: (detail:) | V41: BC/BS with Master Medical/ML Rider
A42: GIS/Mapping
A43: Clerical | I43: II | M43: 1 | Q43: 42221
T44: LIFE INSURANCE:
U45: (detail:) | V45: 10000
T48: OTHER:
A49: *Additional Comments: | U49: (detail:)
A52: Tempory Changes Due To COVID-19:

Sheet 56 Midland
A1: 2022 Michigan Equalization Department Salary Survey
A2: COUNTY OF | D2: MIDLAND | K2: CLICK HERE TO RETURN TO DIRECTOR SUMMARY PAGE
A4: Director | C4: Chris Gaumer | J4: Private Phone: | L4: (989) 832-6846 | R4: E-mail: | S4: cgaumer@co.midland.mi.us
A5: Alternate: | C5: n/a | J5: Private Phone: | R5: E-mail:
A8: General County Information | J8: Additional Duties and Responsibilities | R8: General Office Information
A10: 1967 | B10: Dept. Established: | F10: % General Fund | J10: x | K10: Apportionment | N10: x | O10: Tax Bills | R10: Business Hrs: | T10: 8am-5pm Mon-Fri | X10: Office Fax #: | Z10: (989) 832-6849
A11: 2 | B11: No. of Cities: | F11: Auto Allowance | J11: x | K11: Property Desc. | O11: Addressing | R11: Office Phone: | T11: (989) 832-6844 | X11: Website: | Z11: www.co.midland.mi.us
A12: 16 | B12: No.of Townships: | F12: Fringe Benefits | K12: Assessing Units | N12: x | O12: Website | R12: Address: | T12: 220 W Ellsworth St
A13: 1 | B13: No.of Villages: | E13: 2022 Budget | J13: x | K13: Data Processing | N13: x | O13: Mapping/GIS | T13: Midland MI 48640
A14: 40 | B14: No of hrs. per week | E14: 391034 | K14: Other | O14: Other
A15: 2 | B15: No. of Staff (FTEE) | E15: 2022 Revenue(s) | J15: (detail:) | K15: create & maintain TAX databases.
E16: 40000
T18: Fringe Benefits
A19: Valuation Information | G19: CURRENT SOFTWARE | L19: BS&A.Net
T20: LEAVE POLICY:
G21: No. of | I21: Assessed | M21: % of | O21: Taxable | T21: x | U21: Vacation Days | Y21: Sick Days
G22: Parcels | I22: Valuations | M22: Total | O22: Valuations | T22: x | U22: Personal Days | Y22: Other
B23: Real Property | G23: 41928 | I23: 3525689390 | M23: =I23/I25 -> 0.8771262256 | O23: 3085461435 | U23: (detail:)
B24: Personal Property | G24: 3050 | I24: 493902417 | M24: =I24/I25 -> 0.1228737744 | O24: 493846317
B25: Total | G25: 44978 | I25: 4019591807 | M25: 1 | O25: 3579307752
T26: PENSION:
U27: Mers | Y27: 401K
A28: Director, Management & Supervision | T28: x | U28: Defined Contr | X28: x | Y28: Other | Z28: Defined Benefit
U29: (detail:) | V29: Hires prior to 2003 are defined contribution; after is defined benefit.
A30: Position | C30: No of years in: | G30: S.T.C. Level | K30: Personal | M30: No. in | O30: 2020
C31: Position | E31: Assmt Adm | G31: Required | I31: Held | K31: Prop. Exmnr | M31: Position | O31: Salary Range
A32: Director | C32: 18 | E32: 25 | G32: 4 | I32: 4 | K32: Y | M32: 1 | O32: 87600 | Q32: 113800 | T32: LONGEVITY:
A33: Deputy/Asst. | U33: (detail:) | V33: n/a
T36: HEALTH:
A37: Staff | T37: x | U37: BC/BS Type | X37: x | Y37: Dental
A38: Appraiser III | U38: HMO | X38: X | Y38: Vision
A39: Appraiser II | U39: Cafeteria | Y39: Other
A40: Appraiser I | G40: 1 | I40: 3 | K40: 0 | M40: 1 | O40: 52900 | Q40: 68800 | U40: (detail:)
A41: P/P Auditor
A42: GIS/Mapping
A43: Clerical | G43: 1 | I43: 2 | M43: 1 | O43: 41600 | Q43: 54100 | T43: LIFE INSURANCE:
U44: (detail:) | V44: 50000
T47: OTHER:
U48: (detail:)
A49: *Additional Comments:
A50: Positions pay is shown as base rate and does not include cost of living increases awarded.
A52: Tempory Changes Due To COVID-19:
A53: All County staff were fully paid through entire stay-athome order period. Option to work from home, but paid regardless of performance.

Sheet 57 Missaukee
A1: 2022 Michigan Equalization Department Salary Survey
A2: COUNTY OF | D2: Missaukee | K2: CLICK HERE TO RETURN TO DIRECTOR SUMMARY PAGE
A4: Director | C4: James VanHaitsma | J4: Private Phone: | L4: 231-839-4967 x 211 | R4: E-mail: | S4: equalization@missaukee.org
A5: Alternate: | J5: Private Phone: | R5: E-mail: | S5: vanhaitsmaj@missaukee.org
A8: General County Information | J8: Additional Duties and Responsibilities | R8: General Office Information
A10: 1968 | B10: Dept. Established: | F10: % General Fund | J10: x | K10: Apportionment | N10: x | O10: Tax Bills | R10: Business Hrs: | T10: 8:30 am - 5 pm | X10: Office Fax #: | Z10: 231-839-3983
A11: 2 | B11: No. of Cities: | E11: 0.625 | F11: Auto Allowance | J11: x | K11: Property Desc. | N11: x | O11: Addressing | R11: Office Phone: | T11: 231-839-4967 x 213 | X11: Website: | Z11: www.missaukee.org
A12: 15 | B12: No.of Townships: | F12: Fringe Benefits | K12: Assessing Units | N12: x | O12: Website | R12: Address: | T12: P. O. Box 800
B13: No.of Villages: | E13: 2021 Budget | J13: x | K13: Data Processing | N13: x | O13: Mapping/GIS | T13: 111 S. Canal Street
A14: 40 | B14: No of hrs. per week | E14: 207047.01 | K14: Other | O14: Other | T14: Lake City, MI 49651
A15: 2 | B15: No. of Staff (FTEE) | E15: 2021 Revenue(s) | J15: (detail:)
T18: Fringe Benefits
A19: Valuation Information | G19: CURRENT SOFTWARE | L19: BS&A
T20: LEAVE POLICY:
G21: No. of | I21: Assessed | M21: % of | O21: Taxable | T21: x | U21: Vacation Days | X21: x | Y21: Sick Days
G22: Parcels | I22: Valuations | M22: Total | O22: Valuations | U22: Personal Days | X22: x | Y22: Other
B23: Real Property | I23: 919700200 | O23: 648981268 | U23: (detail:) | V23: Vacation 5 to 25 days per year depending on years of service. Earn one sick day per month 13 paid holidays
B24: Personal Property | I24: 81477649 | O24: 81477649
B25: Total | I25: =SUM(I23:L24) -> 1001177849 | O25: =SUM(O23:R24) -> 730458917
T26: PENSION:
U27: Mers | Y27: 401K
A28: Director, Management & Supervision | U28: Defined Contr | X28: x | Y28: Other | Z28: Defined Benefit
U29: (detail:) | V29: 2% to 13% of base wage depending on years of service
A30: Position | C30: No of years in: | G30: S.T.C. Level | K30: Personal | M30: No. in | O30: 2021
C31: Position | E31: Assmt Adm | G31: Required | I31: Held | K31: Prop. Exmnr | M31: Position | O31: Salary Range
A32: Director | C32: 3 | E32: 11 | G32: 3 | I32: 3 | Q32: 55099 | T32: LONGEVITY:
A33: Deputy/Asst. | U33: (detail:) | V33: $220 to $500 depending on years of service
T36: HEALTH:
A37: Staff | T37: x | U37: BC/BS Type | X37: x | Y37: Dental
A38: Appraiser III | U38: HMO | X38: X | Y38: Vision
A39: Appraiser II | U39: Cafeteria | Y39: Other
A40: Appraiser I | U40: (detail:)
A41: P/P Auditor
A42: GIS/Mapping | M42: 1 | Q42: 30393
A43: Clerical | M43: 1 | Q43: 39683 | T43: LIFE INSURANCE:
U44: (detail:) | V44: 2 x base wage
T47: OTHER:
U48: (detail:)
A49: *Additional Comments:
A52: Tempory Changes Due To COVID-19:

Sheet 58 Monroe
A1: 2021 Michigan Equalization Department Salary Survey
A2: COUNTY OF | D2: Monroe | K2: CLICK HERE TO RETURN TO DIRECTOR SUMMARY PAGE
A4: Director | C4: Michael Woolford | J4: Private Phone: | L4: 734-240-7243 | R4: E-mail: | S4: michael_woolford@monroemi.org
A5: Alternate: | C5: Brian Narewski | J5: Private Phone: | L5: 734-240-7241 | R5: E-mail: | S5: brian_narewski@monroemi.org
A8: General County Information | J8: Additional Duties and Responsibilities | R8: General Office Information
A10: 1961 | B10: Dept. Established: | E10: 0.009 | F10: % General Fund | J10: x | K10: Apportionment | N10: x | O10: Tax Bills | R10: Business Hrs: | T10: 8:30 - 5:00 | X10: Office Fax #: | Z10: 734-240-7244
A11: 4 | B11: No. of Cities: | E11: 0.58 | F11: Auto Allowance | J11: x | K11: Property Desc. | N11: x | O11: Addressing | R11: Office Phone: | T11: 734-240-7235 | X11: Website: | Z11: www.co.monroe.mi.us
A12: 15 | B12: No.of Townships: | E12: 0.35 | F12: Fringe Benefits | K12: Assessing Units | N12: x | O12: Website | R12: Address: | T12: 51 S. Macomb St
A13: 6 | B13: No.of Villages: | E13: 2021 Budget | J13: x | K13: Data Processing | N13: x | O13: Mapping/GIS | T13: Monroe, Mi 48161
A14: 40 | B14: No of hrs. per week | E14: 449909 | K14: Other | O14: Other
A15: 3 | B15: No. of Staff (FTEE) | E15: 2021 Revenue(s) | J15: (detail:)
E16: 2000
T18: Fringe Benefits
A19: Valuation Information
T20: LEAVE POLICY:
G21: No. of | I21: Assessed | M21: % of | O21: Taxable | T21: x | U21: Vacation Days | X21: x | Y21: Sick Days
G22: Parcels | I22: Valuations | M22: Total | O22: Valuations | T22: x | U22: Personal Days | Y22: Other
B23: Real Property | G23: 71764 | I23: 7108663789 | M23: =SUM(I23/I25) -> 0.8858296092 | O23: 5670242122 | U23: (detail:) | V23: Sick/Mgmt=8 days, Union=6 days: Vacation=hours earned per month contigent on years of service: 12 1/2 Holidays : Personal 4 Days
B24: Personal Property | G24: 5619 | I24: 916202071 | M24: =SUM(I24/I25) -> 0.1141703908 | O24: 915005759
B25: Total | G25: =SUM(G23:H24) -> 77383 | I25: =SUM(I23:L24) -> 8024865860 | M25: =SUM(M23:N24) -> 1 | O25: =SUM(O23:R24) -> 6585247881
T26: PENSION:
U27: Mers | Y27: 401K
A28: Director, Management & Supervision | U28: Defined Contr | X28: x | Y28: Other
U29: (detail:) | V29: Tier 1 2.5% - 55 age 30 years - 60 age at least 8 years vested Tier 2 1.5% - 55 age 30 years - 60 age at least 8 years vested
A30: Position | C30: No of years in: | G30: S.A.B. Level | K30: Personal | M30: No. in | O30: 2021
C31: Position | E31: Assmt Adm | G31: Required | I31: Held | K31: Prop. Exmnr | M31: Position | O31: Salary Range
A32: Director | C32: 17 | E32: 28 | G32: MMAO | I32: MMAO | K32: Yes | M32: 1 | O32: 78000 | Q32: 97000 | T32: LONGEVITY:
A33: Deputy | C33: 13 | E33: 23 | G33: MAAO | I33: MAAO | K33: Yes | M33: 1 | O33: 50400 | Q33: 63000 | U33: (detail:)
T36: HEALTH:
A37: Staff | T37: x | U37: BC/BS Type | X37: x | Y37: Dental
A38: Apprsl Manager | G38: MCAO | I38: MAAO | K38: Yes | M38: 1 | O38: 44000 | Q38: 55000 | U38: HMO | X38: x | Y38: Vision
U39: Cafeteria | Y39: Other
U40: (detail:)
A41: Contract Apprsl | Q41: 28000
T43: LIFE INSURANCE:
U44: (detail:) | V44: Based on Salary
T47: OTHER:
U48: (detail:)
A49: *Additional Comments:
A50: Staff Survey lists Contract Apprsl- which is money in the Equalization budget to contract out appraisal work. These funds are also used to contract out Mapping work and assistance in filling out State Mandated Forms along with other clerical functions.

Sheet 59 Montcalm
A1: 2022 Michigan Equalization Department Salary Survey
A2: COUNTY OF | D2: MONTCALM | K2: CLICK HERE TO RETURN TO DIRECTOR SUMMARY PAGE
A4: Director | C4: Deb Ballard | J4: Private Phone: | L4: 989-831-7492 | R4: E-mail: | S4: dballard@montcalm.us
A5: Alternate: | J5: Private Phone: | R5: E-mail:
A8: General County Information | J8: Additional Duties and Responsibilities | R8: General Office Information
B10: Dept. Established: | F10: % General Fund | J10: X | K10: Apportionment | O10: Tax Bills | R10: Business Hrs: | T10: 8am-4pm | X10: Office Fax #: | Z10: 989-831-7427
A11: 3 | B11: No. of Cities: | E11: IRS | F11: Auto Allowance | J11: X | K11: Property Desc. | N11: X | O11: Addressing | R11: Office Phone: | T11: 989-831-7492 | X11: Website: | Z11: Montcalm.us
A12: 20 | B12: No.of Townships: | E12: X | F12: Fringe Benefits | K12: Assessing Units | N12: X | O12: Website | R12: Address: | T12: 211 W Main Street
A13: 6 | B13: No.of Villages: | E13: 2022 Budget | J13: X | K13: Data Processing | N13: X | O13: Mapping/GIS | T13: PO Box 368
A14: 40 | B14: No of hrs. per week | E14: 251630 | K14: Other | O14: Other | T14: Stanton MI 48888
A15: 3 | B15: No. of Staff (FTEE) | E15: 2022 Revenue(s) | J15: (detail:) | K15: Mapping/GIS is contracted and not part of our budget..
E16: 11600
T18: Fringe Benefits
A19: Valuation Information
T20: LEAVE POLICY:
G21: No. of | I21: Assessed | M21: % of | O21: Taxable | T21: ** | U21: Vacation Days | X21: 13 | Y21: Sick Days
G22: Parcels | I22: Valuations | M22: Total | O22: Valuations | T22: 3 | U22: Personal Days | Y22: Other
B23: Real Property | G23: 39743 | I23: 2857146100 | M23: =I23/I25 -> 0.9230256338 | O23: 1959797338 | T23: ** | U23: 14-25
B24: Personal Property | G24: 2222 | I24: 238267500 | M24: =I24/I25 -> 0.0769743662 | O24: 238267500
B25: Total | G25: 41965 | I25: =SUM(I23:L24) -> 3095413600 | M25: =SUM(M23:N24) -> 1 | O25: =SUM(O23:R24) -> 2198064838
T26: PENSION:
T27: x | U27: Mers | X27: x | Y27: 401K
A28: Director, Management & Supervision | T28: x | U28: Defined Contr | Y28: Other
U29: (detail:)
A30: Position | C30: No of years in: | G30: S.A.B. Level | K30: Personal | M30: No. in | O30: 2022
C31: Position | E31: Assmt Adm | G31: Required | I31: Held | K31: Prop. Exmnr | M31: Position | O31: Salary Range
A32: Director | C32: 1.5 | E32: 37 | G32: MAAO | I32: MAAO | K32: Yes | M32: 1 | O32: 66192 | Q32: 72525 | T32: LONGEVITY:
A33: Deputy Director | M33: 0 | O33: 43098 | Q33: 50440 | T33: X | U33: (detail:) | V33: Only available to those employed prior to 01/01/1987.
T36: HEALTH:
A37: Staff | T37: x | U37: BC/BS Type | X37: x | Y37: Dental
A38: Appraiser III | U38: HMO | X38: x | Y38: Vision
A39: Appraiser II | U39: Cafeteria | Y39: Other
A40: Appraiser I | G40: MCAO | I40: MCAO | M40: 1 | O40: 34174 | Q40: 40435 | U40: (detail:)
A41: P/P Auditor
A42: GIS/Mapping
A43: Clerical | G43: MCAT | I43: MCAT | M43: 2 | O43: 31803 | Q43: 39437 | T43: LIFE INSURANCE:
T44: X | U44: (detail:) | V44: 10000
T47: OTHER:
U48: (detail:)
A49: *Additional Comments:
A52: Tempory Changes Due To COVID-19:

Sheet 60 Montmorency
A1: 2017 Michigan Equalization Department Salary Survey
A2: COUNTY OF | D2: Montmorency
A4: Director | C4: Kevin Keller | J4: Private Phone: | L4: 989-785-8046 | R4: E-mail: | S4: keller.kevin@gmail.com
A5: Alternate: | C5: Stephanie Root | J5: Private Phone: | L5: 989-785-8046 | R5: E-mail: | S5: clerksroot@gmail.com
A8: General County Information | J8: Additional Duties and Responsibilities | R8: General Office Information
B10: Dept. Established: | F10: % General Fund | J10: x | K10: Apportionment | N10: x | O10: Tax Bills | R10: Business Hrs: | T10: M-F 8:30-4:30 closed 12-1 for lunch | X10: Office Fax #: | Z10: 989-785-8094
A11: 0 | B11: No. of Cities: | F11: Auto Allowance | J11: x | K11: Property Desc. | N11: x | O11: Addressing | R11: Office Phone: | T11: 989-785-8046 | X11: Website: | Z11: http://www.montmorencycountymichigan.us/EQUALIZATIONDEPARTMENT.html
A12: 8 | B12: No.of Townships: | F12: Fringe Benefits | K12: Assessing Units | O12: Website | R12: Address: | T12: 12265 M-32
A13: 1 | B13: No.of Villages: | E13: 2017 Budget | J13: x | K13: Data Processing | N13: x | O13: Mapping/GIS
A14: 35 | B14: No of hrs. per week | E14: 147500 | K14: Other | O14: Other | R14: Fax: | T14: 989-785-8094
A15: 2 | B15: No. of Staff (FTEE) | E15: 2017 Revenue(s) | J15: (detail:)
E16: 25000
T18: Fringe Benefits
A19: Valuation Information | G19: CURRENT SOFTWARE | L19: BS & A
T20: LEAVE POLICY:
G21: No. of | I21: Assessed | M21: % of | O21: Taxable | U21: Vacation Days | Y21: Sick Days
G22: Parcels | I22: Valuations | M22: Total | O22: Valuations | U22: Personal Days | Y22: Other | Z22: Holidays
B23: Real Property | G23: 17211 | I23: 558454280 | O23: 435795622 | U23: (detail:)
B24: Personal Property | G24: 615 | I24: 51480714 | O24: 51426106
B25: Total | G25: 17826 | I25: 609934994 | O25: 487221728
B26: Exempt | G26: 1208 | T26: PENSION:
T27: x | U27: Mers | Y27: 401K
A28: Director, Management & Supervision | U28: Defined Contr | Y28: Other | Z28: Defined Benefit
U29: (detail:)
A30: Position | C30: No of years in: | G30: S.T.C. Level | K30: Personal | M30: No. in | O30: 2016
C31: Position | E31: Assmt Adm | G31: Required | I31: Held | K31: Prop. Exmnr | M31: Position | O31: Salary Range
A32: Director | C32: 8 | E32: 16 | G32: MAAO | I32: 8 | K32: 1 | M32: 15 | O32: 45000 | Q32: 52000 | T32: LONGEVITY:
A33: Appraiser I | C33: 1 | E33: 1 | G33: MCAT | I33: 3 months | O33: 18000 | Q33: 23000 | T33: N/A | U33: (detail:)
A34: Clerical/ Descriptions Clerk | C34: 4 months | E34: 4 months | O34: 15000 | Q34: 20000
T36: HEALTH:
A37: Staff | U37: BC/BS Type | Y37: Dental
A38: Appraiser III | U38: HMO | Y38: Vision
A39: Appraiser II | U39: Cafeteria | Y39: Other
A40: Appraiser I | U40: (detail:)
A41: P/P Auditor
A42: GIS/Mapping
A43: Clerical | T43: LIFE INSURANCE:
T47: OTHER:
A49: *Additional Comments:
A52: Tempory Changes Due To COVID-19:

Sheet 61 Muskegon
A1: 2022 Michigan Equalization Department Salary Survey
A2: COUNTY OF | D2: MUSKEGON | K2: CLICK HERE TO RETURN TO DIRECTOR SUMMARY PAGE
A4: Director | C4: Donna B. VanderVries | J4: Private Phone: | L4: 231-724-6726 | R4: E-mail: | S4: vandervriesdo@co.muskegon.mi.us
A5: Alternate: | C5: Dan VanderKooi | J5: Private Phone: | L5: 231-724-6667 | R5: E-mail: | S5: vanderkooida@co.muskegon.mi.us
A8: General County Information | J8: Additional Duties and Responsibilities | R8: General Office Information
A10: 1965 | B10: Dept. Established: | E10: 0.0352 | F10: % General Fund | J10: X | K10: Apportionment | O10: Tax Bills | R10: Business Hrs: | T10: 8:00 a.m. - 5:00 p.m. | X10: Office Fax #: | Z10: 231-724-1129
A11: 7 | B11: No. of Cities: | E11: 0.56 | F11: Auto Allowance | J11: X | K11: Property Desc. | O11: Addressing | R11: Office Phone: | T11: 231-724-6386 | X11: Website: | Z11: www.co.muskegon.mi.us/equalization
A12: 16 | B12: No.of Townships: | E12: X | F12: Fringe Benefits | J12: 12 | K12: Assessing Units | N12: X | O12: Website | R12: Address: | T12: 173 E Apple Ave, Ste 201
A13: 4 | B13: No.of Villages: | E13: 2022 Budget | K13: Data Processing | N13: X | O13: Mapping/GIS | T13: Muskegon, MI 49442
A14: 40 | B14: No of hrs. per week | E14: 1900734 | J14: X | K14: Other | O14: Other
A15: 20 | B15: No. of Staff (FTEE) | E15: 2022 Revenue(s) | J15: (detail:) | K15: Damage Assessment for Emergency Services
E16: 1172958
T18: Fringe Benefits
A19: Valuation Information | G19: CURRENT SOFTWARE | L19: BS&A (.NET, est. May 2012.)
T20: LEAVE POLICY:
G21: No. of | I21: Assessed | M21: % of | O21: Taxable | T21: X | U21: Vacation Days | X21: X | Y21: Sick Days
G22: Parcels | I22: Valuations | M22: Total | O22: Valuations | T22: X | U22: Personal Days | X22: X | Y22: Other
B23: Real Property | G23: 81965 | I23: 6527319600 | M23: =+I23/I25 -> 0.944802812 | O23: 7926447991 | U23: (detail:)
B24: Personal Property | G24: 8139 | I24: 381338500 | M24: =+I24/I25 -> 0.055197188 | O24: 381400149
B25: Total | G25: 92897 | I25: =+I24+I23 -> 6908658100 | M25: 1 | O25: =+O24+O23 -> 8307848140
T26: PENSION:
T27: X | U27: Mers | Y27: 401K
A28: Director, Management & Supervision | T28: x | U28: Defined Contr | X28: x | Y28: Other | Z28: Defined Benefit | AB28: prior to 11/04/14
U29: (detail:) | V29: MERS B-4 (partially paid)
A30: Position | C30: No of years in: | G30: S.T.C. Level | K30: Personal | M30: No. in | O30: 2022
C31: Position | E31: Assmt Adm | G31: Required | I31: Held | K31: Prop. Exmnr | M31: Position | O31: Salary Range
A32: Director | C32: 13 | E32: 31 | G32: 3 | I32: 4 | K32: X | M32: 1 | O32: 98473.44 | Q32: 122743 | T32: LONGEVITY:
A33: Deputy/Asst. | C33: 14 | E33: 33 | G33: 3 | I33: 3 | K33: X | M33: 1 | O33: 72590 | Q33: 92294 | U33: (detail:) | V33: After 5 yrs of service, $250. For each yr after 5, $50 additional, max of $1,250. For employees hired after 10/26/2010, after 10 yrs of service, $500. For each yr after 10, $50 additional, max of $1,250.
A34: Supervisor | C34: 14 | E34: 25 | G34: 3 | I34: 3 | K34: X | M34: 1 | O34: 69168 | Q34: 87526
T36: HEALTH:
A37: Staff | T37: x | U37: BC/BS Type | X37: X | Y37: Dental
A38: Appraiser III | G38: 3 | I38: 3 | K38: X | M38: 4 | O38: 48995 | Q38: 62980 | U38: HMO | X38: X | Y38: Vision
A39: Appraiser II | G39: 2 | I39: 2 | K39: X | M39: 3 | O39: 43237 | Q39: 54429 | U39: Cafeteria | Y39: Other
A40: Appraiser I | G40: 1 | I40: 1 | M40: 6 | O40: 35071 | Q40: 43216 | U40: (detail:) | V40: Blue Cross/Blue Shield, Delta Dental, HSA
A41: Certified General Appraiser | G41: N/A | I41: 2 | M41: 1 | O41: 55540 | Q41: 71017
A42: GIS/Mapping | G42: N/A | I42: 1 | M42: 1 | O42: =+O39 -> 43237 | Q42: =+Q39 -> 54429
A43: Assessment Admin Specialist | G43: 1 | I43: 1 | M43: 1 | O43: =+O40 -> 35071 | Q43: =+Q40 -> 43216 | T43: LIFE INSURANCE:
A44: Assessment Admin Clerk | G44: 1 | I44: 1 | M44: 1 | O44: 29848 | Q44: 36585 | U44: (detail:) | V44: Straight Term equal to annual salary
T47: OTHER:
U48: (detail:) | V48: For employees hired prior to 10/26/10 annual COLA payment not to exceed $416 per employee
A49: *Additional Comments:
A52: Tempory Changes Due To COVID-19:
A53: Most staff currently allowed to work from home up to 2 days a week.

Sheet 62 Newaygo
A1: 2022 Michigan Equalization Department Salary Survey
A2: COUNTY OF | D2: Newaygo | K2: CLICK HERE TO RETURN TO DIRECTOR SUMMARY PAGE
A4: Director | C4: Joann Pierce Hunt | J4: Private Phone: | L4: 231-689-7242 | R4: E-mail: | S4: joannh@co.newaygo.mi.us
A5: Alternate: | C5: Rochelle (Shellie) Perigo | J5: Private Phone: | L5: 231-689-7029 | R5: E-mail: | S5: shellie@co.newaygo.mi.us
A8: General County Information | J8: Additional Duties and Responsibilities | R8: General Office Information
A10: 1969 | B10: Dept. Established: | F10: % General Fund | J10: X | K10: Apportionment | N10: X | O10: Tax Bills | R10: Business Hrs: | T10: Mon-Fri 8-5 | X10: Office Fax #: | Z10: 231-689-7032
A11: 4 | B11: No. of Cities: | F11: Auto Allowance | J11: X | K11: Property Desc. | N11: X | O11: Addressing | R11: Office Phone: | T11: 231-689-7244 | X11: Website: | Z11: countyofnewaygo.com
A12: 24 | B12: No.of Townships: | F12: Fringe Benefits | J12: 2 | K12: Assessing Units | N12: X | O12: Website | R12: Address: | T12: 1087 Newell St
A13: 1 | B13: No.of Villages: | E13: 2022 Budget | J13: X | K13: Data Processing | N13: X | O13: Mapping/GIS | T13: P.O. Box 885
A14: 40 | B14: No of hrs. per week | E14: 649843 | J14: X | K14: Other | O14: Other | R14: Fax: | T14: White Cloud, MI 49349
A15: 4 | B15: No. of Staff (FTEE) | E15: 2022 Revenue(s) | J15: (detail:) | K15: Damage Assessment for Emergency Services
E16: 208141
T18: Fringe Benefits
A19: Valuation Information | G19: CURRENT SOFTWARE | L19: BS & A
T20: LEAVE POLICY:
G21: No. of | I21: Assessed | M21: % of | O21: Taxable | T21: X | U21: Vacation Days | Y21: Sick Days
G22: Parcels | I22: Valuations | M22: Total | O22: Valuations | T22: X | U22: Personal Days | X22: X | Y22: Other | Z22: Holidays
B23: Real Property | G23: 36175 | I23: 2323208858 | M23: 0.9435 | O23: 1665067153 | U23: (detail:) | V23: Good Friday
B24: Personal Property | G24: 1744 | I24: 139159800 | M24: 0.0565 | O24: 139159800
B25: Total | G25: 37919 | I25: 2462368658 | M25: 1 | O25: 1804226953
B26: Exempt | G26: 2577 | T26: PENSION:
U27: Mers | Y27: 401K
A28: Director, Management & Supervision | T28: X | U28: Defined Contr | Y28: Other | Z28: Defined Benefit
U29: (detail:)
A30: Position | C30: No of years in: | G30: S.T.C. Level | K30: Personal | M30: No. in | O30: 2022
C31: Position | E31: Assmt Adm | G31: Required | I31: Held | K31: Prop. Exmnr | M31: Position | O31: Salary Range
A32: Director | C32: 1 | E32: 34 | G32: MAAO | I32: MAAO | K32: X | M32: 1 | O32: 60412.56 | Q32: 71078.8 | T32: LONGEVITY:
U33: (detail:) | V33: Yes, Max $800.00 per year
T36: HEALTH:
A37: Staff | T37: X | U37: BC/BS Type | X37: X | Y37: Dental
U38: HMO | X38: X | Y38: Vision
A39: Appraiser | G39: MCAO | I39: MCAO | K39: X | M39: 1 | O39: 38946.13 | Q39: 45727.76 | U39: Cafeteria | Y39: Other
A40: Mapping Coordinator | I40: MCAO | K40: X | M40: 1 | O40: 38946.13 | Q40: 45727.76 | U40: (detail:)
A41: Clerk II | M41: 1 | O41: 35950.1 | Q41: 42304.29
A42: Clerk 1 | I42: MCAT | M42: 1 | O42: 32921.41 | Q42: 38748.32
T43: LIFE INSURANCE:
U44: Employee | V44: $12,500.00 $1,000.00-option to purchase more term life
U45: Spouse
U46: Dependent | V46: 500
T47: OTHER:
V48: Employee Contribution Health Care Savings Plan w/MERS
A49: *Additional Comments:
A50: Newaygo County contracts with ASI to perform C & I appraisals, land & ecf analysis. We also contract with ASI to create the tax roll/bills.
A52: Tempory Changes Due To COVID-19:

Sheet 63 Oakland
A1: 2022 Michigan Equalization Department Salary Survey
A2: COUNTY OF | D2: OAKLAND | K2: CLICK HERE TO RETURN TO DIRECTOR SUMMARY PAGE
A4: Director | C4: Micheal R. Lohmeier | J4: Private Phone: | L4: 248-858-0760 | R4: E-mail: | S4: lohmeierm@oakgov.com
A5: Alternate: | C5: Terry Schultz | J5: Private Phone: | L5: 248-858-1699 | R5: E-mail: | S5: schultzt@oakgov.com
A8: General County Information | J8: Additional Duties and Responsibilities | R8: General Office Information
A10: 1959 | B10: Dept. Established: | E10: 0.0323 | F10: % General Fund | J10: X | K10: Apportionment | O10: Tax Bills | R10: Business Hrs: | T10: 8:30AM-5:00PM | X10: Office Fax #:
A11: 31 | B11: No. of Cities: | E11: 0.625 | F11: Auto Allowance | J11: X | K11: Property Desc. | O11: Addressing | R11: Office Phone: | T11: 248-858-0740 | X11: Website: | Z11: www.oakgov.com/equal
A12: 21 | B12: No.of Townships: | E12: =3095687/364500000 -> 0.00849296845 | F12: Fringe Benefits | J12: 32 | K12: Assessing Units | O12: Website | R12: Address: | T12: 250 Elizabeth Lake Rd.
A13: 11 | B13: No.of Villages: | E13: 2022 Budget | J13: X | K13: Data Processing | N13: X | O13: Mapping/GIS | T13: Suite 1000 West
A14: 37.5 | B14: No of hrs. per week | E14: 10243908 | K14: Other | O14: Other | T14: Pontiac, MI 48341
A15: 74 | B15: No. of Staff (FTEE) | E15: 2022 Revenue(s) | J15: (detail:)
E16: 3382475
T18: Fringe Benefits
A19: Valuation Information | G19: CURRENT SOFTWARE | L19: BS&A
T20: LEAVE POLICY:
G21: No. of | I21: Assessed | M21: % of | O21: Taxable | T21: X | U21: Vacation Days | Y21: Sick Days
G22: Parcels | I22: Valuations | M22: Total | O22: Valuations | T22: X | U22: Personal Days | Y22: Other
B23: Real Property | G23: 473808 | I23: 85872455469 | M23: =I23/I25 -> 0.9569480453 | O23: 65781944426 | U23: (detail:)
B24: Personal Property | G24: 52372 | I24: 3863299665 | M24: =I24/I25 -> 0.0430519547 | O24: 3863319745
B25: Total | G25: 526180 | I25: 89735755134 | M25: =SUM(M23:N24) -> 1 | O25: 69645264171
T26: PENSION:
U27: Mers | Y27: 401K
A28: Director, Management & Supervision | T28: X | U28: Defined Contr (401a) | X28: X | Y28: Other: | Z28: Deferred Contribution (457)
U29: (detail:)
A30: Position | C30: No of years in: | G30: S.T.C. Level | K30: Personal | M30: No. in | O30: 2022
C31: Position | E31: Assmt Adm | G31: Required | I31: Held | K31: Prop. Exmnr | M31: Position | O31: Salary Range
A32: Director | C32: 19 | E32: 33 | G32: MMAO | I32: MMAO | K32: X | M32: 1 | O32: 113823 | Q32: 152502 | T32: LONGEVITY:
A33: Chief, Equal | C33: 16 | E33: 30 | G33: MMAO | I33: MMAO | K33: X | M33: 3 | O33: 84937 | Q33: 113798 | U33: (detail:) | V33: Employees hired before 7/1/84: 7-19 years from 2% to 10% of pay based on seniority.
T36: HEALTH:
A37: Staff | U37: BC/BS Type | X37: X | Y37: Dental
A38: Supervisors | G38: MAAO | I38: MAAO | K38: X | M38: 4 | O38: 57489 | Q38: 103219 | U38: HMO | X38: X | Y38: Vision
A39: Appraiser III | G39: MAAO | I39: MAAO | K39: X | M39: 9 | O39: 66550 | Q39: 89165 | T39: X | U39: Cafeteria | Y39: Other
A40: Appraiser II | G40: MCAO | I40: MCAO | K40: X | M40: 22 | O40: 57489 | Q40: 77023 | U40: (detail:)
A41: Appraiser I | G41: MCAT | I41: MCAT | M41: 0 | O41: 49661 | Q41: 66536
A42: Appraiser Trainee II | G42: NA | I42: NA | K42: NA | M42: 2 | O42: 37057 | Q42: 49650
A43: Appraiser Trainee I | G43: NA | I43: NA | K43: NA | M43: 0 | O43: 31691 | Q43: 42890 | T43: LIFE INSURANCE:
A44: P/P Auditor | G44: MCAO | I44: MCAO | K44: X | M44: 5 | O44: 57489 | Q44: 77023 | T44: X | U44: (detail:) | V44: Employees may opt for 1-3x Annual Benefits Salary: Life Insurance and Accidental Death & Dismemberment Insurance.
A45: GIS/Mapping | G45: NA | I45: NA | K45: NA | M45: 4 | O45: 49661 | Q45: 77023
A46: Clerical Support | G46: NA | I46: NA | K46: NA | M46: 24 | O46: 35292 | Q46: 77023
T47: OTHER:
T48: X | U48: (detail:) | V48: Tuition Reimbursement: Eligible employees may be reimbursed for courses pertaining to their employment. Limit of 2 courses per semester; up to $1,400 per semester and $4,200 per fiscal year. Other fees and materials are not reimbursed. Pre-approval is required.
A49: *Additional Comments:
A50: In recognition of high achievement aimed at increasing overall department quality, employees that maintain a Michigan Master Assessing Officer certification receive a 5% fixed bonus annually. This bonus is not position specific, but applies to any employee who maintains this level of certification. In addition, employees in an Appraiser II position with a Michigan Advanced Assessing Officer certification will receive a 2% fixed bonus annually.

Sheet 64 Oceana
A1: 2021 Michigan Equalization Department Salary Survey
A2: COUNTY OF | D2: OCEANA | K2: CLICK HERE TO RETURN TO DIRECTOR SUMMARY PAGE
A4: Director | C4: Edward VanderVries | J4: Private Phone: | L4: 269-7520-1928 | R4: E-mail: | S4: evandervries@hotmail.com
A5: Alternate: | C5: Kathryn Wright | J5: Private Phone: | L5: 907-750-2012 | R5: E-mail: | S5: kgvandervries@gmail.com
A8: General County Information | J8: Additional Duties and Responsibilities | R8: General Office Information
A10: 1968 | B10: Dept. Established: | F10: % General Fund | J10: x | K10: Apportionment | O10: Tax Bills | R10: Business Hrs: | T10: 8:30 - 12:00 1:00 -5:00 | X10: Office Fax #: | Z10: 231-873-0074
A11: 1 | B11: No. of Cities: | F11: Auto Allowance | J11: x | K11: Property Desc. | N11: x | O11: Addressing | R11: Office Phone: | T11: 231-873-4609 | X11: Website: | Z11: www.oceana.mi.us
A12: 16 | B12: No.of Townships: | F12: Fringe Benefits | J12: x | K12: Assessing Units | N12: x | O12: Website | R12: Address: | T12: 100 STATE ST
A13: 6 | B13: No.of Villages: | E13: 2020 Budget | J13: x | K13: Data Processing | N13: x | O13: Mapping/GIS | T13: P. O. BOX 191
A14: 37.5 | B14: No of hrs. per week | E14: 225000 | K14: Other | O14: Other | T14: HART, MI 49420
A15: 3 | B15: No. of Staff (FTEE) | E15: 2020 Revenue | J15: (detail:) | K15: 1 Assessing Unit - City of Hart. 34,000 2/3 of contract to Director, 1/3 of contract to County
E16: 35000
T18: Fringe Benefits
A19: Valuation Information | G19: CURRENT SOFTWARE | L19: BS&A .Net
T20: LEAVE POLICY:
G21: No. of | I21: Assessed | M21: % of | O21: Taxable | T21: x | U21: Vacation Days | X21: x | Y21: Sick Days
G22: Parcels | I22: Valuations | M22: Total | O22: Valuations | T22: x | U22: Personal Days | Y22: Other
B23: Real Property | G23: 24111 | I23: 1780444040 | M23: =O23/O25 -> 0.9487036802 | O23: 1209480107 | U23: (detail:) | V23: 13 PTO for Vacation and Personal
B24: Personal Property | G24: 1034 | I24: 67482900 | M24: =M25-M23 -> 0.05129631983 | O24: 65396477
B25: Total | G25: =SUM(G23:H24) -> 25145 | I25: =I24+I23 -> 1847926940 | M25: 1 | O25: 1274876584
T26: PENSION:
U27: Mers | X27: x | Y27: 401K
A28: Director, Management & Supervision | T28: x | U28: Defined Contr | X28: x | Y28: Other | Z28: Defined Benefit
U29: (detail:) | V29: 4% Employer Mattch with 5% Employee Contribution
A30: Position | C30: No of years in: | G30: S.T.C. Level | K30: Personal | M30: No. in | O30: 2020
C31: Position | E31: Assmt Adm | G31: Required | I31: Held | K31: Prop. Exmnr | M31: Position | O31: Salary Range
A32: V&V Assessing LLC | S32: *** | T32: LONGEVITY:
A33: Contracted Department - $196,000 | U33: (detail:)
A34: Director | C34: 1 | E34: 24 | G34: 3 | I34: 4 | K34: Y | M34: 1 | Q34: 75000
A35: Deputy | C35: 1 | E35: 3 | G35: N/A | I35: 2 | K35: Y | M35: 1 | O35: 65000 | Q35: 89000
T36: HEALTH:
A37: Staff | T37: x | U37: BC/BS Type | X37: x | Y37: Dental
A38: Appraiser III | G38: NA | O38: 25.75 | Q38: 33.75 | U38: HMO | X38: X | Y38: Vision
A39: Appraiser II | G39: NA | I39: MCAO | M39: 1 | O39: 21.75 | Q39: 25.75 | U39: Cafeteria | Y39: Other
G40: NA | U40: (detail:)
A41: P/P Auditor
A42: GIS/Mapping
A43: Clerical | G43: NA | I43: MCAT | M43: 1 | O43: 17.75 | Q43: 22.75 | T43: LIFE INSURANCE:
U44: (detail:)
A45: Contractual Field Study Work
A46: Assessing Solutions | Q46: 50000
T47: OTHER:
U48: (detail:)
A49: *Additional Comments:
A50: V&V Assessing is responsible for providing the Staff and Field Appraisals. Assessing Solutions is SubContracted by V&V Assessing to do the Field Study, Land & ECF Analysis
A52: Tempory Changes Due To COVID-19:
A53: Office was closed to public. Remote Meetings and Work was initiated and some Remote Work will remain in place due to the recognized efficiencies.

Sheet 65 Ogemaw
A1: 2020 Michigan Equalization Department Salary Survey
A2: COUNTY OF | D2: Ogemaw | K2: CLICK HERE TO RETURN TO DIRECTOR SUMMARY PAGE
A4: Director | C4: James (Randy) Booth | J4: Private Phone: | L4: 989-390-0716 | R4: E-mail: | S4: boothr@ocmi.us
A5: Alternate: | J5: Private Phone: | R5: E-mail:
A8: General County Information | J8: Additional Duties and Responsibilities | R8: General Office Information
A10: 1965 | B10: Dept. Established: | F10: % General Fund | J10: X | K10: Apportionment | N10: X | O10: Tax Bills | R10: Business Hrs: | T10: 8:30-12:00,1:00-4:30 | X10: Office Fax #: | Z10: N/A
A11: 2 | B11: No. of Cities: | F11: Auto Allowance | J11: X | K11: Property Desc. | O11: Addressing | R11: Office Phone: | T11: 989-345-0328 | X11: Website:
A12: 14 | B12: No.of Townships: | F12: Fringe Benefits | K12: Assessing Units | O12: Website | R12: Address: | T12: 806 W Houghton Ave Rm 105
A13: 1 | B13: No.of Villages: | E13: 2019 Budget | J13: X | K13: Data Processing | N13: X | O13: Mapping/GIS | T13: West Branch Mi. 48661
A14: 35 | B14: No of hrs. per week | E14: 236300 | K14: Other | N14: X | O14: Other | R14: Fax:
A15: 3 | B15: No. of Staff (FTEE) | E15: 2019 Revenue(s) | J15: (detail:) | K15: Land Divisions
E16: 77200
T18: Fringe Benefits
A19: Valuation Information | G19: CURRENT SOFTWARE | L19: BS & A
T20: LEAVE POLICY:
G21: No. of | I21: Assessed | M21: % of | O21: Taxable | T21: 10 | U21: Vacation Days | X21: 12 | Y21: Sick Days
G22: Parcels | I22: Valuations | M22: Total | O22: Valuations | T22: 5 | U22: Personal Days | X22: 13 | Y22: Other | Z22: Holidays
B23: Real Property | G23: 24855 | I23: 986751138 | M23: 0.934 | O23: 815317409 | U23: (detail:)
B24: Personal Property | G24: 1020 | I24: 65589510 | M24: 0.066 | O24: 65071689
B25: Total | G25: 25875 | I25: 1052340648 | M25: 1 | O25: 880389098
B26: Exempt | T26: PENSION:
U27: Mers | X27: X | Y27: 401K
A28: Director, Management & Supervision | U28: Defined Contr | Y28: Other | Z28: Defined Benefit
U29: (detail:)
A30: Position | C30: No of years in: | G30: S.T.C. Level | K30: Personal | M30: No. in | O30: 2019
C31: Position | E31: Assmt Adm | G31: Required | I31: Held | K31: Prop. Exmnr | M31: Position | O31: Salary Range
A32: Director | C32: 2 | E32: 29 | G32: MAAO | I32: MAAO | M32: 1 | Q32: 51000 | T32: LONGEVITY:
A33: Deputy/Asst. | T33: N/A | U33: (detail:)
T36: HEALTH:
A37: Staff | T37: X | U37: BC/BS Type | X37: X | Y37: Dental
A38: Appraiser III | T38: X | U38: HMO | X38: X | Y38: Vision
A39: Appraiser II | U39: Cafeteria | Y39: Other
A40: Appraiser I | I40: MCAO | M40: 1 | O40: 16.91 | Q40: 19.7 | U40: (detail:)
A41: P/P Auditor
A42: GIS/Mapping
A43: Clerical | I43: MCAT | M43: 1 | O43: 14.13 | Q43: 18.8 | T43: LIFE INSURANCE:
T47: OTHER:
A49: *Additional Comments:
A52: Tempory Changes Due To COVID-19:

Sheet 66 Ontonagon
A1: 2022 Michigan Equalization Department Salary Survey
A2: COUNTY OF | D2: Ontonagon | K2: CLICK HERE TO RETURN TO DIRECTOR SUMMARY PAGE
A4: Director | C4: Ann Marie Husar | J4: Private Phone: | L4: 906-884-2769 | R4: E-mail: | S4: Ahusar@OntonagonCounty.org
A5: Alternate: | C5: Renee Pantti | J5: Private Phone: | L5: 906-884-2765 | R5: E-mail: | S5: Rpantti@OntonagonCounty.org
A8: General County Information | J8: Additional Duties and Responsibilities | R8: General Office Information
A10: 1967 | B10: Dept. Established: | F10: % General Fund | J10: x | K10: Apportionment | N10: x | O10: Tax Bills | R10: Business Hrs: | T10: 8:30-4:30 | X10: Office Fax #:
A11: 0 | B11: No. of Cities: | E11: yes | F11: Auto Allowance | J11: x | K11: Property Desc. | N11: x | O11: Addressing | R11: Office Phone: | T11: 906-884-2765 | X11: Website:
A12: 11 | B12: No.of Townships: | E12: yes | F12: Fringe Benefits | K12: Assessing Units | O12: Website | R12: Address: | T12: 725 Greenland Rd
A13: 1 | B13: No.of Villages: | E13: 2022 Budget | J13: x | K13: Data Processing | N13: x | O13: Mapping/GIS | T13: Ontonagon, MI 49953
A14: 35 | B14: No of hrs. per week | K14: Other | O14: Other | R14: Fax:
A15: 3 | B15: No. of Staff (FTEE) | E15: 2022 Revenue(s) | J15: (detail:)
T18: Fringe Benefits
A19: Valuation Information | G19: CURRENT SOFTWARE | L19: BS & A
T20: LEAVE POLICY:
G21: No. of | I21: Assessed | M21: % of | O21: Taxable | T21: x | U21: Vacation Days | X21: x | Y21: Sick Days
G22: Parcels | I22: Valuations | M22: Total | O22: Valuations | T22: x | U22: Personal Days | Y22: Other | Z22: Holidays
B23: Real Property | G23: 10885 | I23: 354918354 | M23: 0.9291 | O23: 272726216 | U23: (detail:)
B24: Personal Property | G24: 435 | I24: 27094694 | M24: 0.0709 | O24: 27094694
B25: Total | G25: 11320 | I25: 382013048 | M25: 1 | O25: 299820910
B26: Exempt | G26: 1637 | T26: PENSION:
T27: x | U27: Mers | Y27: 401K
A28: Director, Management & Supervision | U28: Defined Contr | Y28: Other | Z28: Defined Benefit
U29: (detail:)
A30: Position | C30: No of years in: | G30: S.T.C. Level | K30: Personal | M30: No. in | O30: 2022
C31: Position | E31: Assmt Adm | G31: Required | I31: Held | K31: Prop. Exmnr | M31: Position | O31: Salary Range
A32: Director | C32: 1 | E32: 28 | G32: MAAO | I32: MAAO | M32: 1 | O32: 48265 | Q32: 52265 | T32: LONGEVITY: | V32: yes
A33: Deputy/Asst. | T33: N/A | U33: (detail:)
T36: HEALTH:
A37: Staff | T37: x | U37: BC/BS Type | X37: x | Y37: Dental
A38: Appraiser III | U38: HMO | Y38: Vision
A39: Appraiser II | G39: MCAO | I39: MCAO | O39: 36280 | Q39: 38830 | U39: Cafeteria | Y39: Other
A40: Appraiser I | G40: MCAO | O40: 34060 | Q40: 36610 | U40: (detail:)
A41: P/P Auditor
A42: GIS/Mapping
A43: Clerical | T43: LIFE INSURANCE: | W43: $5,000 Death Benefit
T47: OTHER:
A49: *Additional Comments:
A52: Tempory Changes Due To COVID-19:

Sheet 67 Osceola
A1: 2022 MICHIGAN EQUALIZATION DEPT SALARY SURVEY
A2: COUNTY OF | D2: OSCEOLA | K2: CLICK HERE TO RETURN TO DIRECTOR SUMMARY PAGE
A4: Director | C4: Valarie Delamater | J4: Private Phone: | L4: 231-629-1296 | R4: E-mail: | S4: equal@osceolacountymi.com
A5: Alternate: | J5: Private Phone: | R5: E-mail:
A8: General County Information | J8: Additional Duties and Responsibilities | R8: General Office Information
A10: 1967 | B10: Dept. Established: | E10: 0.02 | F10: % General Fund | J10: x | K10: Apportionment | N10: x | O10: Tax Bills | R10: Business Hrs: | T10: 9am - 5pm | X10: Office Fax #:
A11: 2 | B11: No. of Cities: | E11: 0.625 | F11: Auto Allowance | J11: x | K11: Property Desc. | O11: Addressing | R11: Office Phone: | T11: 231-832-6119 | X11: Website: | Z11: osceola-county.org
A12: 16 | B12: No.of Townships: | E12: 0.32 | F12: Fringe Benefits | K12: Assessing Units | O12: Website | R12: Address: | T12: 301 W. Upton
A13: 4 | B13: No.of Villages: | E13: 2022 BUDGET | J13: x | K13: Data Processing | N13: x | O13: Mapping/GIS | T13: Reed City, MI 49677
A14: 40 | B14: No of hrs. per week | E14: 365055 | K14: Other | O14: Other
A15: 2 | B15: No. of Staff (FTEE) | E15: 2022 REVENUE | J15: (detail:) | K15: tax maps/ no GIS
E16: 100150
T18: Fringe Benefits
A19: Valuation Information | G19: CURRENT SOFTWARE | L19: BS&A
T20: LEAVE POLICY:
G21: No. of | I21: Assessed | M21: % of | O21: Taxable | T21: x | U21: Vacation Days | X21: x | Y21: Sick Days
G22: Parcels | I22: Valuations | M22: Total | O22: Valuations | T22: 4 | U22: Personal Days | Y22: Other
B23: Real Property | G23: 20918 | I23: 1041219521 | M23: 0.91 | O23: 748757699 | U23: (detail:) | V23: Sick 1 day/month Vacation 1st year 5 days - 12th year 30 days
B24: Personal Property | G24: 928 | I24: 102077300 | M24: 0.09 | O24: 58338985
B25: Total | G25: 21846 | I25: 1143296821 | M25: 1 | O25: 850468381
T26: PENSION:
T27: x | U27: Mers | Y27: 401K
A28: Director, Management & Supervision | T28: X | U28: Defined Contr | Y28: Other | Z28: Defined Benefit
U29: (detail:) | V29: B-3 55/15
A30: Position | C30: No of years in: | G30: S.T.C. Level | K30: Personal | M30: No. in | O30: 2022
C31: Position | E31: Assmt Adm | G31: Required | I31: Held | K31: Prop. Exmnr | M31: Position | O31: Salary Range
A32: Director (40 hr) | C32: 1 | E32: 19 | G32: 3 | I32: MAAO | K32: 1 | M32: 1 | O32: 54607.11 | Q32: 70979.39 | S32: *** | T32: LONGEVITY:
A33: Deputy/Asst. (35 hr) | C33: 25 | E33: 26 | I33: MCAO | M33: 1 | O33: 32511.81 | Q33: 48291 | U33: (detail:) | V33: 240/5yr to 1920/40yr
T36: HEALTH:
A37: Staff | T37: x | U37: BC/BS Type | X37: x | Y37: Dental
A38: Appraiser III | U38: HMO | X38: X | Y38: Vision
A39: Appraiser II | U39: Cafeteria | Y39: Other
A40: Appraiser I | U40: (detail:)
A41: P/P Auditor
A42: GIS/Mapping
A43: Clerical | T43: LIFE INSURANCE:
U44: (detail:) | V44: 30000
T47: OTHER:
U48: (detail:) | V48: 13 1/2 holidays
A49: *Additional Comments:
A50: Director is also the Appraiser.
A52: Tempory Changes Due To COVID-19:

Sheet 68 Oscoda
A1: 2022 Michigan Equalization Department Salary Survey
A2: COUNTY OF | D2: Oscoda | K2: CLICK HERE TO RETURN TO DIRECTOR SUMMARY PAGE
A4: Director | C4: Amber Woehlert | J4: Private Phone: | L4: 989-826-1103 | R4: E-mail: | S4: awoehlert@oscodacountymi.com
A5: Alternate: | J5: Private Phone: | R5: E-mail:
A8: General County Information | J8: Additional Duties and Responsibilities | R8: General Office Information
B10: Dept. Established: | F10: % General Fund | J10: x | K10: Apportionment | N10: x | O10: Tax Bills | R10: Business Hrs: | T10: 830-430 | X10: Office Fax #:
A11: 0 | B11: No. of Cities: | F11: Auto Allowance | J11: x | K11: Property Desc. | N11: X | O11: Addressing | R11: Office Phone: | T11: 989-826-1102 | X11: Website: | Z11: oscodacountymi.com
A12: 6 | B12: No.of Townships: | F12: Fringe Benefits | K12: Assessing Units | N12: X | O12: Website | R12: Address:
A13: 0 | B13: No.of Villages: | E13: 2022 | J13: x | K13: Data Processing | N13: x | O13: Mapping/GIS
A14: 35 | B14: No of hrs. per week | E14: 197400 | K14: Other | O14: Other | R14: Fax:
A15: 3 | B15: No. of Staff (FTEE) | E15: 2020 Revenue(s) | J15: (detail:)
T18: Fringe Benefits
A19: Valuation Information | G19: CURRENT SOFTWARE | L19: Manatron
T20: LEAVE POLICY:
G21: No. of | I21: Assessed | M21: % of | O21: Taxable | T21: x | U21: Vacation Days | Y21: Sick Days
G22: Parcels | I22: Valuations | M22: Total | O22: Valuations | T22: x | U22: Personal Days | X22: x | Y22: Other | Z22: Holidays
B23: Real Property | G23: 13877 | I23: 431949115 | O23: 364468010 | U23: (detail:) | V23: Per Union Contract
B24: Personal Property | G24: 497 | I24: 48119900 | O24: 48038504
B25: Total | G25: =SUM(G23:H24) -> 14374 | I25: =SUM(I23:L24) -> 480069015 | O25: =SUM(O23:R24) -> 412506514
B26: Exempt | T26: PENSION:
T27: x | U27: Mers | X27: x | Y27: 401K
A28: Director, Management & Supervision | U28: Defined Contr | Y28: Other | Z28: Defined Benefit
U29: (detail:)
A30: Position | C30: No of years in: | G30: S.T.C. Level | K30: Personal | M30: No. in | O30: 2020
C31: Position | E31: Assmt Adm | G31: Required | I31: Held | K31: Prop. Exmnr | M31: Position | O31: Salary Range
A32: Director | C32: 4 | E32: 12 | G32: MAAO | I32: MAAO | K32: YES | M32: 1 | O32: 49000 | T32: LONGEVITY:
A33: Senior Appriaser | C33: 1 | E33: 1 | G33: MCAO | I33: MCAO | K33: YES | M33: 1 | O33: 16.24 | Q33: /hr | T33: N/A | U33: (detail:)
A34: Appraiser | C34: 0 | E34: 0 | G34: MCAT | I34: MCAT | K34: YES | M34: 1 | O34: 14.81 | Q34: hr
T36: HEALTH:
A37: Staff | T37: x | U37: BC/BS Type | X37: x | Y37: Dental
A38: Appraiser III | U38: HMO | X38: x | Y38: Vision
A39: Appraiser II | U39: Cafeteria | Y39: Other
A40: Appraiser I | U40: (detail:) | V40: HRA ontop of HMO
A41: P/P Auditor
A42: GIS/Mapping
A43: Clerical | T43: LIFE INSURANCE:
T47: OTHER:
A49: *Additional Comments:
A52: Tempory Changes Due To COVID-19:

Sheet 69 Otsego
A1: 2017 Michigan Equalization Department Salary Survey
A2: COUNTY OF | D2: OTSEGO | K2: CLICK HERE TO RETURN TO DIRECTOR SUMMARY PAGE
A4: Director | C4: WILLIAM KERR | J4: Private Phone: | L4: 989-731-7413 | R4: E-mail: | S4: bkerr@otsegocountymi.gov
A5: Alternate: | C5: MARK REEZE | J5: Private Phone: | L5: 989-731-7412 | R5: E-mail: | S5: mreetz@otsegocountymi.gov
A8: General County Information | J8: Additional Duties and Responsibilities | R8: General Office Information
A10: 1962 | B10: Dept. Established: | E10: 0.025 | F10: % General Fund | J10: X | K10: Apportionment | N10: 6 | O10: Tax Bills | R10: Business Hrs: | T10: 8:00 TO 4:30 | X10: Office Fax #: | Z10: 989-731-7418
A11: 1 | B11: No. of Cities: | E11: 0.5 | F11: Auto Allowance | K11: Property Desc. | N11: X | O11: Addressing | R11: Office Phone: | T11: 989-731-7411 | X11: Website: | Z11: otsegocountymi.gov
A12: 9 | B12: No.of Townships: | E12: 0.4 | F12: Fringe Benefits | K12: Assessing Units | N12: X | O12: Website | R12: Address: | T12: 800 Livingston Blvd. Suite 1D | X12: Mapping: | Z12: gis.otsegocountymi.gov
A13: 1 | B13: No.of Villages: | E13: 2017 Budget | J13: X | K13: Data Processing | N13: X | O13: Mapping/GIS | Q13: * | T13: GAYLORD, MI 49735
A14: 37.5 | B14: No of hrs. per week | E14: 243542 | J14: X | K14: Other | O14: Other
A15: 3 | B15: No. of Staff (FTEE) | E15: 2017 Revenue(s) | J15: (detail:) | K15: Damage Assessment * CONTRACTED
E16: 36700
T18: Fringe Benefits
A19: Valuation Information | G19: CURRENT SOFTWARE | L19: BS&A
T20: LEAVE POLICY:
G21: No. of | I21: Assessed | M21: % of | O21: Taxable | T21: 13 | U21: Vacation Days | X21: 0 | Y21: Sick Days
G22: Parcels | I22: Valuations | M22: Total | O22: Valuations | T22: 7 | U22: Personal Days | X22: 0 | Y22: Other
B23: Real Property | G23: 25858 | I23: 1165512150 | M23: 0.8266 | O23: 987760523 | U23: (detail:) | V23: Vacation: 1-5 years 10 days; 6-10 years 15 days; 11+ years 20 days
B24: Personal Property | G24: 1583 | I24: 244373100 | M24: 0.1734 | O24: 243846995
B25: Total | G25: =SUM(G23:G24) -> 27441 | I25: =SUM(I23:L24) -> 1409885250 | O25: =SUM(O23:R24) -> 1231607518
T26: PENSION:
U27: Mers | Y27: 401K
A28: Director, Management & Supervision | T28: X | U28: Defined Contr | Y28: Other | Z28: Defined Benefit
U29: (detail:)
A30: Position | C30: No of years in: | G30: S.T.C. Level | K30: Personal | M30: No. in | O30: 2010
C31: Position | E31: Assmt Adm | G31: Required | I31: Held | K31: Prop. Exmnr | M31: Position | O31: Salary Range
A32: Director | C32: 20 | E32: 40 | G32: 3 | I32: 4 | M32: 1 | O32: Contracted | S32: *** | T32: LONGEVITY:
A33: Deputy/Asst. | C33: 2 | E33: 18 | G33: 3 | I33: 3 | K33: 1 | M33: 1 | O33: 46220 | Q33: 50530 | U33: (detail:)
T36: HEALTH:
A37: Staff | T37: X | U37: BC/BS Type | X37: X | Y37: Dental
A38: Senior Appraiser | G38: 2 | I38: 3 | O38: 15.98 | Q38: 21.53 | U38: HMO | X38: X | Y38: Vision
A39: Appraiser II | U39: Cafeteria | Y39: Other
A40: Appraiser I
A41: P/P Auditor
A42: GIS/Mapping | G42: Contracted *
A43: Clerical | G43: Part time | M43: 1 | O43: 12.1 | Q43: 14.67 | T43: LIFE INSURANCE:
U44: (detail:) | V44: 35000
T47: OTHER:
U48: (detail:) | V48: Short Term Disability after 7 sick days; Long Term Disability
A49: *Additional Comments:
A52: Tempory Changes Due To COVID-19:

Sheet 70 Ottawa
A1: 2022 Michigan Equalization Department Salary Survey
A2: COUNTY OF | D2: Ottawa | K2: CLICK HERE TO RETURN TO DIRECTOR SUMMARY PAGE
A4: Director | C4: Brian Busscher | J4: Private Phone: | L4: 616-738-4819 | R4: E-mail: | S4: bbusscher@miottawa.org
A5: Alternate: | C5: Josh Morgan | J5: Private Phone: | L5: 616-738-4657 | R5: E-mail: | S5: jmorgan@miottawa.org
A8: General County Information | J8: Additional Duties and Responsibilities | R8: General Office Information
A10: 1967 | B10: Dept. Established: | E10: 0.016 | F10: % General Fund | J10: x | K10: Apportionment | O10: Tax Bills | R10: Business Hrs: | T10: 8:00-5:00 | X10: Office Fax #: | Z10: 6167384009
A11: 6 | B11: No. of Cities: | F11: Auto Allowance | J11: x | K11: Property Desc. | O11: Addressing | R11: Office Phone: | T11: 616-738-4826 | X11: Website: | Z11: www,miottawa.org
A12: 17 | B12: No.of Townships: | E12: 0.4 | F12: Fringe Benefits | J12: 5 | K12: Assessing Units | O12: Website | R12: Address: | T12: 12220 Fillmore St Rm 110
A13: 1 | B13: No.of Villages: | E13: 2021-22 Budget | K13: Data Processing | N13: x | O13: Mapping/GIS | T13: West Olive, MI 49460
A14: 40 | B14: No of hrs. per week | E14: =1236285+157700+60320+74258.38+74300 -> 1602863.38 | K14: Other | O14: Other
A15: =14+0.5+(30/40)+0.5 -> 15.75 | B15: No. of Staff (FTEE) | E15: 2021-22 Revenue(s) | J15: (detail:) | K15: Assessor for the Cities of Grand Haven, Coopersville, and Hudsonville, also Blendon and Crockery Township
E16: =6750+166623.58+65216.82+72250+78250 -> 389090.4
T18: Fringe Benefits
A19: Valuation Information | G19: CURRENT SOFTWARE | L19: BS&A Equalizer Software
T20: LEAVE POLICY:
G21: No. of | I21: Assessed | M21: % of | O21: Taxable | T21: x | U21: Vacation Days | X21: 6 | Y21: Sick Days
G22: Parcels | I22: Valuations | M22: Total | O22: Valuations | U22: Personal Days | X22: x | Y22: Other
B23: Real Property | G23: 109644 | I23: 17710126253 | M23: =I23/I25 -> 0.9537744987 | O23: 13120601914 | U23: (detail:) | V23: Sick 6 days/yr, may acrue to 12. Short term disability after 2 weeks, long term after 6 mo Vacation (SUPER) 6mo-1wk; 1-10 yr 3 wk, 11-19 yr 4 wk 20+ yr 5 wk NONSUPER 1-3 yr 2 wk, 4-10 yr 3 wk 11+ 3wk +1 day/yr max 4 wk3 days
B24: Personal Property | G24: 8705 | I24: 858336500 | M24: =I24/I25 -> 0.04622550135 | O24: 857966540
B25: Total | G25: =G23+G24 -> 118349 | I25: =I23+I24 -> 18568462753 | O25: =O23+O24 -> 13978568454
T26: PENSION:
T27: x | U27: Mers | Y27: 401K
A28: Director, Management & Supervision | T28: x | U28: Defined Contr | X28: 457 | Y28: Other
U29: (detail:) | V29: MERS Supervisory b4, F55 waiver, E2 benefit employees pay 4.81 %
A30: Position | C30: No of years in: | G30: S.T.C. Level | K30: Personal | M30: No. in | O30: 2022 | V30: NONSUPER b3, F55 waiver, employees contribution varies by hire date
C31: Position | E31: Assmt Adm | G31: Required | I31: Held | K31: Prop. Exmnr | M31: Position | O31: Salary Range | V31: New hires are put in a defined contributions plan
A32: Director | C32: 1 | E32: 16 | G32: MMAO | I32: MMAO | K32: x | M32: 1 | O32: 91977 | Q32: 119569 | T32: LONGEVITY:
A33: Deputy/Asst. | C33: 1 | E33: 16 | G33: MMAO | I33: MMAO | K33: x | M33: 1 | O33: 74375 | Q33: 96689 | U33: (detail:) | V33: Not available to new employees
A34: Manager, Assessing Division | C34: 1 | E34: 3 | G34: MAAO | I34: MAAO | K34: x | M34: 1 | O34: 60712 | Q34: 78936
A35: Manager, Assessing Division | C35: 1 | E35: 2 | G35: MAAO | I35: MCAO | K35: x | M35: 1 | O35: 60712 | Q35: 78936
A36: Administrative Assistant | C36: 9 | E36: 21 | G36: MCAO | I36: MAAO | K36: x | M36: 1 | O36: 46245 | Q36: 60110
T37: HEALTH:
A38: Staff | U38: BC/BS Type | X38: x | Y38: Dental
A39: Appraiser III | G39: MAAO | I39: MAAO | K39: x | M39: 3 | O39: 56740 | Q39: 73772 | U39: HMO | X39: x | Y39: Vision
A40: Appraiser II | G40: MCAO | I40: MCAO | K40: x | M40: 0 | T40: x | U40: Cafeteria | X40: x | Y40: Other
A41: Appraiser I | G41: None | I41: 1 MCAT | M41: 2 | O41: 46245 | Q41: 60110 | U41: (detail:) | V41: Priority Health
A42: Seasonal/Temp | G42: None | I42: None | M42: 1 | O42: $25/hr
A43: GIS/Mapping | G43: None | I43: 2 MCAT | M43: 2 | O43: 46245 | Q43: 60110
A44: Clerical | G44: None | I44: 1 MCAT | M44: 2.75 | O44: 35273 | Q44: 45847 | T44: LIFE INSURANCE:
A45: Sr A/I Clerk | G45: None | I45: None | M45: 1 | O45: 40382 | Q45: 52490 | U45: (detail:) | V45: SUPER 150% annual salary
V46: NON-SUPER 100% annual salary
M48: =SUM(M32:N46) -> 16.75 | T48: OTHER:
U49: (detail:) | V49: 8 holidays + 5 personal floating holidays,
A50: *Additional Comments:
A53: Tempory Changes Due To COVID-19:
A54: (None)

Sheet 71 Presque Isle
A1: 2017 Michigan Equalization Department Salary Survey
A2: COUNTY OF | D2: PRESQUE ISLE | K2: CLICK HERE TO RETURN TO DIRECTOR SUMMARY PAGE
A4: Director | J4: Private Phone: | R4: E-mail:
A5: Alternate: | J5: Private Phone: | R5: E-mail:
A8: General County Information | J8: Additional Duties and Responsibilities | R8: General Office Information
B10: Dept. Established: | F10: % General Fund | K10: Apportionment | O10: Tax Bills | R10: Business Hrs: | X10: Office Fax #:
B11: No. of Cities: | F11: Auto Allowance | K11: Property Desc. | O11: Addressing | R11: Office Phone: | X11: Website:
B12: No.of Townships: | F12: Fringe Benefits | K12: Assessing Units | O12: Website | R12: Address:
B13: No.of Villages: | E13: 2017 Budget | K13: Data Processing | O13: Mapping/GIS
B14: No of hrs. per week | K14: Other | O14: Other | R14: Fax:
B15: No. of Staff (FTEE) | E15: 2017 Revenue(s) | J15: (detail:)
T18: Fringe Benefits
A19: Valuation Information | G19: CURRENT SOFTWARE | L19: BS & A
T20: LEAVE POLICY:
G21: No. of | I21: Assessed | M21: % of | O21: Taxable | U21: Vacation Days | Y21: Sick Days
G22: Parcels | I22: Valuations | M22: Total | O22: Valuations | U22: Personal Days | Y22: Other | Z22: Holidays
B23: Real Property | U23: (detail:)
B24: Personal Property
B25: Total
B26: Exempt | T26: PENSION:
U27: Mers | Y27: 401K
A28: Director, Management & Supervision | U28: Defined Contr | Y28: Other | Z28: Defined Benefit
U29: (detail:)
A30: Position | C30: No of years in: | G30: S.T.C. Level | K30: Personal | M30: No. in | O30: 2016
C31: Position | E31: Assmt Adm | G31: Required | I31: Held | K31: Prop. Exmnr | M31: Position | O31: Salary Range
A32: Director | T32: LONGEVITY:
A33: Deputy/Asst. | T33: N/A | U33: (detail:)
T36: HEALTH:
A37: Staff | U37: BC/BS Type | Y37: Dental
A38: Appraiser III | U38: HMO | Y38: Vision
A39: Appraiser II | U39: Cafeteria | Y39: Other
A40: Appraiser I | U40: (detail:)
A41: P/P Auditor
A42: GIS/Mapping
A43: Clerical | T43: LIFE INSURANCE:
T47: OTHER:
A49: *Additional Comments:
A52: Tempory Changes Due To COVID-19:

Sheet 72 Roscommon
A1: 2022 Michigan Equalization Department Salary Survey
A2: COUNTY OF | D2: Roscommon | K2: CLICK HERE TO RETURN TO DIRECTOR SUMMARY PAGE
A4: Director | C4: Jamie J. Houserman | J4: Private Phone: | L4: 989-205-0599 | R4: E-mail: | S4: HousermanJ@RoscommonCounty.net OR eqdirector@roscommoncounty.net
A5: Alternate: | J5: Private Phone: | R5: E-mail:
A8: General County Information | J8: Additional Duties and Responsibilities | R8: General Office Information
B10: Dept. Established: | E10: 0.0269 | F10: % General Fund | J10: X | K10: Apportionment | O10: Tax Bills | R10: Business Hrs: | T10: 8:30 - 4:30 | X10: Office Fax #: | Z10: 989-275-7037
A11: 0 | B11: No. of Cities: | E11: x | F11: Auto Allowance | J11: X | K11: Property Desc. | O11: Addressing | R11: Office Phone: | T11: 989-275-8121 | X11: Website: | Z11: www.roscommoncounty.net
A12: 11 | B12: No.of Townships: | E12: X | F12: Fringe Benefits | K12: Assessing Units | O12: Website | R12: Address: | T12: 500 Lake Street
A13: 1 | B13: No.of Villages: | E13: Budget | J13: X | K13: Data Processing | O13: Mapping/GIS | T13: Roscommon, Mi. 48653
A14: 37.5 | B14: No of hrs. per week | E14: 262082 | K14: Other | O14: Other
A15: 2 | B15: No. of Staff (FTEE) | E15: Revenue(s) | J15: (detail:)
E16: 46700
T18: Fringe Benefits
A19: Valuation Information | G19: CURRENT SOFTWARE | L19: BS&A.Net
T20: LEAVE POLICY:
G21: No. of | I21: Assessed | M21: % of | O21: Taxable | T21: X | U21: Vacation Days | X21: X | Y21: Sick Days
G22: Parcels | I22: Valuations | M22: Total | O22: Valuations | T22: X | U22: Personal Days | Y22: Other
B23: Real Property | G23: 33217 | I23: 1712624400 | M23: 0.9697 | O23: =SUM(O25-O24) -> 1384171154 | U23: (detail:)
B24: Personal Property | G24: 1128 | I24: 52541291 | M24: 0.0303 | O24: =I24 -> 52541291
B25: Total | G25: 35722 | I25: =SUM(I23:L24) -> 1765165691 | M25: 1 | O25: 1436712445
T26: PENSION:
T27: X | U27: Mers | Y27: 401K
A28: Director, Management & Supervision | T28: X | U28: Defined Contr | Y28: Other
U29: (detail:)
A30: Position | C30: No of years in: | G30: S.T.C. Level | K30: Personal | M30: No. in
C31: Position | E31: Assmt Adm | G31: Required | I31: Held | K31: Prop. Exmnr | M31: Position | O31: Salary Range
A32: Director | C32: 10 | E32: 14 | G32: 3 | I32: 4 | K32: Y | M32: 1 | Q32: 69680 | T32: LONGEVITY:
U33: (detail:) | V33: Yes
T36: HEALTH:
A37: Staff | U37: BC/BS Type | X37: X | Y37: Dental
A38: Appraiser III | G38: MAAO | I38: MAAO | K38: YES | M38: 5 | O38: contract | Q38: 15000 | T38: X | U38: HMO | X38: X | Y38: Vision
A39: Appraiser II | U39: Cafeteria | Y39: Other
A40: Appraiser I | G40: MCAO | I40: MAAO | K40: YES | M40: 9 | Q40: 41690 | U40: (detail:)
A41: P/P Auditor
A42: GIS/Mapping
A43: Clerical | G43: MCAT | I43: NONE | K43: NO | M43: 1 | O43: PT | Q43: 26300 | T43: LIFE INSURANCE:
A44: Contracted Appraiser | U44: (detail:) | V44: Yes
T47: OTHER:
U48: (detail:)
A49: *Additional Comments:
A52: Tempory Changes Due To COVID-19:
A53: None

Sheet 73 Saginaw
A1: 2022 Michigan Equalization Department Salary Survey
A2: COUNTY OF | D2: SAGINAW | K2: CLICK HERE TO RETURN TO DIRECTOR SUMMARY PAGE
A4: Director | C4: Denise M Babbitt | J4: Private Phone: | L4: 989-790-5262 | R4: E-mail: | S4: dbabbitt@saginawcounty.com
A5: Alternate: | J5: Private Phone: | R5: E-mail:
A8: General County Information | J8: Additional Duties and Responsibilities | R8: General Office Information
A10: 1967 | B10: Dept. Established: | E10: 0.015 | F10: % General Fund | J10: x | K10: Apportionment | N10: x | O10: Tax Bills | R10: Business Hrs: | T10: 8:00 - 5:00 | X10: Office Fax #: | Z10: 9897924994
A11: 3 | B11: No. of Cities: | E11: 0.62 | F11: Auto Allowance | J11: x | K11: Property Desc. | O11: Addressing | R11: Office Phone: | T11: 9897905260 | X11: Website: | Z11: www.saginawcounty.com
A12: 27 | B12: No.of Townships: | F12: Fringe Benefits | J12: x | K12: Assessing Units | O12: Website | R12: Address: | T12: 111 S Michigan Ave. Room 106
A13: 6 | B13: No.of Villages: | E13: 2022 Budget | J13: x | K13: Data Processing | O13: Mapping/GIS | T13: Saginaw, MI 48602-2086
A14: 40 | B14: No of hrs. per week | E14: 660405 | K14: Other | O14: Other
A15: 5.2 | B15: No. of Staff (FTEE) | E15: 2022 Revenue(s) | J15: (detail:) | K15: Property Desc., Data Processing, Tax Bills, for 28 units
E16: 251500
T18: Fringe Benefits
A19: 2022 Valuation Information | G19: CURRENT SOFTWARE | L19: BS&A.Net
T20: LEAVE POLICY:
G21: No. of | I21: Assessed | M21: % of | O21: Taxable | T21: x | U21: Vacation Days | Y21: Sick Days
G22: Parcels | I22: Valuations | M22: Total | O22: Valuations | U22: Personal Days | Y22: Other
B23: Real Property | G23: 96390 | I23: 6468370060 | M23: =SUM(I23/I25) -> 0.9178012834 | O23: 4909510887 | U23: (detail:) | V23: 0-3 yrs 136 hrs; 3-5 yrs 152 hrs; 5-10 yrs 168 hrs; 10-15 yrs 184 hrs; 15-20 yrs 200 hrs; 20+ yrs 216 hrs
B24: Personal Property | G24: 6807 | I24: 579310279 | M24: =SUM(I24/I25) -> 0.08219871662 | O24: 517277466
B25: Total | G25: =SUM(G23:H24) -> 103197 | I25: =SUM(I23:L24) -> 7047680339 | M25: =SUM(M23:N24) -> 1 | O25: =SUM(O23:R24) -> 5426788353
T26: PENSION:
T27: x | U27: Mers | Y27: 401K
A28: Director, Management & Supervision | T28: x | U28: Defined Contr | Y28: Other
U29: (detail:) | V29: Since 1994: County pays 6 to 9% Employee 0 to 3%
A30: Position | C30: No of years in: | G30: S.T.C. Level | K30: Personal | M30: No. in | O30: 2020
C31: Position | E31: Assmt Adm | G31: Required | I31: Held | K31: Prop. Exmnr | M31: Position | O31: Salary Range | T31: After December 1, 2005 New hires: Employee 0% or 6% County 3% or 6%
A32: Director | C32: 5 | E32: 13 | G32: MAAO(3) | I32: MAAO(3) | K32: Y | M32: 1 | O32: 82913 | Q32: 109181 | T32: LONGEVITY:
A33: Deputy/Asst. | C33: 4 | E33: 15 | G33: MAAO(3) | I33: MAAO(3) | K33: Y | M33: 1 | O33: 72419 | Q33: 95362 | U33: (detail:) | V33: $70 for each full year after 5 years,
T35: After December 1, 2005 New hires: No longevity
T36: HEALTH:
A37: Staff | U37: BC/BS Type | X37: x | Y37: Dental
A38: Appraiser III | U38: HMO | X38: x | Y38: Vision
A39: Appraiser II | G39: MAAO(3) | M39: Vacant | O39: 48261 | Q39: 60219 | U39: Cafeteria | X39: x | Y39: Other
A40: Appraiser I | G40: MCAO(2) | M40: 1 | O40: 51634 | Q40: 67992 | U40: (detail:)
A41: P/P Auditor
A42: Description Engineer | I42: MAAO | M42: 1 | O42: 45099 | Q42: 59387 | T42: After December 1, 2005 New hires: No retiree health care
A43: Clerical | M43: 1 | O43: 39390 | Q43: 51871 | T43: LIFE INSURANCE:
A44: Other(GIS) | M44: 0.2 | O44: 48887 | Q44: 60944 | U44: (detail:) | V44: $50,000 per employee
T47: OTHER:
U48: (detail:) | V48: 14 Holidays
A49: *Additional Comments:
A52: Tempory Changes Due To COVID-19:

Sheet 74 St. Clair
A1: 2022 Michigan Equalization Department Salary Survey
A2: COUNTY OF | D2: St Clair | K2: CLICK HERE TO RETURN TO DIRECTOR SUMMARY PAGE
A4: Director | C4: Justin Sears | J4: Private Phone: | L4: 810-989-6304 | R4: E-mail: | S4: jsears@stclaircounty.org
A5: Alternate: | C5: N/A | J5: Private Phone: | R5: E-mail:
A8: General County Information | J8: Additional Duties and Responsibilities | R8: General Office Information
B10: Dept. Established: | E10: 1 | F10: % General Fund | J10: YES | K10: Apportionment | N10: 0 | O10: Tax Bills | R10: Business Hrs: | T10: 8:00am 4:30pm | X10: Office Fax #: | Z10: 810-989-6328
A11: 8 | B11: No. of Cities: | E11: NO | F11: Auto Allowance | J11: YES | K11: Property Desc. | N11: 0 | O11: Addressing | R11: Office Phone: | T11: 810-989-6925 | X11: Website: | Z11: www.stclaircounty.org
A12: 24 | B12: No.of Townships: | E12: Yes | F12: Fringe Benefits | J12: 4 | K12: Assessing Units | N12: YES | O12: Website | R12: Address: | T12: 100 Grand River Avenue
A13: 2 | B13: No.of Villages: | E13: 2022 | J13: 0 | K13: Data Processing | N13: NO | O13: Mapping/GIS | T13: Suite 105
A14: 37.5 | B14: No of hrs. per week | E14: 883507 | K14: Other | O14: Other | T14: Pot Huron MI 48060
A15: 8 | B15: No. of Staff (FTEE) | E15: 2021 | J15: (detail:)
E16: 827965
T18: Fringe Benefits
A19: Valuation Information | G19: CURRENT SOFTWARE | L19: BS&A Equalizer
T20: LEAVE POLICY:
G21: No. of | I21: Assessed | M21: % of | O21: Taxable | T21: Yes | U21: Vacation Days | X21: Yes | Y21: Sick Days
G22: Parcels | I22: Valuations | M22: Total | O22: Valuations | T22: No | U22: Personal Days | Y22: Other
B23: Real Property | G23: 80974 | I23: 8010174651 | M23: =+I23/I25 -> 0.8762096071 | O23: 5931479657 | U23: (detail:)
B24: Personal Property | G24: 5764 | I24: 1131672900 | M24: =+I24/I25 -> 0.1237903929 | O24: 1126958411
B25: Total | G25: 86738 | I25: =SUM(I23:L24) -> 9141847551 | M25: 1 | O25: =SUM(O23:R24) -> 7058438068
T26: PENSION:
U27: Mers | Y27: 401K
A28: Director, Management & Supervision | U28: Defined Contr | X28: X | Y28: Other | Z28: Defined Benefit
U29: (detail:) | V29: 457 - match up to 8%
A30: Position | C30: No of years in: | G30: S.T.C. Level | K30: Personal | M30: No. in | O30: 2022
C31: Position | E31: Assmt Adm | G31: Required | I31: Held | K31: Prop. Exmnr | M31: Position | O31: Salary Range
A32: Director | C32: 1 | E32: 12 | G32: MAAO | I32: MMAO | K32: Yes | M32: 1 | O32: 84635 | Q32: 111375 | T32: LONGEVITY:
U33: (detail:)
T36: HEALTH:
A37: Staff | T37: PPO 8 | U37: BC/BS Type | X37: Yes | Y37: Dental | Z37: 1000 max
A38: Appraiser III | G38: MAAO | I38: MAAO | K38: Yes | M38: 1 | O38: 46995 | Q38: 61843 | U38: HMO | X38: Yes | Y38: Vision
A39: Appraiser II | G39: MAAO | I39: MAAO | K39: Yes | M39: 2 | O39: 43450 | Q39: 57176 | U39: Cafeteria | Y39: Other
A40: Appraiser I | G40: MCAO | I40: MCAO | K40: Yes | M40: 2 | O40: 38627 | Q40: 50830 | U40: (detail:)
A41: Senior Appraiser | G41: MAAO | I41: MAAO | K41: Yes | M41: 2 | O41: 48875 | Q41: 64315
A42: Office Coordinator | G42: MCAT | I42: MCAT | M42: 1 | O42: 34338 | Q42: 45188
A43: Clerical (part time) | G43: MCAT | I43: MCAT | M43: 1 | O43: 29353 | Q43: 38627 | T43: LIFE INSURANCE:
A44: Data Collector (part time-600 Hrs) | G44: MCAT | I44: MCAT | M44: 1 | Q44: 10200 | U44: (detail:)
T47: OTHER:
U48: (detail:)
A49: *Additional Comments:
A52: Tempory Changes Due To COVID-19:

Sheet 75 St Joseph
A1: 2022 Michigan Equalization Department Salary Survey
A2: COUNTY OF | D2: St Joseph | K2: CLICK HERE TO RETURN TO DIRECTOR SUMMARY PAGE
A4: Director | C4: Joshua Simmons | J4: Private Phone: | L4: 269 467-5550 | R4: E-mail: | S4: simmonsj@stjosephcountymi.org
A5: Alternate: | J5: Private Phone: | R5: E-mail:
A8: General County Information | J8: Additional Duties and Responsibilities | R8: General Office Information
A10: 1968 | B10: Dept. Established: | E10: 0.0209 | F10: % General Fund | J10: x | K10: Apportionment | O10: Tax Bills | R10: Business Hrs: | T10: Closed Fridays | X10: Office Fax #: | Z10: 269 467-5672
A11: 2 | B11: No. of Cities: | F11: Auto Allowance | J11: x | K11: Property Desc. | N11: x | O11: Addressing | R11: Office Phone: | T11: 269 467-5576 | X11: Website: | Z11: www.stjosephcountymi.org
A12: 16 | B12: No.of Townships: | F12: Fringe Benefits | K12: Assessing Units | N12: x | O12: Website | R12: Address: | T12: 125 W. Main St.
A13: 6 | B13: No.of Villages: | E13: 2022 Budget | J13: x | K13: Data Processing | N13: x | O13: Mapping/GIS | T13: P O Box 189
A14: 40 | B14: No of hrs. per week | E14: 317196 | K14: Other | O14: Other | T14: Centreville MI 49032-0276
A15: 3 | B15: No. of Staff (FTEE) | E15: 2022 Revenue(s) | J15: (detail:)
E16: 56058
T18: Fringe Benefits
A19: Valuation Information
T20: LEAVE POLICY:
G21: No. of | I21: Assessed | M21: % of | O21: Taxable | T21: X | U21: Vacation Days | X21: 13 | Y21: Sick Days
G22: Parcels | I22: Valuations | M22: Total | O22: Valuations | T22: 2 | U22: Personal Days | X22: 1-5 | Y22: Other | Z22: Bereavement
B23: Real Property | G23: 34480 | I23: 3109026700 | M23: =I23/I25 -> 0.9131561064 | O23: 2008572369 | U23: (detail:) | V23: 1/2 day accumulation/payperiod (13 days/year) sick time; 2 personal days from sick bank; 20 vac days/year after 14 yrs, 25 days after 20 yrs, 30 days after 25 yrs.
B24: Personal Property | G24: 1886 | I24: 295677795 | M24: =I24/I25 -> 0.08684389363 | O24: 291953253
B25: Total | G25: =G23+G24 -> 36366 | I25: =I24+I23 -> 3404704495 | M25: 1 | O25: =O23+O24 -> 2300525622
T26: PENSION:
T27: x | U27: Mers | X27: x | Y27: 401A
A28: Director, Management & Supervision | U28: Defined Contr | X28: x | Y28: Other | Z28: Defined Benefit
U29: (detail:) | V29: 1% multiplier for Defined Benifet with 3.5% also going into a 401A. Employee has the option to contribute to 457 plan. Eight year vesting period
A30: Position | C30: No of years in: | G30: STC Level | K30: Personal | M30: No. in | O30: 2022
C31: Position | E31: Assmt Adm | G31: Required | I31: Held | K31: Prop. Exmnr | M31: Position | O31: Salary Range
A32: Director | C32: 3.5 | E32: 13 | G32: MAAO | I32: MAAO | K32: X | M32: 1 | O32: 72205 | Q32: 93867 | T32: LONGEVITY:
A33: Deputy/Asst. | C33: 0 | E33: 0 | T33: X | U33: (detail:) | V33: No longer available to hew hires; $45.60/year of continous service.
A34: GIS Director** | C34: 6 | E34: 0 | M34: 1 | O34: 56802 | Q34: 73841
A36: **Separate department | T36: HEALTH:
A37: Staff | T37: x | U37: BC/BS Type | X37: x | Y37: Dental
A38: Appraiser III | M38: 0 | T38: x | U38: HMO | X38: Optional | Y38: Vision
A39: Appraiser II | G39: MCAO | I39: MCAO | K39: X | M39: 1 | O39: 40852 | Q39: 53110 | T39: x | U39: Cafeteria | Y39: Other
A40: Appraiser I | M40: 0 | U40: (detail:) | V40: HMO, PPO and HSA Plans available.
A41: P/P Auditor | M41: 0
A42: GIS/Mapping | M42: 0
A43: EQ Technician | G43: MCAT | I43: MCAT | M43: 1 | O43: 37977 | Q43: 49390 | T43: LIFE INSURANCE:
T44: X | U44: (detail:) | V44: $15,000 per employee; additional coverage optional
A45: ** Separate department
T47: OTHER:
T48: X | U48: (detail:) | V48: 13 holidays/year; Pre-tax dollar for dependent care/medical reimbursement available.
A49: *Additional Comments:
A52: Tempory Changes Due To COVID-19:
A53: Work from home when available.

Sheet 76 Sanilac
A1: 2021 Michigan Equalization Department Salary Survey
A2: COUNTY OF | D2: Sanilac | K2: CLICK HERE TO RETURN TO DIRECTOR SUMMARY PAGE
A4: Director | C4: Wendi Willing | J4: Private Phone: | L4: 810-648-2955 | R4: E-mail: | S4: wwilling@sanilaccounty.net
A5: Alternate: | J5: Private Phone: | R5: E-mail:
A8: General County Information | J8: Additional Duties and Responsibilities | R8: General Office Information
B10: Dept. Established: | E10: 0.0177 | F10: % General Fund | J10: x | K10: Apportionment | N10: x | O10: Tax Bills | R10: Business Hrs: | T10: Monday -Friday 7:00-3:30 | X10: Office Fax #: | Z10: 810-648-5529
A11: 4 | B11: No. of Cities: | F11: Auto Allowance | K11: Property Desc. | O11: Addressing | R11: Office Phone: | T11: 810-648-2955 | X11: Website: | Z11: www.sanilaccounty.net
A12: 26 | B12: No.of Townships: | F12: Fringe Benefits | K12: Assessing Units | O12: Website | R12: Address: | T12: 60 West Sanilac Ave
A13: 9 | B13: No.of Villages: | E13: 2021 Budget | J13: x | K13: Data Processing | N13: x | O13: Mapping/GIS | T13: Sandusky, MI 48471
A14: 37.5 | B14: No of hrs. per week | E14: 282000 | K14: Other | O14: Other | R14: Fax: | T14: 810-648-5529
A15: 2 | B15: No. of Staff (FTEE) | E15: 2021 Revenue(s) | J15: (detail:)
E16: 24600
T18: Fringe Benefits
A19: Valuation Information | G19: CURRENT SOFTWARE | L19: BS & A
T20: LEAVE POLICY:
G21: No. of | I21: Assessed | M21: % of | O21: Taxable | T21: x | U21: Vacation Days | X21: x | Y21: Sick Days
G22: Parcels | I22: Valuations | M22: Total | O22: Valuations | T22: x | U22: Personal Days | X22: x | Y22: Other | Z22: Holidays
B23: Real Property | G23: 31281 | I23: 2620140338 | M23: 0.95 | O23: 1483873244 | U23: (detail:)
B24: Personal Property | G24: 1866 | I24: 211499458 | M24: 0.05 | O24: 211506258
B25: Total | G25: =SUM(G23:G24) -> 33147 | I25: =SUM(I23:I24) -> 2831639796 | M25: 1 | O25: =SUM(O23:O24) -> 1695379502
B26: Exempt | G26: 964 | T26: PENSION:
U27: Mers | Y27: 401K
A28: Director, Management & Supervision | U28: Defined Contr | X28: x | Y28: Other | Z28: Defined Benefit
U29: (detail:)
A30: Position | C30: No of years in: | G30: S.T.C. Level | K30: Personal | M30: No. in | O30: 2021
C31: Position | E31: Assmt Adm | G31: Required | I31: Held | K31: Prop. Exmnr | M31: Position | O31: Salary Range
A32: Director | C32: 10 | E32: 10 | G32: MAAO | I32: MAAO | M32: 1 | Q32: 60594 | T32: LONGEVITY:
A33: Deputy/Asst. | C33: 10 | E33: 0 | M33: 1 | Q33: 39500 | T33: N/A | U33: (detail:) | V33: 15-19 years =$500 20-24 years = $1,000 25-29 years = $1,500 30+years = $2,000
T36: HEALTH:
A37: Staff | T37: x | U37: BC/BS Type | X37: x | Y37: Dental
A38: Appraiser III | U38: HMO | X38: x | Y38: Vision
A39: Appraiser II | U39: Cafeteria | Y39: Other
A40: Appraiser I | U40: (detail:) | V40: Priority Health PPO # Deductibles modified to $250/$500 and copay of $500/$1000
A41: P/P Auditor
A42: GIS/Mapping
A43: Clerical | T43: LIFE INSURANCE: $10,000
T47: OTHER:
A49: *Additional Comments:
A52: Tempory Changes Due To COVID-19: | F52: Staff on partial furlough

Sheet 77 Schoolcraft
A1: 2022 Michigan Equalization Department Salary Survey
A2: COUNTY OF | D2: Schoolcraft | K2: CLICK HERE TO RETURN TO DIRECTOR SUMMARY PAGE
A4: Director | C4: Dulcee Ranta | J4: Private Phone: | L4: 906-250-2613 | R4: E-mail: | S4: dulceeranta@gmail.com
A5: Alternate: | J5: Private Phone: | R5: E-mail:
A8: General County Information | J8: Additional Duties and Responsibilities | R8: General Office Information
B10: Dept. Established: | F10: % General Fund | K10: Apportionment | O10: Tax Bills | R10: Business Hrs: | T10: 8:00 to 4:00 | X10: Office Fax #:
A11: 1 | B11: No. of Cities: | F11: Auto Allowance | K11: Property Desc. | O11: Addressing | R11: Office Phone: | T11: 906-341-3677 | X11: Website:
A12: 8 | B12: No.of Townships: | F12: Fringe Benefits | K12: Assessing Units | O12: Website | R12: Address:
B13: No.of Villages: | E13: 2022 Budget | K13: Data Processing | O13: Mapping/GIS
B14: No of hrs. per week | K14: Other | O14: Other | R14: Fax:
B15: No. of Staff (FTEE) | E15: 2022 Revenue(s) | J15: (detail:)
T18: Fringe Benefits
A19: Valuation Information | G19: CURRENT SOFTWARE | L19: BS & A
T20: LEAVE POLICY:
G21: No. of | I21: Assessed | M21: % of | O21: Taxable | U21: Vacation Days | Y21: Sick Days
G22: Parcels | I22: Valuations | M22: Total | O22: Valuations | U22: Personal Days | Y22: Other | Z22: Holidays
B23: Real Property | U23: (detail:)
B24: Personal Property
B25: Total
B26: Exempt | T26: PENSION:
U27: Mers | Y27: 401K
A28: Director, Management & Supervision | U28: Defined Contr | Y28: Other | Z28: Defined Benefit
U29: (detail:)
A30: Position | C30: No of years in: | G30: S.T.C. Level | K30: Personal | M30: No. in | O30: 2022
C31: Position | E31: Assmt Adm | G31: Required | I31: Held | K31: Prop. Exmnr | M31: Position | O31: Salary Range
A32: Director | C32: 3 | E32: 16 | G32: MAAO | I32: MMAO | K32: Y | O32: CONTRACT | Q32: 48500 | T32: LONGEVITY:
A33: Deputy/Asst. | T33: N/A | U33: (detail:)
T36: HEALTH:
A37: Staff | U37: BC/BS Type | Y37: Dental
A38: Appraiser III | U38: HMO | Y38: Vision
A39: Appraiser II | U39: Cafeteria | Y39: Other
A40: Appraiser I | U40: (detail:)
A41: P/P Auditor
A42: GIS/Mapping
A43: Clerical | T43: LIFE INSURANCE:
T47: OTHER:
A49: *Additional Comments:
A52: Tempory Changes Due To COVID-19:

Sheet 78 Shiawassee
A1: 2017 Michigan Equalization Department Salary Survey
A2: COUNTY OF | D2: SHIAWASSEE | K2: CLICK HERE TO RETURN TO DIRECTOR SUMMARY PAGE
A4: Director | J4: Private Phone: | R4: E-mail:
A5: Alternate: | J5: Private Phone: | R5: E-mail:
A8: General County Information | J8: Additional Duties and Responsibilities | R8: General Office Information
B10: Dept. Established: | F10: % General Fund | K10: Apportionment | O10: Tax Bills | R10: Business Hrs: | X10: Office Fax #:
B11: No. of Cities: | F11: Auto Allowance | K11: Property Desc. | O11: Addressing | R11: Office Phone: | X11: Website:
B12: No.of Townships: | F12: Fringe Benefits | K12: Assessing Units | O12: Website | R12: Address:
B13: No.of Villages: | E13: 2017 Budget | K13: Data Processing | O13: Mapping/GIS
B14: No of hrs. per week | K14: Other | O14: Other | R14: Fax:
B15: No. of Staff (FTEE) | E15: 2017 Revenue(s) | J15: (detail:)
T18: Fringe Benefits
A19: Valuation Information | G19: CURRENT SOFTWARE | L19: BS & A
T20: LEAVE POLICY:
